{"text_format":"1","workbook":"xlsx","n_sheets":8,"sheets":["About","VRP Solver Console","MultiLanguageMenuItems","MultiLanguageInterface","1.Locations","2.Distances","3.Vehicles","4.Solution"],"not_rendered":{"charts":0,"images":0,"macros":1,"external_links":0,"defined_names":3,"comments":0,"pivot_tables":0},"unopened":[],"bounds":{"document_bytes":16777216,"sheet_cells":100000,"rows_first":2000,"rows_last":500,"rows_between":2000,"halvings":0,"cell_chars":16384,"cell_head_chars":4096},"cells_cut":0,"cells_raw":0,"read":"whole","date_system":"1900"}

{"sheet":"About","index":0,"n_rows":4,"n_cols":1,"rows_kept":4,"cut":false,"hidden":true,"merged":[]}
["Developed by Dr Güneş Erdoğan, 2020."]
["School of Management, University of Bath."]
[]
["DISCLAIMER: THIS SOFTWARE IS PROVIDED \"AS IS\" AND ANY EXPRESS OR IMPLIED WARRANTIES, INCLUDING, BUT NOT LIMITED TO, THE IMPLIED WARRANTIES OF MERCHANTABILITY AND FITNESS FOR A PARTICULAR PURPOSE ARE DISCLAIMED. IN NO EVENT SHALL THE ORIGINAL DEVELOPER BE LIABLE FOR ANY DIRECT, INDIRECT, INCIDENTAL, SPECIAL, EXEMPLARY, OR CONSEQUENTIAL DAMAGES (INCLUDING, BUT NOT LIMITED TO, PROCUREMENT OF SUBSTITUTE GOODS OR SERVICES; LOSS OF USE, DATA, OR PROFITS; OR BUSINESS INTERRUPTION) HOWEVER CAUSED AND ON ANY THEORY OF LIABILITY,  WHETHER IN CONTRACT, STRICT LIABILITY, OR TORT (INCLUDING NEGLIGENCE OR OTHERWISE) ARISING IN ANY WAY OUT OF THE USE OF THIS SOFTWARE, EVEN IF ADVISED OF THE POSSIBILITY OF SUCH DAMAGE."]

{"sheet":"VRP Solver Console","index":1,"n_rows":26,"n_cols":4,"rows_kept":26,"cut":false,"hidden":false,"merged":[]}
["Sequence","Parameter","Value","Remarks"]
["0.Interface","Language","English","Please refer to the manual for modifying the interface."]
[null,"Optional - Bing Maps Key",null,"You can get a free trial key at https://www.bingmapsportal.com/"]
[]
["1.Locations","Number of depots",1,"[1, 20]"]
[null,"Number of customers",5,"[5, 200]"]
[]
["2.Distances","Distance computation method","Bing Maps driving distances (km)","Recommendation: Use 'postcode, country' format for addresses"]
[null,"Duration computation method","Bing Maps driving durations"]
[null,"Bing Maps travel mode","Driving"]
[null,"Bing Maps route type","Fastest","Recommendation: Use 'Fastest'"]
[null,"Bing Maps route detail level",3,"[0, 10]"]
[null,"Average vehicle speed",70]
[]
["3.Vehicles","Number of vehicle types",1]
[]
["4.Solution","Do the vehicles return to their depot(s)?","Yes - only once at the end"]
[null,"Time window type","Hard"]
[null,"Backhauls?","No","If activated, delivery locations must be visited before pickup locations"]
[]
["5.Optional - Visualization","Visualization background","Bing Maps"]
[null,"Location labels","Location IDs"]
[]
["6.Solver","Warm start?","Yes"]
[null,"Show progress on the status bar?","No"]
[null,"CPU time limit (seconds)",60,{"$f":"CONCATENATE(\"Recommendation: At least \", 60 * CEILING(C6 * C6 * C6 / 100000, 1),\" seconds\")","v":"Recommendation: At least 60 seconds"}]

{"sheet":"MultiLanguageMenuItems","index":2,"n_rows":27,"n_cols":15,"rows_kept":27,"cut":false,"hidden":true,"merged":[]}
["Menu Item","English","Türkçe","Deutsche","Espanola","Française","Italiano","Português","عربى","Bahasa Indonesia","اردو","বাংলা","Kiswahili","فارسی","Bahasa Melayu"]
["VRPSpreadsheetSolver","VRP Spreadsheet Solver","VRP Excel Çözücü","VRP Spreadsheet Solver","Solucionador de hojas de cálculo VRP","Solveur de feuille de calcul VRP","Risolutore di fogli di calcolo VRP","VRP Spreadsheet Solver","VRP Spreadsheet Solver","VRP Spreadsheet Solver","وی آر پی اسپریڈشیٹ حل کرنے والا","ভিআরপি স্প্রেডশিট সলভার","Solver Lahajedwali ya VRP","حل صفحه گسترده VRP","Penyelesaian Hamparan VRP"]
["menu1","0. Reset","0. Sıfırla","0. Zurücksetzen","0. Restablecer","0. Réinitialiser","0. Reimposta","0. Reiniciar","0. إعادة","0. Atur ulang","0. ری سیٹ کریں","0. পুনরায় সেট করুন","0. Weka upya","0. تنظیم مجدد","0. Tetapkan semula"]
["customButton1","0. Reset the workbook","0. Çalışma kitabını sıfırlayın","0. Setzen Sie die Arbeitsmappe zurück","0. Restablecer el libro de trabajo","0. Réinitialiser le classeur","0. Reimpostare la cartella di lavoro","0. Reinicialize a pasta de trabalho","0. إعادة تعيين المصنف","0. Atur ulang buku kerja","0. ورک بک کو دوبارہ ترتیب دیں","0. ওয়ার্কবুকটি রিসেট করুন","0. Rudisha kitabu cha kazi","0. کتاب کار را بازنشانی کنید","0. Tetapkan semula buku kerja"]
["menu2","1. Locations","1. Konumlar","1. Standorte","1. Ubicaciones","1. Lieux","1. Posizioni","1. Localizações","1. المواقع","1. Lokasi","1. مقامات","1. অবস্থান","1. Maeneo","1. مکان ها","1. Lokasi"]
["customButton2","1.1. Setup Locations Worksheet","1.1. Konumlar Çalışma Sayfası Kurulumu","1.1. Arbeitsblatt \"Standorte einrichten\"","1.1. Hoja de trabajo de configuración de ubicaciones","1.1. Feuille de calcul des emplacements de configuration","1.1. Foglio di lavoro delle posizioni di installazione","1.1. Planilha de locais de configuração","1.1. إعداد ورقة عمل المواقع","1.1. Atur Lembar Kerja Lokasi","1.1۔ مقامات کی ورک شیٹ سیٹ اپ کریں","1.1। অবস্থানগুলির কার্যপত্রক সেটআপ করুন","1.1. Sanidi Karatasi ya Maeneo ya Maeneo","1.1 کاربرگ مکانها را تنظیم کنید","1.1. Lembar Kerja Lokasi Persediaan"]
["customButton3","1.2. Populate Lat/Lon using addresses","1.2. Adresleri kullanarak Enlem / Boylam bulun","1.2. Füllen Sie Lat / Lon mit Adressen","1.2. Complete Lat / Lon usando direcciones","1.2. Remplir Lat / Lon à l'aide d'adresses","1.2. Popolare Lat / Lon utilizzando gli indirizzi","1.2. Preencher Lat / Lon usando endereços","1.2 قم بتعبئة خطوط الطول والخط باستخدام العناوين","1.2. Isi Lintang / Bujur menggunakan alamat","1.2۔ پتے استعمال کرکے لیٹ / لون آباد کریں","১.২ ঠিকানা ব্যবহার করে ল্যাট / লনকে জনসংখ্যা দিন","1.2. Jaza watu Lat / Lon ukitumia anwani","1.2 Lat / Lon را با استفاده از آدرسها جمع کنید","1.2. Isi Lat / Lon menggunakan alamat"]
["customButton4","1.3. Sort locations alphabetically","1.3. Yerleri alfabetik olarak sıralayın","1.3. Standorte alphabetisch sortieren","1.3. Ordenar ubicaciones alfabéticamente","1.3. Trier les emplacements par ordre alphabétique","1.3. Ordina le posizioni in ordine alfabetico","1.3. Classifique os locais em ordem alfabética","1.3 فرز المواقع أبجديا","1.3. Urutkan lokasi menurut abjad","1.3۔ حروف تہجی کے لحاظ سے مقامات کی ترتیب دیں","1.3। বর্ণমালা অনুসারে অবস্থানগুলি বাছাই করুন","1.3. Panga maeneo kwa herufi","1.3 مرتب سازی بر اساس حروف الفبا","1.3. Isih lokasi mengikut abjad"]
["menu3","2. Distances","2. Mesafeler","2. Entfernungen","2. Distancias","2. Distances","2. Distanze","2. Distâncias","2. المسافات","2. Jarak","2. فاصلے","2. দূরত্ব","2. Umbali","2. فاصله ها","2. Jarak"]
["customButton5","2.1. Setup Distances Worksheet","2.1. Mesafeler Çalışma Sayfası Kurulumu","2.1. Arbeitsblatt \"Entfernungen einrichten\"","2.1. Configurar hoja de trabajo de distancias","2.1. Feuille de travail de configuration des distances","2.1. Foglio di lavoro per l'impostazione delle distanze","2.1. Planilha de configuração de distâncias","2.1. إعداد ورقة عمل المسافات","2.1. Pengaturan Jarak Lembar Kerja","2.1۔ فاصلوں کی ورک شیٹ سیٹ اپ کریں","2.1। দূরত্বের কার্যপত্রক সেটআপ করুন","2.1. Karatasi ya Kuweka Masafa ya Kusanidi","2.1 کاربرگ فاصله ها را تنظیم کنید","2.1. Lembarkan Kerja Jarak Jauh"]
["customButton6","2.2. Populate Distances Worksheet","2.2. Mesafeleri Hesaplayın","2.2. Arbeitsblatt \"Entfernungen füllen\"","2.2. Hoja de trabajo para completar distancias","2.2. Remplir la feuille de calcul des distances","2.2. Foglio di lavoro per popolare le distanze","2.2. Planilha de preenchimento de distâncias","2.2. ورقة عمل تعبئة المسافات","2.2. Mengisi Lembar Kerja Jarak","2.2۔ فاصلوں کی ورک شیٹ آباد کریں","2.2। দূরত্বের কার্যপত্রকটি পপুলেট করুন","2.2. Karatasi ya Kazi ya Masafa ya Watu","2.2. برگه فاصله را جمع کنید","2.2. Isi Lembaran Kerja Jarak"]
["menu4","3. Vehicles","3. Araçlar","3. Fahrzeuge","3. Vehículos","3. Véhicules","3. Veicoli","3. Veículos","3. المركبات","3. Kendaraan","3. گاڑیاں","3. যানবাহন","3. Magari","3. وسایل نقلیه","3. Kenderaan"]
["customButton7","3.1. Setup Vehicles Worksheet","3.1. Araçlar Çalışma Sayfası Kurulumu","3.1. Arbeitsblatt zum Einrichten von Fahrzeugen","3.1. Hoja de trabajo de configuración de vehículos","3.1. Feuille de travail de configuration des véhicules","3.1. Foglio di lavoro per la configurazione dei veicoli","3.1. Planilha de configuração de veículos","3.1. إعداد ورقة عمل المركبات","3.1. Siapkan Lembar Kerja Kendaraan","3.1۔ گاڑیوں کی ورک شیٹ سیٹ اپ کریں","৩.১০। যানবাহনের কার্যপত্রক সেটআপ করুন","3.1. Sanidi Karatasi ya Kazi ya Magari","3.1 صفحه کار وسایل نقلیه را تنظیم کنید","3.1. Sediakan Lembaran Kerja Kenderaan"]
["customButton8","3.2. Setup Vehicle Compatibility Worksheet","3.2. Araç Uyumluluk Çalışma Sayfasını Ayarlayın","3.2. Arbeitsblatt zur Fahrzeugkompatibilität einrichten","3.2. Configurar hoja de trabajo de compatibilidad de vehículos","3.2. Feuille de calcul de la compatibilité des véhicules","3.2. Imposta foglio di lavoro sulla compatibilità del veicolo","3.2. Planilha de configuração de compatibilidade de veículos","3.2 إعداد ورقة عمل توافق السيارة","3.2. Siapkan Lembar Kerja Kompatibilitas Kendaraan","3.2۔ گاڑی کی مطابقت کی ورک شیٹ سیٹ اپ کریں","3.2। যানবাহনের সামঞ্জস্যতা কার্যপত্রক সেটআপ করুন","3.2. Sanidi Karatasi ya Utangamano wa Magari","3.2 کاربرگ سازگاری خودرو را تنظیم کنید","3.2. Sediakan Lembaran Kerja Keserasian Kenderaan"]
["menu5","4. Solution","4. Çözüm","4. Lösung","4. Solución","4. Solution","4. Soluzione","4. Solução","4. الحل","4. Solusi","4. حل","4. সমাধান","4. Suluhisho","4. راه حل","4. Penyelesaian"]
["customButton9","4.1. Setup Solution Worksheet","4.1. Çözüm Çalışma Sayfası Kurulumu","4.1. Arbeitsblatt zum Einrichten der Lösung","4.1. Configuración de la hoja de trabajo de la solución","4.1. Feuille de travail de la solution de configuration","4.1. Foglio di lavoro della soluzione di installazione","4.1. Planilha de solução de configuração","4.1 إعداد ورقة عمل الحل","4.1. Siapkan Lembar Kerja Solusi","4.1۔ حل ورکشیٹ سیٹ اپ کریں","4.1। সমাধান কার্যপত্রক সেটআপ করুন","4.1. Sanidi Karatasi ya Kazi ya Suluhisho","4.1 کاربرگ راه حل راه اندازی","4.1. Lembaran Kerja Penyelesaian Persediaan"]
["menu6","5. Visualization","5. Görselleştirme","5. Visualisierung","5. Visualización","5. Visualisation","5. Visualizzazione","5. Visualização","5. التصور","5. Visualisasi","5. تصور","৫. ভিজ্যুয়ালাইজেশন","5. Taswira","5. تجسم","5. Visualisasi"]
["customButton10","5.1. Setup Visualization Worksheet","5.1. Görselleştirme Çalışma Sayfası Kurulumu","5.1. Arbeitsblatt zur Visualisierung einrichten","5.1. Configurar hoja de trabajo de visualización","5.1. Feuille de travail de visualisation de la configuration","5.1. Imposta foglio di lavoro per la visualizzazione","5.1. Planilha de visualização de configuração","5.1 إعداد ورقة عمل التصور","5.1. Siapkan Lembar Kerja Visualisasi","5.1۔ ویژوئلائزیشن ورک شیٹ سیٹ اپ کریں","5.1। ভিজ্যুয়ালাইজেশন ওয়ার্কশিট সেটআপ করুন","5.1. Sanidi Karatasi ya Kuona","5.1 راه اندازی کاربرگ تجسم","5.1. Sediakan Lembaran Kerja Visualisasi"]
["customButton11","5.2. Animate Visualization Worksheet","5.2. Görselleştirme Çalışma Sayfasını Canlandır","5.2. Arbeitsblatt zur Visualisierung animieren","5.2. Hoja de trabajo de visualización animada","5.2. Feuille de travail de visualisation animée","5.2. Foglio di lavoro per la visualizzazione animata","5.2. Planilha de visualização do Animate","5.2 تحريك ورقة عمل التصور","5.2. Lembar Kerja Visualisasi Animasi","5.2۔ اینیمیٹ ویزولائزیشن ورک شیٹ۔","5.2। অ্যানিমেট ভিজুয়ালাইজেশন ওয়ার্কশীট","5.2. Kuhuisha Karatasi ya Utaftaji","5.2 کاربرگ تجسم سازی متحرک","5.2. Lembaran Kerja Visualisasi Animasi"]
["menu7","6. Solver","6. Çözücü","6. Löser","6. Solucionador","6. Solveur","6. Risolutore","6. Solver","6. حلال","6. Pemecah","6. حل کرنے والا","6. সমাধানকারী","6. Solver","6. حل کننده","6. Penyelesai"]
["customButton12","6.1. Engage VRP Spreadsheet Solver","6.1. VRP Excel Çözücüsünü Kullanın","6.1. Aktivieren Sie VRP Spreadsheet Solver","6.1. Activar el solucionador de hojas de cálculo VRP","6.1. Engager le solveur de feuille de calcul VRP","6.1. Attiva il risolutore di fogli di calcolo VRP","6.1. Engage VRP Spreadsheet Solver","6.1 إشراك برنامج VRP Spreadsheet Solver","6.1. Libatkan VRP Spreadsheet Solver","6.1۔ وی آر پی اسپریڈشیٹ سولور کو مشغول کریں",".1.১০। ভিআরপি স্প্রেডশিট সলভার জড়িত","6.1. Shiriki Solver Lahajedwali ya VRP","6.1 VRP Spreadsheet Solver را درگیر کنید","6.1. Libatkan Penyelesai Hamparan VRP"]
["customButton13","6.2. Feasibility Check","6.2. Fizibilite Kontrolü","6.2. Machbarkeitsprüfung","6.2. Verificación de viabilidad","6.2. Contrôle de faisabilité","6.2. Verifica di fattibilità","6,2 Verificação de viabilidade","6.2 التحقق من الجدوى","6.2. Pemeriksaan Kelayakan","6.2۔ فزیبلٹی چیک","6.2। সম্ভাব্যতা যাচাই করুন","6.2. Upembuzi yakinifu","6.2 امکان سنجی","6.2. Pemeriksaan Kebolehlaksanaan"]
["customButton14","6.3. Engage external solver","6.3. Harici çözücüyü devreye alın","6.3. Aktivieren Sie den externen Löser","6.3. Involucrar a un solucionador externo","6.3. Engager un solveur externe","6.3. Coinvolgi il risolutore esterno","6.3. Envolver solucionador externo","6.3 إشراك المحلل الخارجي","6.3. Libatkan pemecah eksternal","6.3۔ بیرونی محلول کو مشغول کریں","6.3। বাহ্যিক দ্রাবক জড়িত","6.3. Shirikisha suluhisho la nje","6.3 با یک حل کننده خارجی درگیر شوید","6.3. Libatkan pemecah luaran"]
["menu8","Info","Bilgi","Die Info","Info","Info","Informazioni","Informações","معلومات","Info","معلومات","তথ্য","Maelezo","اطلاعات","Maklumat"]
["customButton15","Send feedback or ask a question","Geri bildirim gönderin veya soru sorun","Senden Sie Feedback oder stellen Sie eine Frage","Envíe sus comentarios o haga una pregunta","Envoyez des commentaires ou posez une question","Invia feedback o fai una domanda","Envie feedback ou faça uma pergunta","إرسال ملاحظات أو طرح سؤال","Kirim masukan atau ajukan pertanyaan","آراء بھیجیں یا کوئی سوال پوچھیں","প্রতিক্রিয়া পাঠান বা একটি প্রশ্ন জিজ্ঞাসা করুন","Tuma maoni au uliza swali","بازخورد ارسال کنید یا سوالی بپرسید","Hantar maklum balas atau ajukan soalan"]
["customButton16","Watch the tutorial video on YouTube","Eğitici videoyu YouTube'da izleyin","Sehen Sie sich das Tutorial-Video auf YouTube an","Mira el video tutorial en YouTube","Regardez la vidéo du didacticiel sur YouTube","Guarda il video tutorial su YouTube","Assista ao vídeo tutorial no YouTube","شاهد الفيديو التعليمي على موقع يوتيوب","Tonton video tutorialnya di YouTube","ٹیوٹوریل ویڈیو یوٹیوب پر دیکھیں","টিউটোরিয়াল ভিডিওটি ইউটিউবে দেখুন","Tazama video ya mafunzo kwenye YouTube","فیلم آموزشی را در YouTube تماشا کنید","Tonton video tutorial di YouTube"]
["customButton17","About","Hakkında","Über","Acerca de","À propos","Di","Sobre","حول","Tentang","کے بارے میں","সম্পর্কিত","Kuhusu","در باره","Mengenai"]

{"sheet":"MultiLanguageInterface","index":3,"n_rows":292,"n_cols":14,"rows_kept":292,"cut":false,"hidden":true,"merged":[]}
["English","Türkçe","Deutsche","Espanola","Française","Italiano","Português","عربى","Bahasa Indonesia","اردو","বাংলা","Kiswahili","فارسی","Bahasa Melayu"]
[" cannot be served with the given working time limit."," verilen çalışma süresi sınırı ile servis yapılamaz."," kann nicht mit der angegebenen Arbeitszeit bedient werden."," no se puede servir con el límite de tiempo de trabajo dado."," ne peut pas être servi avec la limite de temps de travail indiquée."," non può essere servito con il limite di tempo di lavoro specificato."," não pode ser servido com o limite de tempo de trabalho fornecido."," لا يمكن تقديمه مع حد وقت العمل المحدد.","tidak dapat dilayani dengan batas waktu kerja yang ditentukan.","کام کرنے کی مقررہ مدت کے ساتھ خدمت نہیں کی جاسکتی ہے۔","প্রদত্ত কাজের সময়সীমা দিয়ে পরিবেশন করা যাবে না।"," haiwezi kutumiwa na kikomo cha muda uliopewa wa kufanya kazi.","با محدودیت زمان کار داده شده قابل ارائه نیست."," tidak dapat dilayan dengan had masa kerja yang diberikan."]
[" cannot be visited with the given distance limit."," verilen mesafe sınırı ile ziyaret edilemez."," kann mit dem angegebenen Entfernungslimit nicht besucht werden."," no se puede visitar con el límite de distancia dado."," ne peut pas être visité avec la limite de distance donnée."," non può essere visitato con il limite di distanza indicato."," não pode ser visitado com o limite de distância fornecido."," لا يمكن زيارته مع حد المسافة المحدد."," tidak dapat dikunjungi dengan batas jarak yang ditentukan."," مقررہ فاصلہ کی حد کے ساتھ دورہ نہیں کیا جاسکتا۔"," প্রদত্ত দুরত্ব সীমা দিয়ে পরিদর্শন করা যাবে না।"," haiwezi kutembelewa na kikomo cha umbali uliopewa."," با محدودیت فاصله داده شده قابل بازدید نیست."," tidak dapat dikunjungi dengan had jarak yang diberikan."]
[" cannot be visited with the given driving time limit."," verilen sürüş süresi sınırı ile ziyaret edilemez."," kann nicht mit der angegebenen Fahrzeit besucht werden."," no se puede visitar con el límite de tiempo de conducción dado."," ne peut pas être visité avec le temps de conduite donné."," non può essere visitato con il limite di tempo di guida indicato."," não pode ser visitado com o limite de tempo de condução fornecido."," لا يمكن زيارته مع الوقت المحدد للقيادة."," tidak dapat dikunjungi dengan batas waktu mengemudi yang ditentukan."," ڈرائیونگ کی دی گئی وقت کی حد کے ساتھ تشریف نہیں لیا جاسکتا۔"," প্রদত্ত ড্রাইভিংয়ের সময়সীমা সহ পরিদর্শন করা যাবে না।"," haiwezi kutembelewa na kikomo cha wakati wa kuendesha."," با محدودیت زمان رانندگی قابل بازدید نیست."," tidak dapat dikunjungi dengan had masa memandu yang diberikan."]
[" complete."," tamamlandı.","Komplett.","completar.","Achevée.","completare.","completo.","اكتمال."," lengkap."," مکمل"," সম্পূর্ণ"," kamili."," کامل."," lengkap."]
[" exceeds its capacity at stop "," durma anında kapasitesini aşıyor"," überschreitet seine Kapazität beim Anhalten"," excede su capacidad en parada"," dépasse sa capacité à l'arrêt"," supera la sua capacità all'arresto"," excede sua capacidade na parada"," يتجاوز قدرتها عند التوقف"," melebihi kapasitasnya saat berhenti"," اسٹاپ پر اپنی صلاحیت سے تجاوز کرتا ہے"," স্টপ এ তার ক্ষমতা অতিক্রম করে"," inazidi uwezo wake wa kusimama"," بیش از ظرفیت خود در توقف است"," melebihi kapasitinya semasa berhenti"]
[" exceeds the distance limit."," mesafe sınırını aşıyor."," überschreitet die Entfernungsgrenze."," excede el límite de distancia."," dépasse la limite de distance."," supera il limite di distanza."," excede o limite de distância."," يتجاوز حد المسافة."," melebihi batas jarak."," فاصلہ کی حد سے تجاوز کر گیا"," দূরত্বের সীমা অতিক্রম করে।"," huzidi kikomo cha umbali."," بیش از حد فاصله است."," melebihi had jarak."]
[" exceeds the driving time limit."," sürüş süresi sınırını aşıyor."," überschreitet das Fahrzeitlimit."," excede el límite de tiempo de conducción."," dépasse la limite de temps de conduite."," supera il limite di tempo di guida."," excede o limite de tempo de condução."," يتجاوز وقت القيادة."," melebihi batas waktu mengemudi."," ڈرائیونگ کی وقت کی حد سے تجاوز"," ড্রাইভিং সময় সীমা অতিক্রম করে।"," huzidi kikomo cha muda wa kuendesha."," از محدودیت زمانی رانندگی فراتر می رود."," melebihi had masa memandu."]
[" exceeds the working time limit."," çalışma süresi sınırını aşıyor."," überschreitet das Arbeitszeitlimit."," excede el límite de tiempo de trabajo."," dépasse la limite du temps de travail."," supera il limite di tempo di lavoro."," excede o limite de tempo de trabalho."," يتجاوز الحد الزمني للعمل."," melebihi batas waktu kerja."," کام کرنے کے وقت کی حد سے تجاوز کرتا ہے۔"," কাজের সময়সীমা অতিক্রম করে।"," inazidi kikomo cha muda wa kufanya kazi."," بیش از محدودیت زمان کار"," melebihi had masa bekerja."]
[" has a negative pickup amount at stop "," durakta teslim alma miktari negatif"," hat einen negativen Abholbetrag am Stopp"," tiene una cantidad de recogida negativa en la parada"," a un montant de retrait négatif à l'arrêt"," ha un importo di prelievo negativo allo stop"," tem um valor de retirada negativo na parada"," لديه مبلغ التقاط سلبي عند التوقف"," memiliki jumlah pengambilan negatif saat berhenti"," اسٹاپ پر لینے کے لئے منفی رقم ہوتی ہے"," স্টপ এ নেতিবাচক পিকআপ পরিমাণ আছে"," ina kiasi kidogo cha kuchukua wakati wa kuacha"," در توقف مقدار پیکاپ منفی دارد"," mempunyai jumlah pengambilan negatif semasa berhenti"]
[" has been used for multiple locations. Please correct the error and try again.","birden çok konum için kullanıldı. Lütfen hatayı düzeltip tekrar deneyin.","wurde für mehrere Standorte verwendet. Bitte korrigieren Sie den Fehler und versuchen Sie es erneut.","se ha utilizado para varias ubicaciones. Corrija el error y vuelva a intentarlo.","a été utilisé pour plusieurs emplacements. Veuillez corriger l'erreur et réessayer.","è stato utilizzato per più posizioni. Correggi l'errore e riprova.","foi usado para vários locais. Corrija o erro e tente novamente.","تم استخدامه لمواقع متعددة. يرجى تصحيح الخطأ والمحاولة مرة أخرى."," telah digunakan di banyak lokasi. Harap perbaiki kesalahan dan coba lagi."," متعدد مقامات کے لئے استعمال کیا گیا ہے۔ براہ کرم غلطی کو درست کریں اور دوبارہ کوشش کریں۔"," একাধিক অবস্থানের জন্য ব্যবহার করা হয়েছে। ত্রুটিটি সংশোধন করে আবার চেষ্টা করুন।"," imetumika kwa maeneo mengi. Tafadhali sahihisha hitilafu na ujaribu tena."," برای چندین مکان استفاده شده است. لطفاً خطا را اصلاح کنید و دوباره امتحان کنید."," telah digunakan untuk beberapa lokasi. Sila betulkan ralat dan cuba lagi."]
[" is asking for both pickup and delivery, which conflicts with the backhauls option."," hem teslim alma hem de teslimat talep ediyor, bu da ana taşıyıcı seçeneğiyle çelişiyor."," bittet sowohl um Abholung als auch um Lieferung, was im Widerspruch zur Backhauls-Option steht."," solicita tanto la recogida como la entrega, lo que entra en conflicto con la opción de backhauls."," demande à la fois le ramassage et la livraison, ce qui entre en conflit avec l'option de retour."," chiede sia il ritiro che la consegna, il che è in conflitto con l'opzione di backhauls."," está pedindo coleta e entrega, o que conflita com a opção de backhauls."," يطلب كل من الاستلام والتسليم ، وهو ما يتعارض مع خيار التوصيل."," adalah meminta pengambilan dan pengiriman, yang bertentangan dengan opsi backhaul."," بیک اپ اور ڈلیوری دونوں کے لئے پوچھ رہا ہے ، جو بیک ہاؤس آپشن سے متصادم ہے۔"," পিকআপ এবং বিতরণ উভয়ই জিজ্ঞাসা করছে, যা ব্যাকহাল বিকল্পের সাথে দ্বন্দ্ব করে।"," inauliza upigaji picha na utoaji, ambayo inakinzana na chaguo la kurudi nyuma."," تقاضای وانت و تحویل را دارد که با گزینه backhauls مغایرت دارد."," meminta pengambilan dan penghantaran, yang bertentangan dengan pilihan backhaul."]
[" is invalid."," geçersizdir."," ist ungültig."," no es válido."," est invalide."," è invalido."," é inválido."," غير صالح."," tidak valid."," غلط ہے۔"," অবৈধ."," ni batili."," نامعتبر است"," tidak sah."]
[" is not compatible with any vehicle type. "," herhangi bir araç tipiyle uyumlu değildir."," ist mit keinem Fahrzeugtyp kompatibel."," no es compatible con ningún tipo de vehículo."," n'est compatible avec aucun type de véhicule."," non è compatibile con nessun tipo di veicolo."," não é compatível com nenhum tipo de veículo."," غير متوافق مع أي نوع من المركبات."," tidak kompatibel dengan jenis kendaraan apa pun."," کسی بھی قسم کی گاڑی کے ساتھ ہم آہنگ نہیں ہے۔"," কোনও গাড়ির ধরণের সাথে সামঞ্জস্যপূর্ণ নয়।"," haiendani na aina yoyote ya gari."," با هیچ نوع وسیله نقلیه سازگار نیست."," tidak sesuai dengan sebarang jenis kenderaan."]
[" is past its time window."," zaman penceresini geçti."," ist hinter seinem Zeitfenster."," ha pasado su ventana de tiempo."," a dépassé sa fenêtre de temps."," ha superato la sua finestra temporale."," já passou da janela de tempo."," تجاوز نافذة الوقت."," sudah melewati jendela waktunya."," اس کے وقت کی کھڑکی گزر چکی ہے۔"," তার সময় উইন্ডো অতীত।"," imepita wakati wa saa yake."," از پنجره زمان خود گذشته است."," melepasi masa waktunya."]
[" is shorter than its time window."," zaman penceresinden daha kısadır."," ist kürzer als sein Zeitfenster."," es más corto que su ventana de tiempo."," est plus courte que sa fenêtre de temps."," è più breve della sua finestra temporale."," é mais curto do que sua janela de tempo."," أقصر من النافذة الزمنية."," lebih pendek dari jendela waktunya."," اس کے ٹائم ونڈو سے چھوٹا ہے۔"," এটির সময় উইন্ডোর চেয়ে ছোট।"," ni fupi kuliko dirisha la wakati."," کوتاه تر از پنجره زمان آن است."," lebih pendek daripada jangka masa."]
[" is too large to fit into any vehicle."," herhangi bir araca sığamayacak kadar büyük."," ist zu groß, um in ein Fahrzeug zu passen."," es demasiado grande para caber en cualquier vehículo."," est trop grand pour s'adapter à un véhicule."," è troppo grande per entrare in qualsiasi veicolo."," é muito grande para caber em qualquer veículo."," كبير جدًا بحيث لا يتناسب مع أي مركبة."," terlalu besar untuk muat di kendaraan mana pun."," کسی بھی گاڑی میں فٹ ہونے کے لئے بہت بڑا ہے۔"," কোনও যানবাহনে ফিট করার জন্য এটি অনেক বড়।"," ni kubwa mno kuweza kutoshea kwenye gari lolote."," خیلی بزرگ است که در هر وسیله نقلیه جای نمی گیرد."," terlalu besar untuk dimasukkan ke dalam kenderaan apa pun."]
[" is visiting the incompatible location "," uyumsuz yeri ziyaret ediyor"," besucht den inkompatiblen Ort"," está visitando la ubicación incompatible"," visite l'emplacement incompatible"," sta visitando la posizione incompatibile"," está visitando o local incompatível"," يقوم بزيارة الموقع غير المتوافق"," mengunjungi lokasi yang tidak kompatibel"," غیر مطابقت پذیر مقام کا دورہ کر رہا ہے"," বেমানান অবস্থান পরিদর্শন করা হয়"," inatembelea eneo ambalo haliendani"," در حال بازدید از مکان ناسازگار است"," sedang mengunjungi lokasi yang tidak sesuai"]
[" LNS iterations and found a solution with a net profit of "," LNS yinelemeleri ve net karı olan bir çözüm buldu."," LNS-Iterationen und fand eine Lösung mit einem Nettogewinn von"," Iteraciones LNS y encontré una solución con un beneficio neto de"," Itérations LNS et trouvé une solution avec un bénéfice net de"," LNS iterazioni e ha trovato una soluzione con un utile netto di"," Iterações LNS e encontrou uma solução com um lucro líquido de"," تكرارات LNS ووجدت حلاً بصافي ربح"," LNS melakukan iterasi dan menemukan solusi dengan laba bersih sebesar"," LNS تکرار اور کے خالص منافع کے ساتھ ایک حل تلاش کیا"," LNS পুনরাবৃত্তি এবং এর নিট লাভের সাথে একটি সমাধান খুঁজে পেয়েছে"," Utaftaji wa LNS na kupata suluhisho na faida halisi ya"," تکرارهای LNS و یک راه حل با سود خالص پیدا کرد"," Pengulangan LNS dan menemui jalan penyelesaian dengan keuntungan bersih sebanyak"]
[" LNS iterations does not satisfy all constraints. Do you want to overwrite the current solution with the best found solution?"," tüm kısıtlamaları karşılamıyor. Bulunan en iyi çözümü mevcut çözümün üzerine yazmak ister misiniz?","  LNS-Iterationen erfüllen nicht alle Einschränkungen. Möchten Sie die aktuelle Lösung mit der am besten gefundenen Lösung überschreiben?","  Las iteraciones de LNS no satisfacen todas las restricciones. ¿Quiere sobrescribir la solución actual con la mejor solución encontrada?","  Les itérations LNS ne satisfont pas toutes les contraintes. Voulez-vous remplacer la solution actuelle par la meilleure solution trouvée?","  Le iterazioni LNS non soddisfano tutti i vincoli. Vuoi sovrascrivere la soluzione corrente con la migliore soluzione trovata?","  As iterações LNS não satisfazem todas as restrições. Quer substituir a solução atual pela melhor solução encontrada?","  تكرارات LNS لا تفي بجميع القيود. هل تريد استبدال الحل الحالي بأفضل الحلول الموجودة؟"," Iterasi LNS tidak memenuhi semua batasan. Apakah Anda ingin menimpa solusi saat ini dengan solusi terbaik yang ditemukan?"," LNS تکرار تمام رکاوٹوں کو پورا نہیں کرتا ہے۔ کیا آپ موجودہ حل کو بہترین مل جانے والے حل کے ساتھ ادلھائ کرنا چاہتے ہیں؟"," LNS পুনরাবৃত্তি সমস্ত সীমাবদ্ধতা পূরণ করে না। আপনি কি সলিউড পাওয়া সলিউশন সহ বর্তমান সলিউশনটি ওভাররাইট করতে চান?"," Utaratibu wa LNS hauridhishi vizuizi vyote. Je! Unataka kuweka suluhisho la sasa na suluhisho bora zaidi?"," تکرارهای LNS همه محدودیت ها را برآورده نمی کند. آیا می خواهید راه حل فعلی را با بهترین راه حل پیدا کنید؟"," Pengulangan LNS tidak memenuhi semua kekangan. Adakah anda ingin menimpa penyelesaian semasa dengan penyelesaian terbaik yang dijumpai?"]
[" must have been visited once (current number of visits: "," bir kez ziyaret edilmiş olmalıdır (mevcut ziyaret sayısı:"," muss einmal besucht worden sein (aktuelle Anzahl der Besuche:"," debe haber sido visitado una vez (número actual de visitas:"," doit avoir été visité une fois (nombre actuel de visites:"," deve essere stato visitato una volta (numero attuale di visite:"," deve ter sido visitado uma vez (número atual de visitas:"," يجب أن يكون قد تمت زيارته مرة واحدة (عدد الزيارات الحالي:"," harus dikunjungi satu kali (jumlah kunjungan saat ini:"," ایک بار ضرور ملاحظہ کیا گیا ہوگا (موجودہ دوروں کی تعداد:"," অবশ্যই একবার পরিদর্শন করা হয়েছে (ভিজিটের বর্তমান সংখ্যা:"," lazima ilizuru mara moja (idadi ya sasa ya ziara:"," باید یک بار بازدید شده باشد (تعداد بازدیدهای فعلی:"," mesti pernah dikunjungi sekali (jumlah lawatan semasa:"]
[" must not be visited."," ziyaret edilmemelidir."," darf nicht besucht werden."," no debe ser visitado."," ne doit pas être visité."," non deve essere visitato."," não deve ser visitado."," لا يجب زيارته."," tidak boleh dikunjungi."," دورے نہیں کرنا چاہئے۔"," অবশ্যই পরিদর্শন করা হবে না।"," haipaswi kutembelewa."," نباید بازدید شود"," mesti tidak dilawati."]
[" out of ","  dışında","  aus","  fuera de","  hors de","  fuori da","  fora de","  بعيدا عن المكان"," dari"," سے باہر"," এর বাইরে"," nje ya"," بیرون از"," daripada"]
[" returns to the starting location past its time window."," zaman penceresinin ötesinde başlangıç ​​konumuna geri döner."," kehrt nach seinem Zeitfenster zum Startort zurück."," vuelve a la ubicación inicial pasada su ventana de tiempo."," revient à l'emplacement de départ après sa fenêtre de temps."," ritorna alla posizione di partenza oltre la sua finestra temporale."," retorna ao local de partida após sua janela de tempo."," يعود إلى موقع البداية بعد نافذة الوقت."," kembali ke lokasi awal setelah jendela waktunya."," اپنے وقت کی کھڑکی سے گزرنے والی جگہ پر لوٹتا ہے۔"," সময় উইন্ডো পেরিয়ে প্রারম্ভিক অবস্থানে ফিরে আসে।"," inarudi mahali pa kuanzia zamani ya dirisha la wakati."," از پنجره زمان خود به محل شروع باز می گردد."," kembali ke lokasi permulaan setelah jangka masa."]
[" seconds","  saniye","  Sekunden","  segundos","  secondes","  secondi","  segundos","  ثواني"," detik"," سیکنڈ"," সেকেন্ড"," sekunde"," ثانیه"," saat"]
[" seconds) and overwrite the existing coordinate data. By clicking the Yes button below, you confirm that you accept Bing Maps Terms of Service. Do you want to continue?"," saniye) ve mevcut koordinat verilerinin üzerine yazın. Aşağıdaki Evet düğmesini tıklayarak, Bing Haritalar Hizmet Şartları'nı kabul ettiğinizi onaylarsınız. Devam etmek istiyor musun?"," Sekunden) und überschreiben Sie die vorhandenen Koordinatendaten. Durch Klicken auf die Schaltfläche Ja unten bestätigen Sie, dass Sie die Nutzungsbedingungen von Bing Maps akzeptieren. Wollen Sie fortfahren?"," segundos) y sobrescriba los datos de coordenadas existentes. Al hacer clic en el botón Sí a continuación, confirma que acepta los Términos de servicio de Bing Maps. ¿Quieres continuar?"," secondes) et écraser les données de coordonnées existantes. En cliquant sur le bouton Oui ci-dessous, vous confirmez que vous acceptez les conditions d'utilisation de Bing Maps. Voulez-vous continuer?"," secondi) e sovrascrivere i dati delle coordinate esistenti. Facendo clic sul pulsante Sì di seguito, confermi di accettare i Termini di servizio di Bing Maps. Vuoi continuare?"," segundos) e sobrescrever os dados de coordenadas existentes. Ao clicar no botão Sim abaixo, você confirma que aceita os Termos de Serviço do Bing Maps. Você quer continuar?"," ثواني) والكتابة فوق بيانات الإحداثيات الموجودة. بالنقر فوق الزر \"نعم\" أدناه ، فإنك تؤكد قبولك لشروط خدمة خرائط Bing. هل تريد الاستمرار؟"," detik) dan menimpa data koordinat yang ada. Dengan mengklik tombol Ya di bawah ini, Anda mengonfirmasi bahwa Anda menerima Persyaratan Layanan Bing Maps. Apakah Anda ingin melanjutkan?"," سیکنڈ) اور موجودہ کوآرڈینیٹ ڈیٹا کو ادلیکھت۔ ذیل میں ہاں کے بٹن پر کلک کرکے ، آپ اس کی تصدیق کرتے ہیں کہ آپ Bing میپ سروس کی شرائط کو قبول کرتے ہیں۔ کیا آپ جاری رکھنا چاہتے ہیں؟"," সেকেন্ড) এবং বিদ্যমান স্থানাঙ্ক ডেটা ওভাররাইট করুন। নীচের হ্যাঁ বোতামটি ক্লিক করে, আপনি নিশ্চিত হয়েছিলেন যে আপনি বিং মানচিত্র পরিষেবার শর্তাদি স্বীকার করেছেন। আপনি কি অবিরত করতে চান?"," sekunde) na andika data zilizopo za uratibu. Kwa kubofya kitufe cha Ndio hapa chini, unathibitisha kwamba unakubali Sheria na Masharti ya Ramani za Bing. Je! Unataka kuendelea?"," ثانیه) و مختصات موجود را بازنویسی کنید. با کلیک بر روی دکمه بله در زیر ، تأیید می کنید که شرایط خدمات Bing Maps را می پذیرید. می خواهید ادامه دهید؟"," saat) dan ganti data koordinat yang ada. Dengan mengklik butang Ya di bawah, anda mengesahkan bahawa anda menerima Syarat Perkhidmatan Peta Bing. Adakah anda mahu meneruskan?"]
[" seconds), and overwrite existing solution data. Do you want to continue?"," saniye) ve mevcut çözüm verilerinin üzerine yazın. Devam etmek istiyor musun?"," Sekunden) und überschreiben Sie vorhandene Lösungsdaten. Wollen Sie fortfahren?"," segundos) y sobrescriba los datos de la solución existente. ¿Quieres continuar?"," secondes) et écraser les données de solution existantes. Voulez-vous continuer?"," secondi) e sovrascrivere i dati della soluzione esistente. Vuoi continuare?"," segundos) e sobrescrever os dados da solução existentes. Você quer continuar?"," ثواني) ، والكتابة فوق بيانات الحل الموجودة. هل تريد الاستمرار؟"," detik), dan menimpa data solusi yang ada. Apakah Anda ingin melanjutkan?"," سیکنڈ) ، اور موجودہ حل ڈیٹا کو ادلیکھت کریں۔ کیا آپ جاری رکھنا چاہتے ہیں؟"," সেকেন্ড), এবং বিদ্যমান সমাধানের ডেটা ওভাররাইট করে। আপনি কি অবিরত করতে চান?"," sekunde), na andika data ya suluhisho iliyopo. Je! Unataka kuendelea?"," ثانیه) ، و داده های راه حل موجود را بازنویسی کنید. می خواهید ادامه دهید؟"," saat), dan menimpa data penyelesaian yang ada. Adakah anda mahu meneruskan?"]
[" seconds), overwrite existing solution data, and erase the visualization data. Do you want to continue?"," saniye), mevcut çözüm verilerinin üzerine yazın ve görselleştirme verilerini silin. Devam etmek istiyor musun?"," Sekunden), überschreiben Sie vorhandene Lösungsdaten und löschen Sie die Visualisierungsdaten. Wollen Sie fortfahren?"," segundos), sobrescriba los datos de la solución existente y borre los datos de visualización. ¿Quieres continuar?"," secondes), écrasez les données de solution existantes et effacez les données de visualisation. Voulez-vous continuer?"," secondi), sovrascrivere i dati della soluzione esistente e cancellare i dati di visualizzazione. Vuoi continuare?"," segundos), sobrescrever os dados da solução existentes e apagar os dados de visualização. Você quer continuar?"," ثواني) ، والكتابة فوق بيانات الحل الموجودة ، ومحو بيانات التصور. هل تريد الاستمرار؟"," detik), menimpa data solusi yang ada, dan menghapus data visualisasi. Apakah Anda ingin melanjutkan?"," سیکنڈز) ، موجودہ حل ڈیٹا کو ادلیکھت کریں ، اور ویژنائزیشن ڈیٹا کو مٹا دیں۔ کیا آپ جاری رکھنا چاہتے ہیں؟"," সেকেন্ড), বিদ্যমান সমাধানের ডেটা ওভাররাইট করুন এবং ভিজ্যুয়ালাইজেশন ডেটা মুছুন। আপনি কি অবিরত করতে চান?"," sekunde), andika data ya suluhisho iliyopo, na ufute data ya taswira. Je! Unataka kuendelea?"," ثانیه) ، داده های راه حل موجود را دوباره بنویسید و داده های تجسم را پاک کنید. می خواهید ادامه دهید؟"," saat), menimpa data penyelesaian yang ada, dan menghapus data visualisasi. Adakah anda mahu meneruskan?"]
[" seconds), overwrite the existing coordinate data, and erase existing distance data. By clicking the Yes button below, you confirm that you accept Bing Maps Terms of Service. Do you want to continue?"," saniye), mevcut koordinat verilerinin üzerine yazın ve mevcut mesafe verilerini silin. Aşağıdaki Evet düğmesini tıklayarak, Bing Haritalar Hizmet Şartları'nı kabul ettiğinizi onaylarsınız. Devam etmek istiyor musun?"," Sekunden), überschreiben Sie die vorhandenen Koordinatendaten und löschen Sie vorhandene Entfernungsdaten. Durch Klicken auf die Schaltfläche Ja unten bestätigen Sie, dass Sie die Nutzungsbedingungen von Bing Maps akzeptieren. Wollen Sie fortfahren?"," segundos), sobrescriba los datos de coordenadas existentes y borre los datos de distancia existentes. Al hacer clic en el botón Sí a continuación, confirma que acepta los Términos de servicio de Bing Maps. ¿Quieres continuar?"," secondes), écrasez les données de coordonnées existantes et effacez les données de distance existantes. En cliquant sur le bouton Oui ci-dessous, vous confirmez que vous acceptez les conditions d'utilisation de Bing Maps. Voulez-vous continuer?"," secondi), sovrascrivere i dati di coordinate esistenti e cancellare i dati di distanza esistenti. Facendo clic sul pulsante Sì di seguito, confermi di accettare i Termini di servizio di Bing Maps. Vuoi continuare?"," segundos), sobrescrever os dados de coordenadas existentes e apagar os dados de distância existentes. Ao clicar no botão Sim abaixo, você confirma que aceita os Termos de Serviço do Bing Maps. Você quer continuar?"," ثواني) ، والكتابة فوق بيانات الإحداثيات الموجودة ، ومحو بيانات المسافة الموجودة. بالنقر فوق الزر \"نعم\" أدناه ، فإنك تؤكد قبولك لشروط خدمة خرائط Bing. هل تريد الاستمرار؟"," detik), menimpa data koordinat yang ada, dan menghapus data jarak yang ada. Dengan mengklik tombol Ya di bawah ini, Anda mengonfirmasi bahwa Anda menerima Persyaratan Layanan Bing Maps. Apakah Anda ingin melanjutkan?"," سیکنڈ) ، موجودہ کوآرڈینیٹ ڈیٹا کو ادلیکھت کریں ، اور موجودہ فاصلاتی ڈیٹا کو مٹا دیں۔ ذیل میں ہاں کے بٹن پر کلک کرکے ، آپ اس کی تصدیق کرتے ہیں کہ آپ Bing میپ سروس کی شرائط کو قبول کرتے ہیں۔ کیا آپ جاری رکھنا چاہتے ہیں؟"," সেকেন্ড), বিদ্যমান স্থানাঙ্কের ডেটা ওভাররাইট করুন এবং বিদ্যমান দূরত্বের ডেটা মুছুন। নীচের হ্যাঁ বোতামটি ক্লিক করে, আপনি নিশ্চিত হয়েছিলেন যে আপনি বিং মানচিত্র পরিষেবার শর্তাদি স্বীকার করেছেন। আপনি কি অবিরত করতে চান?"," sekunde), weka juu data iliyopo ya uratibu, na ufute data ya umbali iliyopo. Kwa kubofya kitufe cha Ndio hapa chini, unathibitisha kwamba unakubali Sheria na Masharti ya Ramani za Bing. Je! Unataka kuendelea?"," ثانیه) ، داده های مختصات موجود را دوباره بنویسید و داده های فاصله موجود را پاک کنید. با کلیک بر روی دکمه بله در زیر ، تأیید می کنید که شرایط خدمات Bing Maps را می پذیرید. می خواهید ادامه دهید؟"," saat), menimpa data koordinat yang ada, dan menghapus data jarak yang ada. Dengan mengklik butang Ya di bawah, anda mengesahkan bahawa anda menerima Syarat Perkhidmatan Peta Bing. Adakah anda mahu meneruskan?"]
[" seconds). By clicking the Yes button below, you confirm that you accept Bing Maps Terms of Service. Do you want to continue?"," saniye). Aşağıdaki Evet düğmesini tıklayarak, Bing Haritalar Hizmet Şartları'nı kabul ettiğinizi onaylarsınız. Devam etmek istiyor musun?"," Sekunden). Durch Klicken auf die Schaltfläche Ja unten bestätigen Sie, dass Sie die Nutzungsbedingungen von Bing Maps akzeptieren. Wollen Sie fortfahren?"," segundos). Al hacer clic en el botón Sí a continuación, confirma que acepta los Términos de servicio de Bing Maps. ¿Quieres continuar?"," secondes). En cliquant sur le bouton Oui ci-dessous, vous confirmez que vous acceptez les conditions d'utilisation de Bing Maps. Voulez-vous continuer?"," secondi). Facendo clic sul pulsante Sì di seguito, confermi di accettare i Termini di servizio di Bing Maps. Vuoi continuare?"," segundos). Ao clicar no botão Sim abaixo, você confirma que aceita os Termos de Serviço do Bing Maps. Você quer continuar?"," ثواني). بالنقر فوق الزر \"نعم\" أدناه ، فإنك تؤكد قبولك لشروط خدمة خرائط Bing. هل تريد الاستمرار؟"," detik). Dengan mengklik tombol Ya di bawah ini, Anda mengonfirmasi bahwa Anda menerima Persyaratan Layanan Bing Maps. Apakah Anda ingin melanjutkan?"," سیکنڈ) ذیل میں ہاں کے بٹن پر کلک کرکے ، آپ اس کی تصدیق کرتے ہیں کہ آپ Bing میپ سروس کی شرائط کو قبول کرتے ہیں۔ کیا آپ جاری رکھنا چاہتے ہیں؟"," সেকেন্ড)। নীচের হ্যাঁ বোতামটি ক্লিক করে, আপনি নিশ্চিত হয়েছিলেন যে আপনি বিং মানচিত্রের পরিষেবার শর্তাদি স্বীকার করেছেন। আপনি কি অবিরত করতে চান?"," sekunde). Kwa kubofya kitufe cha Ndio hapa chini, unathibitisha kwamba unakubali Sheria na Masharti ya Ramani za Bing. Je! Unataka kuendelea?"," ثانیه) با کلیک بر روی دکمه بله در زیر ، تأیید می کنید که شرایط خدمات Bing Maps را می پذیرید. می خواهید ادامه دهید؟"," saat). Dengan mengklik butang Ya di bawah, anda mengesahkan bahawa anda menerima Syarat Perkhidmatan Peta Bing. Adakah anda mahu meneruskan?"]
[" seconds). Do you want to continue?"," saniye). Devam etmek istiyor musun?"," Sekunden). Wollen Sie fortfahren?"," segundos). ¿Quieres continuar?"," secondes). Voulez-vous continuer?"," secondi). Vuoi continuare?"," segundos). Você quer continuar?"," ثواني). هل تريد الاستمرار؟"," detik). Apakah Anda ingin melanjutkan?"," سیکنڈ) کیا آپ جاری رکھنا چاہتے ہیں؟"," সেকেন্ড)। আপনি কি অবিরত করতে চান?"," sekunde). Je! Unataka kuendelea?"," ثانیه) می خواهید ادامه دهید؟"," saat). Adakah anda mahu meneruskan?"]
[" seconds. Do you want to continue?"," saniye sürecek. Devam etmek istiyor musun?"," Sekunden. Wollen Sie fortfahren?"," segundos. ¿Quieres continuar?"," secondes. Voulez-vous continuer?"," secondi. Vuoi continuare?"," segundos. Você quer continuar?"," ثواني. هل تريد الاستمرار؟"," detik. Apakah Anda ingin melanjutkan?"," سیکنڈ کیا آپ جاری رکھنا چاہتے ہیں؟"," সেকেন্ড আপনি কি অবিরত করতে চান?"," sekunde. Je! Unataka kuendelea?"," ثانیه می خواهید ادامه دهید؟"," saat. Adakah anda mahu meneruskan?"]
["(Pickup amount; Delivery amount)","(Teslim alma miktarı; Teslimat miktarı)","(Abholbetrag; Lieferbetrag)","(Importe de recogida; Importe de entrega)","(Montant du ramassage; montant de la livraison)","(Importo del ritiro; Importo della consegna)","(Valor de retirada; valor de entrega)","(مبلغ الاستلام ؛ مبلغ التسليم)","(Jumlah pengambilan; Jumlah pengiriman)","(اٹھاو رقم Deli ترسیل کی رقم)","(পিকআপ পরিমাণ; বিতরণের পরিমাণ)","(Kiasi cha kuchukua, kiasi cha utoaji)","(مبلغ وانت ؛ مبلغ تحویل)","(Jumlah pengambilan; Jumlah penghantaran)"]
["(Time window start;Time window end)","(Zaman penceresi başlangıcı; Zaman penceresi sonu)","(Beginn des Zeitfensters; Ende des Zeitfensters)","(Inicio de la ventana de tiempo; Fin de la ventana de tiempo)","(Début de la fenêtre de temps; Fin de la fenêtre de temps)","(Inizio finestra temporale; Fine finestra temporale)","(Início da janela de tempo; Fim da janela de tempo)","(بدء النافذة الزمنية ، نهاية النافذة الزمنية)","(Jendela waktu mulai; Jendela waktu berakhir)","(ٹائم ونڈو اسٹارٹ Time ٹائم ونڈو کا اختتام)","(সময় উইন্ডো শুরু; সময় উইন্ডো শেষ)","(Kuanza kwa dirisha la saa; Mwisho wa dirisha la saa)","(شروع پنجره زمان ؛ پایان پنجره زمان)","(Masa tetingkap bermula; Tingkap masa berakhir)"]
[". Best total net profit so far: ",". Şimdiye kadarki en iyi toplam net kar:",". Bester Gesamtnettogewinn bisher:",". Mejor beneficio neto total hasta ahora:",". Meilleur bénéfice net total à ce jour:",". Miglior profitto netto totale finora:",". Melhor lucro líquido total até agora:",". أفضل إجمالي صافي ربح حتى الآن:",". Total laba bersih terbaik sejauh ini:",". اب تک کا بہترین مجموعی منافع:","। এখন পর্যন্ত সেরা মোট নিট লাভ:",". Faida kamili ya jumla hadi sasa:",". بهترین سود خالص کل تاکنون:",". Jumlah keuntungan bersih terbaik setakat ini:"]
[". Do you want to overwrite the current solution with the best found solution?",". Bulunan en iyi çözümü mevcut çözümün üzerine yazmak ister misiniz?",". Möchten Sie die aktuelle Lösung mit der am besten gefundenen Lösung überschreiben?",". ¿Quiere sobrescribir la solución actual con la mejor solución encontrada?",". Voulez-vous remplacer la solution actuelle par la meilleure solution trouvée?",". Vuoi sovrascrivere la soluzione corrente con la migliore soluzione trovata?",". Quer substituir a solução atual pela melhor solução encontrada?",". هل تريد استبدال الحل الحالي بأفضل الحلول الموجودة؟",". Apakah Anda ingin menimpa solusi saat ini dengan solusi terbaik yang ditemukan?",". کیا آپ موجودہ حل کو بہترین ڈھونڈنے والے حل کے ساتھ اوور رائٹ کرنا چاہتے ہیں؟","। আপনি কি সলিউড পাওয়া সলিউশন সহ বর্তমান সলিউশনটি ওভাররাইট করতে চান?",". Je! Unataka kuweka suluhisho la sasa na suluhisho bora zaidi?",". آیا می خواهید راه حل فعلی را با بهترین راه حل پیدا کنید؟",". Adakah anda ingin menimpa penyelesaian semasa dengan penyelesaian terbaik yang dijumpai?"]
["0. Optional - Reset the workbook","0. İsteğe bağlı - Çalışma kitabını sıfırlayın","0. Optional - Setzen Sie die Arbeitsmappe zurück","0. Opcional: restablecer el libro de trabajo","0. Facultatif - Réinitialisez le classeur","0. Opzionale: reimpostare la cartella di lavoro","0. Opcional - Redefina a pasta de trabalho","0. اختياري - إعادة تعيين المصنف","0. Opsional - Atur ulang buku kerja","0. اختیاری - ورک بک کو دوبارہ ترتیب دیں","0. alচ্ছিক - ওয়ার্কবুকটি রিসেট করুন","0. Hiari - Rudisha kitabu cha kazi","0. اختیاری - تنظیم مجدد کتاب کار","0. Pilihan - Tetapkan semula buku kerja"]
["0.Interface","0. Arayüz","0.Interface","0.Interfaz","0.Interface","0.Interfaccia","0. Interface","0. الواجهة","0. Antarmuka","0. انٹرفیس","0. অভ্যন্তরীণ","Kiolesura cha 0.","0. رابط","0. Antara muka"]
["1.1 Setup Locations Worksheet","1.1 Kurulum Konumları Çalışma Sayfası","1.1 Arbeitsblatt zum Einrichten von Standorten","1.1 Hoja de trabajo de configuración de ubicaciones","1.1 Feuille de travail des emplacements d'installation","1.1 Foglio di lavoro delle posizioni di installazione","1.1 Planilha de locais de configuração","1.1 إعداد ورقة عمل المواقع","1.1 Menyiapkan Lembar Kerja Lokasi","1.1 سیٹ اپ لوکیشنز ورکشیٹ","1.1 সেটআপ লোকেশন ওয়ার্কশিট","Karatasi ya Kazi ya Kuweka Maeneo ya 1.1","1.1 کاربرگ مکانها را تنظیم کنید","1.1 Lembar Kerja Lokasi Persediaan"]
["1.2 Optional - Populate Lat/Lon using addresses","1.2 İsteğe bağlı - Adresleri kullanarak Enlem / Boylam bulun","1.2 Optional - Füllen Sie Lat / Lon mit Adressen","1.2 Opcional - Complete Lat / Lon usando direcciones","1.2 Facultatif - Remplissez Lat / Lon à l'aide d'adresses","1.2 Opzionale - Popolare Lat / Lon utilizzando gli indirizzi","1.2 Opcional - Preencher Lat / Lon usando endereços","1.2 اختياري - تعبئة خطوط الطول / العرض باستخدام العناوين","1.2 Opsional - Isi Lintang / Bujur menggunakan alamat","1.2 اختیاری - لیٹ / لون کو پتوں کا استعمال کرتے ہوئے آباد کریں","১.২ alচ্ছিক - ঠিকানা ব্যবহার করে ল্যাট / লনকে জনিত করুন","1.2 Hiari - Jaza watu Lat / Lon kwa kutumia anwani","1.2 اختیاری - Lat / Lon را با استفاده از آدرسها جمع کنید","1.2 Pilihan - Isi Lat / Lon menggunakan alamat"]
["1.3 Optional - Sort locations alphabetically","1.3 İsteğe bağlı - Konumları alfabetik olarak sıralayın","1.3 Optional - Standorte alphabetisch sortieren","1.3 Opcional: ordenar las ubicaciones alfabéticamente","1.3 Facultatif - Trier les emplacements par ordre alphabétique","1.3 Opzionale: ordina le posizioni in ordine alfabetico","1.3 Opcional - Classifique os locais em ordem alfabética","1.3 اختياري - فرز المواقع أبجديًا","1.3 Opsional - Urutkan lokasi menurut abjad","1.3 اختیاری - حروف تہجی کے مطابق مقامات کی ترتیب دیں","1.3 alচ্ছিক - বর্ণমালা অনুসারে অবস্থানগুলি বাছাই করুন","1.3 Hiari - Panga maeneo kwa herufi","1.3 اختیاری - مرتب سازی بر اساس حروف الفبا","1.3 Pilihan - Susun lokasi mengikut abjad"]
["1.Locations","1. Konumlar","1. Standorte","1 ubicaciones","1.Localisations","1. Sedi","1. Locais","1. المواقع","1. Lokasi","1. مقامات","1. লোকেশন","1. Mahali","1. مکان ها","1. Lokasi"]
["2.1 Setup Distances Worksheet","2.1 Mesafeleri Ayarlama Çalışma Sayfası","2.1 Arbeitsblatt zum Einrichten von Entfernungen","2.1 Hoja de trabajo de configuración de distancias","2.1 Feuille de calcul des distances de configuration","2.1 Foglio di lavoro per l'impostazione delle distanze","2.1 Planilha de Distâncias de Configuração","2.1 إعداد ورقة عمل المسافات","2.1 Pengaturan Jarak Lembar Kerja","2.1 سیٹ اپ فاصلے کی ورک شیٹ","২.১ সেটআপ দূরত্বের কার্যপত্রক","2.1 Karatasi ya Kuweka Masafa","2.1 راه اندازی فاصله کاربر","2.1 Menyusun Lembaran Kerja Jarak"]
["2.2 Optional - Populate Distances Worksheet","2.2 İsteğe Bağlı - Mesafeleri hesapla","2.2 Optional - Arbeitsblatt \"Entfernungen füllen\"","2.2 Opcional - Hoja de trabajo para completar distancias","2.2 Facultatif - Feuille de calcul Remplir les distances","2.2 Opzionale - Foglio di lavoro per popolare le distanze","2.2 Opcional - Planilha de preenchimento de distâncias","2.2 اختياري - ورقة عمل تعبئة المسافات","2.2 Opsional - Isi Lembar Kerja Jarak","2.2 اختیاری - آبادی فاصلوں کی ورک شیٹ","২.২ alচ্ছিক - দূরত্বের কার্যপত্রককে পপুলেট করুন","2.2 Hiari - Karatasi ya Kazi ya Masafa ya Watu","2.2 اختیاری - برگه فاصله را جمع کنید","2.2 Pilihan - Isi Lembaran Kerja Jarak"]
["2.Distances","2. Mesafeler","2. Entfernungen","2.Distancias","2. distances","2.Distanze","2. Distâncias","2. المسافات","2. Jarak","2. فاصلے","2. দূরত্ব","2. Umbali","2. فاصله ها","2. jarak"]
["3. Setup Vehicles Worksheet","3. Araçlar Çalışma Sayfasını Ayarla","3. Fahrzeugarbeitsblatt einrichten","3. Hoja de trabajo de configuración de vehículos","3. Feuille de travail de configuration des véhicules","3. Foglio di lavoro per la configurazione dei veicoli","3. Planilha de configuração de veículos","3. إعداد ورقة عمل المركبات","3. Siapkan Lembar Kerja Kendaraan","3. گاڑیوں کی ورک شیٹ سیٹ اپ کریں","৩. যানবাহনের কার্যপত্রক সেটআপ করুন","3. Kuweka Karatasi ya Kazi ya Magari","3. صفحه کار وسایل نقلیه را تنظیم کنید","3. Sediakan Lembaran Kerja Kenderaan"]
["3.1.Vehicle Compatibility","3.1. Araç Uyumluluğu","3.1.Fahrzeugkompatibilität","3.1.Compatibilidad de vehículos","3.1.Compatibilité du véhicule","3.1 Compatibilità del veicolo","3.1. Compatibilidade do veículo","3.1.التوافق مع المركبات","3.1. Kompatibilitas Kendaraan","3.1. گاڑی کی مطابقت","3.1.ভহিকাল সামঞ্জস্য","3.1.Utangamano wa Gari","3.1 سازگاری خودرو","3.1. Keserasian kenderaan"]
["3.Vehicles","3. Araçlar","3. Fahrzeuge","3.Vehículos","3. véhicules","3.Veicoli","3. Veículos","3 - المركبات","3. Kendaraan","3. گاڑیوں","৩.ভহিকেলস","3. Magari","3. وسایل نقلیه","3. kenderaan"]
["4. Setup Solution Worksheet","4. Çözüm Çalışma Sayfası Kurulumu","4. Arbeitsblatt zum Einrichten der Lösung","4. Hoja de trabajo de la solución de configuración","4. Feuille de travail de la solution d'installation","4. Foglio di lavoro della soluzione di installazione","4. Planilha de solução de configuração","4. إعداد ورقة عمل الحل","4. Siapkan Lembar Kerja Solusi","4. حل حلشیٹ ترتیب دیں","৪. সমাধান সমাধান কার্যপত্রক সেটআপ করুন","4. Karatasi ya Kusanidi Suluhisho","4. کاربرگ راه حل راه اندازی","4. Lembar Kerja Penyelesaian Penyediaan"]
["4.Solution","4. Çözüm","4.Lösung","4.Solución","4. solution","4.Soluzione","4. Solução","4. الحل","4. Solusi","4. حل","4. সমাধান","4. Azimio","4. راه حل","4. Penyelesaian"]
["5. Optional - Setup Visualization Worksheet","5. İsteğe Bağlı - Görselleştirme Çalışma Sayfası Kurulumu","5. Optional - Visualisierungsarbeitsblatt einrichten","5. Opcional: configuración de la hoja de trabajo de visualización","5. Facultatif - Feuille de travail de visualisation de configuration","5. Opzionale - Imposta foglio di lavoro per la visualizzazione","5. Opcional - Planilha de visualização de configuração","5. اختياري - إعداد ورقة عمل التصور","5. Opsional - Setup Lembar Kerja Visualisasi","5. اختیاری - ویژوئلائزیشن ورک اپ سیٹ کریں","৫. ptionচ্ছিক - ভিজ্যুয়ালাইজেশন কার্যপত্রক সেটআপ করুন","5. Hiari - Sanidi Karatasi ya Maonyesho","5. اختیاری - راه اندازی کاربرگ تجسم","5. Pilihan - Sediakan Lembaran Kerja Visualisasi"]
["5.Optional - Visualization","5. İsteğe bağlı - Görselleştirme","5.Optional - Visualisierung","5.Opcional - Visualización","5. facultatif - visualisation","5.Opzionale - Visualizzazione","5. Opcional - Visualização","5. اختياري - التصور","5. Opsional - Visualisasi","5. اختیاری - تصور","5. alচ্ছিক - ভিজ্যুয়ালাইজেশন","5. Chaguo - Taswira","5. اختیاری - تجسم","5. Pilihan - Visualisasi"]
["5.Visualization","5. Görselleştirme","5.Visualisierung","5.Visualización","5. visualisation","5.Visualizzazione","5.Visualização","5. التصور","5. Visualisasi","5. ویژنائزیشن","5. ভিজুয়ালাইজেশন","5. Uonekano","5. تجسم","5. Visualisasi"]
["6.1 Engage VRP Spreadsheet Solver","6.1 VRP Elektronik Tablo Çözücüsünü Çalıştırın","6.1 Aktivieren Sie VRP Spreadsheet Solver","6.1 Activar el solucionador de hojas de cálculo VRP","6.1 Engager le solveur de feuille de calcul VRP","6.1 Attivazione del risolutore di fogli di calcolo VRP","6.1 Engage VRP Spreadsheet Solver","6.1 إشراك برنامج حل جداول بيانات VRP","6.1 Menggunakan Pemecah Lembar Kerja VRP","6.1 وی آر پی اسپریڈشیٹ سولور میں مشغول رہیں","6.1 ভিআরপি স্প্রেডশিট সলভার জড়িত","6.1 Shiriki Kitatuzi cha Lahajedwali ya VRP","6.1 درگیر کردن صفحه گسترده صفحه VRP","6.1 Libatkan Pemecah Spreadsheet VRP"]
["6.2 Optional - Feasibility check","6.2 İsteğe bağlı - Fizibilite kontrolü","6.2 Optional - Machbarkeitsprüfung","6.2 Opcional - Verificación de viabilidad","6.2 Facultatif - Contrôle de faisabilité","6.2 Opzionale - Verifica di fattibilità","6.2 Opcional - Verificação de viabilidade","6.2 اختياري - فحص الجدوى","6.2 Opsional - Pemeriksaan kelayakan","6.2 اختیاری - فزیبلٹی چیک",".2.২ alচ্ছিক - সম্ভাব্যতা পরীক্ষা করা","6.2 Hiari - Angalia upembuzi yakinifu","6.2 اختیاری - بررسی امکان سنجی","6.2 Pilihan - Pemeriksaan kebolehlaksanaan"]
["6.3 Optional - Engage external solver","6.3 İsteğe bağlı - Harici çözücüyü devreye alın","6.3 Optional - Aktivieren Sie den externen Löser","6.3 Opcional - Activar solucionador externo","6.3 Facultatif - Engager un solveur externe","6.3 Opzionale - Coinvolgere il risolutore esterno","6.3 Opcional - Engate solver externo","6.3 اختياري - إشراك محلل خارجي","6.3 Opsional - Gunakan pemecah eksternal","6.3 اختیاری - بیرونی محلول کو مشغول کریں","6.3 alচ্ছিক - বহিরাগত দ্রাবক জড়িত","6.3 Hiari - Shirikisha suluhisho la nje","6.3 اختیاری - با حل کننده خارجی درگیر شوید","6.3 Pilihan - Libatkan pemecah luaran"]
["6.Solver","6. Çözücü","6.Solver","6 solucionador","6. solveur","6.Solver","6. Solucionador","6- سولفر","6. Solver","6.Solver","6.সোলভার","6. Suluhisho","6. حلقه","6. Selesaikan"]
["A valid Bing Maps Key is required for Lat/Lon to be determined. You can get a free key at https://www.bingmapsportal.com/","Enlem / Boylamın belirlenmesi için geçerli bir Bing Haritalar Anahtarı gereklidir. Ücretsiz anahtarı https://www.bingmapsportal.com/ adresinden edinebilirsiniz.","Für die Ermittlung von Lat / Lon ist ein gültiger Bing Maps-Schlüssel erforderlich. Sie können einen kostenlosen Schlüssel unter https://www.bingmapsportal.com/ erhalten.","Se requiere una clave válida de Bing Maps para determinar Lat / Lon. Puede obtener una clave gratuita en https://www.bingmapsportal.com/","Une clé Bing Maps valide est requise pour que la latitude / longitude soit déterminée. Vous pouvez obtenir une clé gratuite sur https://www.bingmapsportal.com/","Per determinare Lat / Lon è necessaria una chiave Bing Maps valida. Puoi ottenere una chiave gratuita su https://www.bingmapsportal.com/","Uma chave válida do Bing Maps é necessária para que Lat / Lon seja determinado. Você pode obter uma chave gratuita em https://www.bingmapsportal.com/","مطلوب مفتاح خرائط Bing صالح لكي يتم تحديد Lat / Lon. يمكنك الحصول على مفتاح مجاني على https://www.bingmapsportal.com/","Kunci Bing Maps yang valid diperlukan untuk Lintang / Bujur yang akan ditentukan. Anda bisa mendapatkan kunci gratis di https://www.bingmapsportal.com/","لیٹ / لون کے تعی toن کے ل. ایک درست بنگ میپز کی کی ضرورت ہے۔ آپ https://www.bingmapsportal.com/ پر ایک مفت کلید حاصل کرسکتے ہیں۔","ল্যাট / লন নির্ধারণের জন্য একটি বৈধ বিং মানচিত্র কী প্রয়োজন। আপনি https://www.bingmapsportal.com/ এ একটি ফ্রি কী পেতে পারেন","Ufunguo halali wa Ramani za Bing unahitajika ili Lat / Lon iamuliwe. Unaweza kupata kitufe cha bure kwa https://www.bingmapsportal.com/","برای تعیین Lat / Lon یک کلید Bing Maps معتبر لازم است. می توانید یک کلید رایگان از https://www.bingmapsportal.com/ دریافت کنید","Kunci Peta Bing yang sah diperlukan agar Lat / Lon dapat ditentukan. Anda boleh mendapatkan kunci percuma di https://www.bingmapsportal.com/"]
["A valid Bing Maps Key is required for the distances to be determined. You can get a free key at https://www.bingmapsportal.com/","Mesafelerin belirlenmesi için geçerli bir Bing Haritalar Anahtarı gereklidir. Ücretsiz anahtarı https://www.bingmapsportal.com/ adresinden edinebilirsiniz.","Für die zu bestimmenden Entfernungen ist ein gültiger Bing Maps Key erforderlich. Sie können einen kostenlosen Schlüssel unter https://www.bingmapsportal.com/ erhalten.","Se requiere una clave de Bing Maps válida para determinar las distancias. Puede obtener una clave gratuita en https://www.bingmapsportal.com/","Une clé Bing Maps valide est requise pour les distances à déterminer. Vous pouvez obtenir une clé gratuite sur https://www.bingmapsportal.com/","Per determinare le distanze è necessaria una chiave Bing Maps valida. Puoi ottenere una chiave gratuita su https://www.bingmapsportal.com/","Uma chave válida do Bing Maps é necessária para que as distâncias sejam determinadas. Você pode obter uma chave gratuita em https://www.bingmapsportal.com/","مطلوب مفتاح خرائط Bing صالح لتحديد المسافات. يمكنك الحصول على مفتاح مجاني على https://www.bingmapsportal.com/","Kunci Bing Maps yang valid diperlukan untuk menentukan jarak. Anda bisa mendapatkan kunci gratis di https://www.bingmapsportal.com/","فاصلوں کا تعین کرنے کے لئے ایک درست بنگلہ میپس کی ضرورت ہے۔ آپ https://www.bingmapsportal.com/ پر ایک مفت کلید حاصل کرسکتے ہیں۔","দূরত্ব নির্ধারণের জন্য একটি বৈধ বিং মানচিত্র কী প্রয়োজন। আপনি https://www.bingmapsportal.com/ এ একটি ফ্রি কী পেতে পারেন","Ufunguo halali wa Ramani za Bing unahitajika kwa umbali kuamuliwa. Unaweza kupata kitufe cha bure kwa https://www.bingmapsportal.com/","برای تعیین مسافت ، یک کلید نقشه بینگ معتبر مورد نیاز است. می توانید یک کلید رایگان از https://www.bingmapsportal.com/ دریافت کنید","Kunci Peta Bing yang sah diperlukan untuk jarak yang akan ditentukan. Anda boleh mendapatkan kunci percuma di https://www.bingmapsportal.com/"]
["A valid Bing Maps Key is required. You can get a free key at https://www.bingmapsportal.com/","Geçerli bir Bing Haritalar Anahtarı gereklidir. Ücretsiz anahtarı https://www.bingmapsportal.com/ adresinden edinebilirsiniz.","Ein gültiger Bing Maps Key ist erforderlich. Sie können einen kostenlosen Schlüssel unter https://www.bingmapsportal.com/ erhalten.","Se requiere una clave de Bing Maps válida. Puede obtener una clave gratuita en https://www.bingmapsportal.com/","Une clé Bing Maps valide est requise. Vous pouvez obtenir une clé gratuite sur https://www.bingmapsportal.com/","È necessaria una chiave Bing Maps valida. Puoi ottenere una chiave gratuita su https://www.bingmapsportal.com/","É necessária uma chave válida do Bing Maps. Você pode obter uma chave gratuita em https://www.bingmapsportal.com/","مطلوب مفتاح خرائط Bing صالح. يمكنك الحصول على مفتاح مجاني على https://www.bingmapsportal.com/","Diperlukan Bing Maps Key yang valid. Anda bisa mendapatkan kunci gratis di https://www.bingmapsportal.com/","ایک درست بنگ میپس کی ضرورت ہے۔ آپ https://www.bingmapsportal.com/ پر ایک مفت کلید حاصل کرسکتے ہیں۔","একটি বৈধ বিং মানচিত্র কী প্রয়োজন। আপনি https://www.bingmapsportal.com/ এ একটি বিনামূল্যে কী পেতে পারেন","Ufunguo halali wa Ramani za Bing unahitajika. Unaweza kupata kitufe cha bure kwa https://www.bingmapsportal.com/","یک کلید Bing Maps معتبر لازم است. می توانید یک کلید رایگان از https://www.bingmapsportal.com/ دریافت کنید","Kunci Peta Bing yang sah diperlukan. Anda boleh mendapatkan kunci percuma di https://www.bingmapsportal.com/"]
["About","Hakkında","Über","Acerca de","À propos","Di","Sobre","حول","Tentang","کے بارے میں","সম্পর্কিত","Kuhusu","در باره","Mengenai"]
["Address","Adres","Adresse","Habla a","Adresse","Indirizzo","Endereço","عنوان","Alamat","پتہ","ঠিকানা","Anwani","نشانی","Alamat"]
["Address error","Adres hatası","Adressfehler","Error de dirección","Erreur d'adresse","Errore di indirizzo","Erro de endereço","خطأ في العنوان","Kesalahan alamat","پتہ کی خرابی","ঠিকানার ত্রুটি","Hitilafu ya anwani","خطای آدرس","Kesalahan alamat"]
["All coordinates must be input for the distances to be populated.","Mesafelerin hesaplanması için tüm koordinatlar girilmelidir.","Alle Koordinaten müssen eingegeben werden, damit die Entfernungen ausgefüllt werden können.","Deben introducirse todas las coordenadas para completar las distancias.","Toutes les coordonnées doivent être saisies pour que les distances soient renseignées.","Tutte le coordinate devono essere inserite affinché le distanze vengano popolate.","Todas as coordenadas devem ser inseridas para que as distâncias sejam preenchidas.","يجب إدخال جميع الإحداثيات للمسافات المراد ملؤها.","Semua koordinat harus dimasukkan untuk jarak yang akan diisi.","فاصلوں کی آبادی کے ل All تمام کوآرڈینیٹ لازمی ہیں۔","দূরত্বগুলি পপুলেশন করার জন্য সমস্ত স্থানাঙ্ক অবশ্যই ইনপুট হতে হবে।","Kuratibu zote lazima ziwe pembejeo kwa umbali kuwa na watu.","تمام مختصات باید برای مسافتی که باید جمع شود وارد شوند.","Semua koordinat mesti dimasukkan untuk jarak yang akan dihuni."]
["All coordinates must be input for the Visualization worksheet to be created.","Görselleştirme çalışma sayfasının oluşturulması için tüm koordinatlar girilmelidir.","Alle Koordinaten müssen eingegeben werden, damit das Visualisierungsarbeitsblatt erstellt werden kann.","Se deben ingresar todas las coordenadas para que se cree la hoja de trabajo de visualización.","Toutes les coordonnées doivent être saisies pour que la feuille de calcul Visualisation soit créée.","Tutte le coordinate devono essere immesse per poter creare il foglio di lavoro di visualizzazione.","Todas as coordenadas devem ser inseridas para que a planilha de visualização seja criada.","يجب إدخال جميع الإحداثيات حتى يتم إنشاء ورقة عمل التصور.","Semua koordinat harus dimasukkan untuk lembar kerja Visualisasi yang akan dibuat.","تخلیق کاری کے لئے ضوابط سے متعلق ورک شیٹ کیلئے تمام کوآرڈینیٹ لازمی ہیں۔","ভিজ্যুয়ালাইজেশন ওয়ার্কশিটটি তৈরি করার জন্য সমস্ত স্থানাঙ্ক অবশ্যই ইনপুট হতে হবে।","Kuratibu zote lazima ziwe pembejeo kwa laha ya kazi ya Uibuaji.","همه مختصات باید برای ایجاد صفحه کار تجسم وارد شوند.","Semua koordinat mesti dimasukkan agar lembaran kerja Visualisasi dibuat."]
["All vehicles must be compatible with all locations when there is a single type of vehicle.","Tek tip araç olduğunda tüm araçlar tüm lokasyonlarla uyumlu olmalıdır.","Alle Fahrzeuge müssen mit allen Standorten kompatibel sein, wenn es einen einzigen Fahrzeugtyp gibt.","Todos los vehículos deben ser compatibles con todas las ubicaciones cuando hay un solo tipo de vehículo.","Tous les véhicules doivent être compatibles avec tous les emplacements lorsqu'il n'y a qu'un seul type de véhicule.","Tutti i veicoli devono essere compatibili con tutte le località quando esiste un unico tipo di veicolo.","Todos os veículos devem ser compatíveis com todos os locais quando houver um único tipo de veículo.","يجب أن تكون جميع المركبات متوافقة مع جميع المواقع عندما يكون هناك نوع واحد من المركبات.","Semua kendaraan harus kompatibel dengan semua lokasi jika hanya ada satu jenis kendaraan.","جب ایک قسم کی گاڑی ہو تو تمام گاڑیوں کو تمام مقامات کے ساتھ ہم آہنگ ہونا چاہئے۔","যখন একক ধরণের যানবাহন থাকে তখন সমস্ত যানবাহন অবশ্যই সমস্ত অবস্থানের সাথে সামঞ্জস্যপূর্ণ হয়।","Magari yote lazima yaendane na maeneo yote wakati kuna aina moja ya gari.","همه وسایل نقلیه باید با همه مکان ها سازگار باشند در حالی که یک نوع وسیله نقلیه وجود دارد.","Semua kenderaan mesti serasi dengan semua lokasi apabila terdapat satu jenis kenderaan."]
["Arrival time","Varış zamanı","Ankunftszeit","Hora de llegada","Heure d'arrivée","Orario di arrivo","Tempo de chegada","وقت الوصول","Jam kedatangan","آمد کے وقت","আগমনের সময়","Wakati wa kuwasili","زمان رسیدن","Masa ketibaan"]
["Average vehicle speed","Ortalama araç hızı","Durchschnittliche Fahrzeuggeschwindigkeit","Velocidad media del vehículo","Vitesse moyenne du véhicule","Velocità media del veicolo","Velocidade média do veículo","متوسط ​​سرعة السيارة","Kecepatan kendaraan rata-rata","اوسطا گاڑی کی رفتار","গড় যানবাহনের গতি","Wastani wa kasi ya gari","سرعت متوسط ​​خودرو","Kelajuan kenderaan purata"]
["Backhauls?","Önce Dağıt Sonra Topla?","Rücktransport?","Backhauls?","Backhauls?","Backhauls?","Backhauls?","عودة؟","Backhaul?","بیک ہاؤسز؟","ব্যাকহালস?","Kurudishwa nyuma?","عقب انداختن؟","Backhaul?"]
["Bing Maps","Bing Haritalar","Bing Maps","Mapas de Bing","Cartes Bing","Mappe di Bing","Bing Maps","خرائط بنج","Bing Maps","بنگ نقشہ جات","বিং মানচিত্র","Ramani za Bing","نقشه های بینگ","Peta Bing"]
["Bing Maps driving distances (km)","Bing Haritalar sürüş mesafeleri (km)","Bing Maps Fahrstrecken (km)","Distancias de conducción de Bing Maps (km)","Distances de conduite Bing Maps (km)","Distanze di guida di Bing Maps (km)","Distâncias de condução do Bing Maps (km)","مسافات القيادة في خرائط Bing (كم)","Jarak mengemudi Bing Maps (km)","بنگ میپس ڈرائیونگ کی دوری (کلومیٹر)","বিং মানচিত্র ড্রাইভিং দূরত্ব (কিমি)","Ramani za Bing zinazoendesha umbali (km)","مسافت رانندگی نقشه های بینگ (کیلومتر)","Jarak pemanduan Peta Bing (km)"]
["Bing Maps driving distances (miles)","Bing Haritalar sürüş mesafeleri (mil)","Bing Maps Fahrstrecken (Meilen)","Bing Maps recorriendo distancias (millas)","Distances de conduite Bing Maps (miles)","Distanze di guida di Bing Maps (miglia)","Distâncias de condução do Bing Maps (milhas)","مسافات القيادة في خرائط Bing (أميال)","Jarak mengemudi Bing Maps (mil)","بنگ نقشہ جات ڈرائیونگ کی دوری (میل)","বিং মানচিত্র ড্রাইভিং দূরত্ব (মাইল)","Ramani za Bing zinazoendesha umbali (maili)","مسافت رانندگی نقشه های بینگ (مایل)","Peta Bing jarak memandu (batu)"]
["Bing Maps driving durations","Bing Haritalar sürüş süreleri","Bing Maps Fahrdauer","Duraciones de conducción de Bing Maps","Durées de conduite Bing Maps","Durata di guida di Bing Maps","Duração de condução do Bing Maps","فترات القيادة في خرائط Bing","Durasi mengemudi Bing Maps","بنگ نقشہ جات ڈرائیونگ دورانیہ","বিং মানচিত্র ড্রাইভিং সময়কাল","Ramani za Bing zinaendesha muda","Bing Maps مدت زمان رانندگی","Tempoh memandu Peta Bing"]
["Bing Maps route type","Bing Haritalar rota türü","Routentyp für Bing Maps","Tipo de ruta de Bing Maps","Type d'itinéraire Bing Maps","Tipo di percorso di Bing Maps","Tipo de rota do Bing Maps","نوع مسار خرائط Bing","Jenis rute Bing Maps","بنگ میپس کے راستے کی قسم","বিং মানচিত্রের রুটের ধরণ","Aina ya njia ya Ramani za Bing","نوع مسیر Bing Maps","Jenis laluan Peta Bing"]
["Bird flight distances (km)","Kuş uçuş mesafeleri (km)","Vogelflugentfernungen (km)","Distancias de vuelo de aves (km)","Distances de vol des oiseaux (km)","Distanze di volo degli uccelli (km)","Distâncias de voo de pássaros (km)","مسافات طيران الطيور (كم)","Jarak penerbangan burung (km)","پرندوں کی پرواز کا فاصلہ (کلومیٹر)","পাখির বিমান দূরত্ব (কিমি)","Umbali wa ndege wa ndege (km)","مسافت پرواز پرنده (کیلومتر)","Jarak penerbangan burung (km)"]
["Bird flight distances (miles)","Kuş uçuş mesafeleri (mil)","Vogelflugentfernungen (Meilen)","Distancias de vuelo de aves (millas)","Distances de vol des oiseaux (miles)","Distanze di volo degli uccelli (miglia)","Distâncias de voo de pássaros (milhas)","مسافات طيران الطيور (أميال)","Jarak penerbangan burung (mil)","پرندوں کی پرواز کے فاصلے (میل)","পাখির বিমান দূরত্ব (মাইল)","Umbali wa ndege wa ndege (maili)","مسافت پرواز پرنده (مایل)","Jarak penerbangan burung (batu)"]
["Blank","Boş","Leer","Blanco","Vide","Vuoto","Em branco","فارغ","Kosong","خالی","খালি","Tupu","جای خالی","Kosong"]
["By clicking the Yes button below, you confirm that you accept Bing Maps Terms of Service. Do you want to continue?","Aşağıdaki Evet düğmesini tıklayarak, Bing Haritalar Hizmet Şartları'nı kabul ettiğinizi onaylarsınız. Devam etmek istiyor musun?","Durch Klicken auf die Schaltfläche Ja unten bestätigen Sie, dass Sie die Nutzungsbedingungen von Bing Maps akzeptieren. Wollen Sie fortfahren?","Al hacer clic en el botón Sí a continuación, confirma que acepta los Términos de servicio de Bing Maps. ¿Quieres continuar?","En cliquant sur le bouton Oui ci-dessous, vous confirmez que vous acceptez les conditions d'utilisation de Bing Maps. Voulez-vous continuer?","Facendo clic sul pulsante Sì di seguito, confermi di accettare i Termini di servizio di Bing Maps. Vuoi continuare?","Ao clicar no botão Sim abaixo, você confirma que aceita os Termos de Serviço do Bing Maps. Você quer continuar?","بالنقر فوق الزر \"نعم\" أدناه ، فإنك تؤكد قبولك لشروط خدمة خرائط Bing. هل تريد الاستمرار؟","Dengan mengklik tombol Ya di bawah ini, Anda mengonfirmasi bahwa Anda menerima Persyaratan Layanan Bing Maps. Apakah Anda ingin melanjutkan?","ذیل میں ہاں کے بٹن پر کلک کرکے ، آپ اس کی تصدیق کرتے ہیں کہ آپ Bing میپ سروس کی شرائط کو قبول کرتے ہیں۔ کیا آپ جاری رکھنا چاہتے ہیں؟","নীচের হ্যাঁ বোতামটি ক্লিক করে, আপনি নিশ্চিত হয়েছিলেন যে আপনি বিং মানচিত্রের পরিষেবার শর্তাদি স্বীকার করেছেন। আপনি কি অবিরত করতে চান?","Kwa kubofya kitufe cha Ndio hapa chini, unathibitisha kwamba unakubali Sheria na Masharti ya Ramani za Bing. Je! Unataka kuendelea?","با کلیک بر روی دکمه بله در زیر ، تأیید می کنید که شرایط خدمات Bing Maps را می پذیرید. می خواهید ادامه دهید؟","Dengan mengklik butang Ya di bawah, anda mengesahkan bahawa anda menerima Syarat Perkhidmatan Peta Bing. Adakah anda mahu meneruskan?"]
["Capacity","Kapasite","Kapazität","Capacidad","Capacité","Capacità","Capacidade","سعة","Kapasitas","اہلیت","ক্ষমতা","Uwezo","ظرفیت","Kapasiti"]
["Compatible","Uyumlu","kompatibel","Compatible","Compatible","Compatibile","Compatível","متوافق","Cocok","ہم آہنگ","উপযুক্ত","Sambamba","سازگار","Sesuai"]
["Constructive phase...","Yapıcı aşama ...","Konstruktive Phase ...","Fase constructiva ...","Phase constructive ...","Fase costruttiva ...","Fase construtiva ...","المرحلة البناءة ...","Fase konstruktif ...","تعمیری مرحلہ ...","গঠনমূলক পর্যায় ...","Awamu ya ujenzi ...","فاز سازنده ...","Fasa konstruktif ..."]
["Cost per unit distance","Birim mesafe başına maliyet","Kosten pro Entfernungseinheit","Costo por unidad de distancia","Coût par unité de distance","Costo per unità di distanza","Custo por unidade de distância","التكلفة لكل وحدة مسافة","Biaya per satuan jarak","لاگت فی یونٹ فاصلہ","প্রতি ইউনিট দূরত্ব ব্যয়","Gharama kwa umbali wa kitengo","هزینه واحد مسافت","Kos seunit jarak"]
["CPU time limit (seconds)","CPU zaman sınırı (saniye)","CPU-Zeitlimit (Sekunden)","Límite de tiempo de la CPU (segundos)","Limite de temps CPU (secondes)","Limite di tempo della CPU (secondi)","Limite de tempo da CPU (segundos)","حد وقت وحدة المعالجة المركزية (بالثواني)","Batas waktu CPU (detik)","سی پی یو کی وقت کی حد (سیکنڈ)","সিপিইউ সময় সীমা (সেকেন্ড)","Kikomo cha muda wa CPU (sekunde)","محدودیت زمانی CPU (ثانیه)","Had masa CPU (saat)"]
["Cumulative pickup","Kümülatif alım","Kumulative Abholung","Recogida acumulativa","Ramassage cumulatif","Ritiro cumulativo","Coleta cumulativa","لاقط تراكمي","Penjemputan kumulatif","مجموعی اٹھا","ক্রমযুক্ত পিকআপ","Kuchukua nyongeza","وانت تجمعی","Pengambilan kumulatif"]
["Customer ","Müşteri","Kunde","Cliente","Client","Cliente","Cliente","الزبون","Pelanggan","صارف","ক্রেতা","Mteja","مشتری","Pelanggan"]
["Delivery amount","Teslimat miktarı","Lieferbetrag","Importe de la entrega","Montant de la livraison","Importo della consegna","Quantidade de entrega","مبلغ التسليم","Jumlah pengiriman","ترسیل کی رقم","বিতরণ পরিমাণ","Kiasi cha utoaji","مقدار تحویل","Jumlah penghantaran"]
["Departure time","Hareket saati","Abfahrtszeit","Hora de salida","Heure de départ","Orario di partenza","Hora de partida","وقت المغادرة","Waktu keberangkatan","روانگی کا وقت","ছাড়ার সময়","Wakati wa kuondoka","زمان خروج","Masa berlepas"]
["Depot","Depo","Depot","deposito","Dépôt","Deposito","depósito","مستودع","Depot","ڈپو","ডিপো","Bohari","انبار","Depot"]
["Display","Görüntüle","Anzeige","Mostrar","Afficher","Schermo","Mostrar","عرض","Menampilkan","ڈسپلے","প্রদর্শন","Onyesha","نمایش دادن","Paparan"]
["Destination ID","Hedef Kimliği","Ziel-ID","ID de destino","ID de destination","ID destinazione","ID de destino","معرف الوجهة","ID Tujuan","مطلوبہ شناخت","গন্তব্য আইডি","Kitambulisho cha kwenda","شناسه مقصد","ID Destinasi"]
["Detected reasons of infeasibility","Tespit edilen olursuzluk nedenleri","Erkannte Gründe für die Unmöglichkeit","Razones detectadas de inviabilidad","Raisons détectées d'infaisabilité","Rilevati motivi di non fattibilità","Razões de inviabilidade detectadas","تم الكشف عن أسباب عدم الجدوى","Alasan ketidaklayakan yang terdeteksi","نا اہلیت کی وجوہات کا پتہ لگایا","অপ্রাপ্তির কারণ সনাক্ত করা হয়েছে","Sababu zilizogunduliwa za kutofaulu","دلایل عدم امکان تشخیص","Sebab yang tidak dapat dikesan dikesan"]
["DISCLAIMER: THIS SOFTWARE IS PROVIDED 'AS IS' AND ANY EXPRESS OR IMPLIED WARRANTIES, INCLUDING, BUT NOT LIMITED TO, THE IMPLIED WARRANTIES OF MERCHANTABILITY AND FITNESS FOR A PARTICULAR PURPOSE ARE DISCLAIMED. IN NO EVENT SHALL THE ORIGINAL DEVELOPER BE LIABLE FOR ANY DIRECT, INDIRECT, INCIDENTAL, SPECIAL, EXEMPLARY, OR CONSEQUENTIAL DAMAGES (INCLUDING, BUT NOT LIMITED TO, PROCUREMENT OF SUBSTITUTE GOODS OR SERVICES; LOSS OF USE, DATA, OR PROFITS; OR BUSINESS INTERRUPTION) HOWEVER CAUSED AND ON ANY THEORY OF LIABILITY,  WHETHER IN CONTRACT, STRICT LIABILITY, OR TORT (INCLUDING NEGLIGENCE OR OTHERWISE) ARISING IN ANY WAY OUT OF THE USE OF THIS SOFTWARE, EVEN IF ADVISED OF THE POSSIBILITY OF SUCH DAMAGE.","SORUMLULUK REDDİ: BU YAZILIM 'OLDUĞU GİBİ' SUNULMAKTADIR VE TİCARİ ELVERİŞLİLİK VE BELİRLİ BİR AMACA UYGUNLUK GARANTİLERİ DAHİL ANCAK BUNLARLA SINIRLI OLMAMAK ÜZERE AÇIK VEYA ZIMNİ GARANTİLER REDDEDİLMEKTEDİR. ORİJİNAL GELİŞTİRİCİ HİÇBİR DURUMDA HERHANGİ BİR DOĞRUDAN, DOLAYLI, ARIZİ, ÖZEL, ÖRNEK VEYA DOLAYLI HASARLARDAN SORUMLU OLMAYACAKTIR (YEDEK MAL VEYA HİZMETLERİN TEDARİKİ DAHİL, ANCAK BUNLARLA SINIRLI OLMAMAKTADIR; KULLANIM, VERİ VEYA KAR KAYBI; KESİNTİ) BU YAZILIMIN KULLANIMINDAN HERHANGİ BİR ŞEKİLDE BÖYLE BİRLİKTE TAVSİYE EDİLMİŞ OLSA BİLE, SÖZLEŞME, KESİN SORUMLULUK VEYA TORT (İHMAL VEYA BAŞKA ŞEKİL DAHİL) HERHANGİ BİR SORUMLULUK TEORİSİNE NEDEN OLURSA.","HAFTUNGSAUSSCHLUSS: DIESE SOFTWARE WIRD \"WIE BESEHEN\" ZUR VERFÜGUNG GESTELLT, UND JEGLICHE AUSDRÜCKLICHE ODER STILLSCHWEIGENDE GEWÄHRLEISTUNGEN, EINSCHLIESSLICH DER STILLSCHWEIGENDEN GEWÄHRLEISTUNGEN FÜR MARKTGÄNGIGKEIT UND EIGNUNG FÜR EINEN BESTIMMTEN ZWECK, WERDEN AUSGESCHLOSSEN. DER URSPRÜNGLICHE ENTWICKLER HAFTET IN KEINEM FALL FÜR DIREKTE, INDIREKTE, NEBEN-, SPEZIELLE, BEISPIELHAFTE ODER FOLGESCHÄDEN (EINSCHLIESSLICH, ABER NICHT BESCHRÄNKT AUF, BESCHAFFUNG VON ERSATZWAREN ODER DIENSTLEISTUNGEN, VERLUSTEN ODER GEBRAUCHEN, GEWINNEN ODER GEBRAUCHEN; UNTERBRECHUNG) JEDOCH VERURSACHT UND AUF JEGLICHE HAFTUNGSTHEORIE, OB VERTRAG, STRENGE HAFTUNG ODER HAFTUNG (EINSCHLIESSLICH NACHLÄSSIGKEIT ODER ANDERWEITIG), DIE AUS DER NUTZUNG DIESER SOFTWARE ENTSTEHT, AUCH WENN SIE DIE MÖGLICHKEIT DER ÜBERMÄSSIGKEIT VERWENDET.","DESCARGO DE RESPONSABILIDAD: ESTE SOFTWARE SE PROPORCIONA \"TAL CUAL\" Y CUALQUIER GARANTÍA EXPRESA O IMPLÍCITA, INCLUYENDO, PERO NO LIMITADO A, LAS GARANTÍAS IMPLÍCITAS DE COMERCIABILIDAD E IDONEIDAD PARA UN PROPÓSITO PARTICULAR SE RECHAZAN. EN NINGÚN CASO EL DESARROLLADOR ORIGINAL SERÁ RESPONSABLE DE CUALQUIER DAÑO DIRECTO, INDIRECTO, INCIDENTAL, ESPECIAL, EJEMPLAR O CONSECUENTE (INCLUYENDO, PERO NO LIMITADO A, LA ADQUISICIÓN DE BIENES O SERVICIOS SUSTITUTOS; PÉRDIDA DE USO, DATOS O BENEFICIOS; O NEGOCIO INTERRUPCIÓN) SIN EMBARGO Y SOBRE CUALQUIER TEORÍA DE RESPONSABILIDAD, YA SEA POR CONTRATO, RESPONSABILIDAD ESTRICTA O AGRAVIO (INCLUYENDO NEGLIGENCIA O DE OTRO MODO) QUE SURJA DE CUALQUIER FORMA DEL USO DE ESTE SOFTWARE, AUNQUE SE INDIQUE LA POSIBILIDAD DE DICHO DAÑO.","AVIS DE NON-RESPONSABILITÉ: CE LOGICIEL EST FOURNI «EN L'ÉTAT» ET TOUTE GARANTIE EXPRESSE OU IMPLICITE, Y COMPRIS, MAIS SANS S'Y LIMITER, LES GARANTIES IMPLICITES DE QUALITÉ MARCHANDE ET D'ADÉQUATION À UN USAGE PARTICULIER SONT EXCLUES. EN AUCUN CAS, LE DÉVELOPPEUR ORIGINAL NE SERA RESPONSABLE DE TOUT DOMMAGE DIRECT, INDIRECT, ACCESSOIRE, SPÉCIAL, EXEMPLAIRE OU INDIRECT (Y COMPRIS, MAIS SANS S'Y LIMITER, L'ACHAT DE BIENS OU SERVICES DE SUBSTITUTION; PERTE D'UTILISATION, DE DONNÉES OU DE BÉNÉFICES; INTERRUPTION) TOUTEFOIS CAUSÉE ET SUR TOUTE THÉORIE DE RESPONSABILITÉ, QUE CE SOIT DANS LE CONTRAT, LA RESPONSABILITÉ STRICTE OU LA TORT (Y COMPRIS LA NÉGLIGENCE OU AUTRE) RÉSULTANT DE TOUTE MANIÈRE DE L'UTILISATION DE CE LOGICIEL, MÊME SI AVIS AVIS DE LA POSSIBILITÉ DE TELS DOMMAGES.","ESCLUSIONE DI RESPONSABILITÀ: QUESTO SOFTWARE VIENE FORNITO \"COSÌ COM'È\" E NON SI RICONOSCE ALCUNA GARANZIA ESPLICITA O IMPLICITA, INCLUSE, MA NON SOLO, LE GARANZIE IMPLICITE DI COMMERCIABILITÀ E IDONEITÀ PER UNO SCOPO PARTICOLARE. IN NESSUN CASO LO SVILUPPATORE ORIGINALE SARÀ RESPONSABILE DI ALCUN DANNO DIRETTO, INDIRETTO, ACCIDENTALE, SPECIALE, ESEMPLARE O CONSEQUENZIALE (COMPRESO, MA NON SOLO, APPROVVIGIONAMENTO DI BENI O SERVIZI SOSTITUTIVI; PERDITA DI UTILIZZO, DATI O PROFITTI; O COMMERCIO INTERRUZIONE) TUTTAVIA CAUSA E SU QUALSIASI TEORIA DI RESPONSABILITÀ, SIA IN CONTRATTO, RESPONSABILITÀ RIGOROSA O TORTO (INCLUSA NEGLIGENZA O ALTRO) DERIVANTI IN QUALSIASI MODO DALL'USO DI QUESTO SOFTWARE, ANCHE SE AVVISATA DELLA POSSIBILITÀ DI TALI DANNI.","ISENÇÃO DE RESPONSABILIDADE: ESTE SOFTWARE É FORNECIDO 'COMO ESTÁ' E QUAISQUER GARANTIAS EXPRESSAS OU IMPLÍCITAS, INCLUINDO, MAS NÃO SE LIMITANDO A, GARANTIAS IMPLÍCITAS DE COMERCIALIZAÇÃO E ADEQUAÇÃO A UM DETERMINADO FIM SÃO REJEITADAS. EM NENHUMA HIPÓTESE O DESENVOLVEDOR ORIGINAL SERÁ RESPONSÁVEL POR QUAISQUER DANOS DIRETOS, INDIRETOS, INCIDENTAIS, ESPECIAIS, EXEMPLARES OU CONSEQÜENCIAIS (INCLUINDO, MAS NÃO SE LIMITANDO À, AQUISIÇÃO DE BENS OU SERVIÇOS SUBSTITUTOS; PERDA DE USO, DADOS OU LUCROS; OU NEGÓCIO; INTERRUPÇÃO) NO ENTANTO CAUSADA E EM QUALQUER TEORIA DE RESPONSABILIDADE, SEJA EM CONTRATO, RESPONSABILIDADE ESTRITA OU DELITO (INCLUINDO NEGLIGÊNCIA OU OUTRO) DECORRENTE DE QUALQUER FORMA DO USO DESTE SOFTWARE, MESMO SE AVISADO DA POSSIBILIDADE DE TAL DANÇA.","إخلاء المسؤولية: يتم توفير هذا البرنامج \"كما هو\" ويتم إخلاء أي ضمانات صريحة أو ضمنية ، بما في ذلك ، على سبيل المثال لا الحصر ، الضمانات الضمنية الخاصة بقابلية التسويق والملاءمة لغرض معين. لن يكون المطور الأصلي بأي حال من الأحوال مسؤولاً عن أي أضرار مباشرة أو غير مباشرة أو عرضية أو خاصة أو نموذجية أو تبعية (بما في ذلك ، على سبيل المثال لا الحصر ، شراء سلع أو خدمات بديلة ؛ خسارة الاستخدام أو البيانات ؛ الانقطاع) مهما كان السبب وفي أي نظرية للمسؤولية ، سواء كان ذلك في العقد أو المسؤولية الصارمة أو الضرر (بما في ذلك الإهمال أو غير ذلك) الذي ينشأ بأي طريقة من طريقة استخدام هذا البرنامج ، حتى في حالة تقديم المشورة.","PENAFIAN: PERANGKAT LUNAK INI DIBERIKAN 'SEBAGAIMANA ADANYA' DAN JAMINAN TERSURAT MAUPUN TERSIRAT, TERMASUK, TAPI TIDAK TERBATAS PADA, JAMINAN TERSIRAT ATAS DAPAT DIPERDAGANGKAN DAN KESESUAIAN UNTUK TUJUAN TERTENTU DITOLAK. DALAM KEADAAN APA PUN, PENGEMBANG ASLI BERTANGGUNG JAWAB ATAS KERUSAKAN LANGSUNG, TIDAK LANGSUNG, INSIDENTAL, KHUSUS, CONTOH, ATAU AKIBATNYA (TERMASUK, NAMUN TIDAK TERBATAS PADA, PENGADAAN BARANG ATAU LAYANAN PENGGANTI; ATAU HILANGNYA PENGGUNAAN, DATA, ATAU KEUNTUNGAN GANGGUAN) APA PUN PENYEBAB DAN TENTANG TEORI TANGGUNG JAWAB APA PUN, BAIK DALAM KONTRAK, KEWAJIBAN KETAT, ATAU TORT (TERMASUK KECELAKAAN ATAU LAINNYA) YANG MUNCUL DALAM CARA APA PUN DARI PENGGUNAAN PERANGKAT LUNAK INI, BAHKAN JIKA DIBERITAHU TENTANG KEMUNGKINAN TERSEBUT.","ڈس کلیمر: یہ سافٹ ویئر 'جیسا کہ ہے' فراہم کیا گیا ہے اور کسی بھی قسم کی وضاحت یا تقویت شدہ وارنٹی ، شامل نہیں ہے ، لیکن اس تک محدود نہیں ہے ، کسی خاص مقصد کی فراہمی کے لئے تجارت اور فٹنس کی امتیازی ضمانتیں ہیں۔ کسی بھی واقعے میں اصلی ڈویلپر کو کسی بھی حق ، آزادانہ ، مخصوص ، تجرباتی ، یا مضم نقصانات (شامل نہیں ، لیکن محدود چیزوں کی فراہمی ، خدمات کی فراہمی ، خدمات کی فراہمی ، خدمات کی فراہمی ، خدمات کی فراہمی یا خدمات کی فراہمی ، مداخلت) جب تک معاہدے ، سخت ذمہ داری یا ٹورٹ (معاہدے یا ذمہ داری کے تحت) کسی بھی طرح کی ذمہ داری کی وجہ سے یا اس کے باوجود ، اس سافٹ ویئر کے استعمال سے کہیں زیادہ پیدا نہیں ہوسکتا ہے۔","অস্বীকৃতি: এই সফটওয়্যারটি যেমন 'যেমন রয়েছে তেমন সরবরাহ করা হয়েছে' এবং কোনও স্পষ্ট বা আবশ্যক ওয়্যারেন্টিও অন্তর্ভুক্ত নয়, তবে সীমাবদ্ধ নয়, ব্যবসায়ের জন্য উপযুক্ত ব্যবসায়ের দায়বদ্ধতা এবং ফিটনেস এর যথাযথ গ্যারান্টি রয়েছে। কোনও ঘটনায় মূল ডেভেলপারকে যে কোনও অধিকার, স্বতন্ত্র, উদ্বেগ, বিশেষ, উদাহরণস্বরূপ, বা ক্ষতিকারক ক্ষতির জন্য দায়বদ্ধ করা যাবে না (অন্তর্ভুক্ত, তবে কেবলমাত্র সুনির্দিষ্ট বা পরিষেবা সরবরাহকারীর বাছাই করা; হস্তক্ষেপ (দায়বদ্ধতা) বা দায়বদ্ধতার যে কোনও তত্ত্বের ভিত্তিতে, চুক্তি, কঠোর দায়বদ্ধতা বা টর্টের মধ্যে (দায়বদ্ধতা বা অন্য কোনও বিষয় অন্তর্ভুক্ত) এই সফ্টওয়্যারটি ব্যবহারের পরেও যদি এই সফ্টওয়্যারটি ব্যবহার না হয়।","KANUSHO: SOFUTI HII INATOLEWA 'KAMA ILIYO' NA MAONYESHO YOYOTE AU VIDOKEZO VYA IMANI, PAMOJA NA, LAKINI SI VIKOMO, VIDOKEZO VYA UWEZO WA UWEZO NA UFAHAMU KWA KUSUDI FULANI VIMETANGANYWA. KWA VYOMBO VYOTE MAENDELEO YA ASILI YATAKUWA NA UWAJIBIKA KWA DIRECT, INDIRECT, INCIDENTAL, SPECIAL, EXEMPLARY, AU MADHARA YA KIASI (KUJUMUISHA, LAKINI SIYO NA KIWALIZO, KUTENGENEZA BIDHAA ZA BUDALA AU HUDUMA, DUA ZA DOLA; KUINGILIWA) HATA HIVYO IMESABABISHWA NA KWA nadharia yoyote ya Uwajibikaji, iwe kwa Mkataba, UWAjibikaji wa Mkazo, AU TORT (PAMOJA NA UZEMBE AU VINGINEVYO) INAYOTOKEA KWA NJIA YOYOTE KWA MATUMIZI YA RASIMA HII, HATA IKIWA INASHAHIDIWA NA UWEZO.","سلب مسئولیت: این نرم افزار \"همانطور که هست\" ارائه می شود و ضمانت نامه های صریح یا ضمنی قابل ذکر است ، شامل ضمانت های قابل قبول قابل قبول بودن و مناسب بودن برای یک هدف خاص ، محدود نمی شود. به هیچ وجه توسعه دهنده اصلی در قبال آسیبهای مستقیم ، غیر مستقیم ، حادثه ای ، خاص ، نمونه یا احتمالی مسئول نخواهد بود (با احتساب ، اما نه محدود ، خرید کالاهای جانبی یا سایر خدمات فروش محصولات) ؛ وقفه) هرچند باعث ایجاد مسئولیت درمقابل هرگونه نظریه درمقابل انعقاد قرارداد ، مسئولیت سختگیرانه ، یا شکنجه (از جمله عدم مراقبت از قانون یا موارد دیگر) شود که به هر طریقی از استفاده از این نرم افزار وجود دارد ، البته این نیز از دیگر نرم افزارهای موجود است.","PENAFIAN: PERISIAN INI DISEDIAKAN 'SEBAGAIMANA ADANYA' DAN SETIAP JAMINAN ATAU JAMINAN TERSIRAT, TERMASUK, TAPI TIDAK TERHAD UNTUK, JAMINAN TERSIRAT DAN KESESUAIAN UNTUK TUJUAN TERTENTU DITOLAK. DALAM TIADA PERISTIWA, PEMBANGUN ASAL TIDAK BERTANGGUNGJAWAB KERANA SEGALA LANGSUNG LANGSUNG, LANGSUNG, INSIDEN, KHUSUS, CONTOH, ATAU SAMBUNGAN (TERMASUK, TAPI TIDAK TERHAD UNTUK, PENGAMBILAN BARANG PENGGANTI ATAU PERKHIDMATAN, LANGKAH, ORANG, DATA, KEROSAKAN, KERUGIAN; GANGGUAN) BAGAIMANA YANG MENYEBABKAN DAN TENTANG SETIAP TEORI TANGGUNGJAWAB, APABILA DALAM KONTRAK, TANGGUNG JAWAB ATAU KEKERANGAN (TERMASUK NEGLIGENSI ATAU LAINNYA) YANG TERSEBUT DALAM APA-APA CARA PENGGUNAAN PERANGKAT LUNAK INI, WALAUPUN DIBERIKAN DARIPADA TERSEBUT."]
["Distance","Mesafe","Entfernung","Distancia","Distance","Distanza","Distância","مسافة","Jarak","فاصلے","দূরত্ব","Umbali","مسافت","Jarak"]
["Distance computation method","Mesafe hesaplama yöntemi","Entfernungsberechnungsmethode","Método de cálculo de distancia","Méthode de calcul de distance","Metodo di calcolo della distanza","Método de cálculo de distância","طريقة حساب المسافة","Metode penghitungan jarak","فاصلے کی گنتی کا طریقہ","দূরত্ব গণনা পদ্ধতি","Njia ya hesabu ya umbali","روش محاسبه فاصله","Kaedah pengiraan jarak"]
["Distance limit","Mesafe sınırı","Entfernungsgrenze","Límite de distancia","Limite de distance","Limite di distanza","Limite de distância","حد المسافة","Batas jarak","فاصلہ کی حد","দূরত্বের সীমা","Kikomo cha umbali","حد فاصله","Had jarak"]
["Distance travelled","Kat edilen mesafe","Zurückgelegte Entfernung","Distancia recorrida","Distance parcourue","Distanza percorsa","Distância viajada","المسافة المقطوعة","Jarak tempuh","فاصلہ طے کیا","দূরত্ব ভ্রমণ","Umbali umesafiri","مسافت طی شده","Jarak perjalanan"]
["Distances populated.","Mesafeler hesaplandı.","Entfernungen besiedelt.","Distancias pobladas.","Distances peuplées.","Distanze popolate.","Distâncias povoadas.","مسافات مأهولة.","Jarak penduduk.","فاصلے آباد ہیں۔","দূরত্ব জনবহুল।","Umbali ulijaa.","فاصله ها پر از جمعیت است.","Jarak penduduk."]
["Distances populated. Some distances are missing due to a connection error.","Mesafeler hesaplandı. Bir bağlantı hatası nedeniyle bazı mesafeler eksik.","Entfernungen besiedelt. Einige Entfernungen fehlen aufgrund eines Verbindungsfehlers.","Distancias pobladas. Faltan algunas distancias debido a un error de conexión.","Distances peuplées. Certaines distances sont manquantes en raison d'une erreur de connexion.","Distanze popolate. Mancano alcune distanze a causa di un errore di connessione.","Distâncias povoadas. Algumas distâncias estão faltando devido a um erro de conexão.","مسافات مأهولة. بعض المسافات مفقودة بسبب خطأ في الاتصال.","Jarak penduduk. Beberapa jarak hilang karena kesalahan koneksi.","فاصلے آباد ہیں۔ کنکشن کی خرابی کی وجہ سے کچھ فاصلے غائب ہیں۔","দূরত্ব জনবহুল। সংযোগের ত্রুটির কারণে কিছু দূরত্ব অনুপস্থিত।","Umbali ulijaa. Umbali fulani haupo kwa sababu ya hitilafu ya unganisho.","فاصله ها پر از جمعیت است. برخی از فواصل به دلیل خطای اتصال از بین رفته اند.","Jarak penduduk. Beberapa jarak hilang kerana ralat sambungan."]
["Distances worksheet setup complete.","Mesafeler çalışma sayfası kurulumu tamamlandı.","Einrichtung des Entfernungsarbeitsblatts abgeschlossen.","Se completó la configuración de la hoja de cálculo de distancias.","Configuration de la feuille de calcul des distances terminée.","Impostazione del foglio di lavoro delle distanze completata.","Configuração da planilha de distâncias concluída.","اكتمل إعداد ورقة عمل المسافات.","Jarak pengaturan lembar kerja selesai.","فاصلوں کا ورک شیٹ سیٹ اپ مکمل۔","দূরত্বের কার্যপত্রক সেটআপ সম্পূর্ণ।","Usanidi wa karatasi ya umbali umekamilika.","راه اندازی صفحه کار فاصله کامل است.","Penyediaan lembaran kerja Jarak selesai."]
["Do the vehicles return to their depot(s)?","Araçlar depolarına dönüyor mu?","Kehren die Fahrzeuge zu ihren Depots zurück?","¿Los vehículos regresan a su (s) depósito (s)?","Les véhicules retournent-ils à leur (s) dépôt (s)?","I veicoli tornano ai loro depositi?","Os veículos retornam ao (s) depósito (s)?","هل تعود المركبات إلى مستودعاتها؟","Apakah kendaraan kembali ke depotnya?","کیا گاڑیاں اپنے ڈپو پر واپس آتی ہیں؟","যানবাহনগুলি কি তাদের ডিপোতে ফিরে আসে?","Je! Magari yanarudi katika bohari yao?","آیا وسایل نقلیه به انبار (های) خود برمی گردند؟","Adakah kenderaan kembali ke depotnya?"]
["Do you want to continue?","Devam etmek istiyor musun?","Wollen Sie fortfahren?","¿Quieres continuar?","Voulez-vous continuer?","Vuoi continuare?","Você quer continuar?","هل تريد الاستمرار؟","Apakah Anda ingin melanjutkan?","کیا آپ جاری رکھنا چاہتے ہیں؟","আপনি কি অবিরত করতে চান?","Je! Unataka kuendelea?","می خواهید ادامه دهید؟","Adakah anda mahu meneruskan?"]
["Don't visit","Ziyaret etmeyin","Nicht besuchen","No visitar","Ne visite pas","Non visitare","Não visite","لا تزور","Jangan kunjungi","تشریف نہ لائیں","ভিজিট করবেন না","Usitembelee","بازدید نکنید","Jangan melawat"]
["Driving time","Sürüş süresi","Fahrzeit","Tiempo de conducción","Temps de conduite","Tempo di guida","Tempo de condução","وقت القيادة","Waktu mengemudi","ڈرائیونگ کا وقت","ড্রাইভিং সময়","Wakati wa kuendesha gari","زمان رانندگی","Masa memandu"]
["Driving time limit","Sürüş süresi sınırı","Fahrzeitlimit","Límite de tiempo de conducción","Limite de temps de conduite","Limite di tempo di guida","Limite de tempo de condução","حد وقت القيادة","Batas waktu mengemudi","ڈرائیونگ کی وقت کی حد","গাড়ি চালনার সময়সীমা","Kikomo cha muda wa kuendesha gari","محدودیت زمانی رانندگی","Had masa memandu"]
["Duration","Süresi","Dauer","Duración","Durée","Durata","Duração","المدة الزمنية","Durasi","دورانیہ","সময়কাল","Muda","مدت زمان","Jangka masa"]
["Duration computation method","Süre hesaplama yöntemi","Berechnungsmethode für die Dauer","Método de cálculo de duración","Méthode de calcul de la durée","Metodo di calcolo della durata","Método de cálculo de duração","طريقة حساب المدة","Metode penghitungan durasi","دورانیہ کی گنتی کا طریقہ","সময়কাল গণনা পদ্ধতি","Njia ya hesabu ya muda","روش محاسبه مدت زمان","Kaedah pengiraan jangka masa"]
["Duration multiplier","Süre çarpanı","Durationsmultiplikator","Multiplicador de duración","Multiplicateur de durée","Moltiplicatore di durata","Multiplicador de duração","مضاعف المدة","Pengganda durasi","دورانیہ ضرب","সময়কাল গুণক","Mzidishaji wa muda","ضرب مدت","Pengganda jangka masa"]
["Euclidian distances","Öklid mesafeleri","Euklidische Entfernungen","Distancias euclidianas","Distances euclidiennes","Distanze euclidee","Distâncias euclidianas","مسافات اقليدية","Jarak Euclidian","یوکلیڈین دوری","ইউক্লিডিয়ান দূরত্ব","Umbali wa Euclidian","فواصل اقلیدسی","Jarak Euclidian"]
["Every vehicle must return to its return depot. Violation at: ","Her araç, iade deposuna geri dönmelidir. İhlal:","Jedes Fahrzeug muss zu seinem Rückgabedepot zurückkehren. Verletzung bei:","Todo vehículo debe regresar a su depósito de devolución. Violación en:","Chaque véhicule doit retourner à son dépôt de retour. Violation à:","Ogni veicolo deve tornare al proprio deposito di restituzione. Violazione a:","Cada veículo deve retornar ao seu depósito de retorno. Violação em:","يجب أن تعود كل مركبة إلى مستودع العودة الخاص بها. الانتهاك في:","Setiap kendaraan harus kembali ke depot pengembaliannya. Pelanggaran di:","ہر گاڑی کو اپنے ریٹرن ڈپو پر لوٹنا ہوگا۔ خلاف ورزی:","প্রতিটি যানবাহনকে অবশ্যই তার রিটার্ন ডিপোতে ফিরে যেতে হবে। লঙ্ঘন এখানে:","Kila gari lazima irudi kwenye bohari yake ya kurudi. Ukiukaji saa:","هر وسیله نقلیه باید به انبار بازگشت خود بازگردد. تخلف در:","Setiap kenderaan mesti kembali ke depot pemulangannya. Pelanggaran di:"]
["External solver (vrp_spreadsheet_solver.dll) not found. Do you want to continue with the internal solver?","Harici çözücü (vrp_spreadsheet_solver.dll) bulunamadı. Dahili çözücüye devam etmek istiyor musunuz?","Externer Solver (vrp_spreadsheet_solver.dll) nicht gefunden. Möchten Sie mit dem internen Solver fortfahren?","No se encontró el solucionador externo (vrp_spreadsheet_solver.dll). ¿Quieres continuar con el solucionador interno?","Solveur externe (vrp_spreadsheet_solver.dll) introuvable. Voulez-vous continuer avec le solveur interne?","Risolutore esterno (vrp_spreadsheet_solver.dll) non trovato. Vuoi continuare con il risolutore interno?","Solucionador externo (vrp_spreadsheet_solver.dll) não encontrado. Você deseja continuar com o solucionador interno?","الملف الخارجي (vrp_spreadsheet_solver.dll) غير موجود. هل تريد الاستمرار في الحل الداخلي؟","Pemecah eksternal (vrp_spreadsheet_solver.dll) tidak ditemukan. Apakah Anda ingin melanjutkan dengan pemecah internal?","بیرونی سالور (vrp_spreadsheet_solver.dll) نہیں ملا۔ کیا آپ داخلی محلول جاری رکھنا چاہتے ہیں؟","বাহ্যিক দ্রাবক (vrp_spreadsheet_solver.dll) পাওয়া যায় নি। আপনি কি অভ্যন্তরীণ সমাধানকারী দিয়ে চালিয়ে যেতে চান?","Solver ya nje (vrp_spreadsheet_solver.dll) haipatikani. Je! Unataka kuendelea na suluhisho la ndani?","حل کننده خارجی (vrp_spreadsheet_solver.dll) یافت نشد. آیا می خواهید با حل کننده داخلی ادامه دهید؟","Penyelesai luaran (vrp_spreadsheet_solver.dll) tidak dijumpai. Adakah anda mahu meneruskan penyelesai dalaman?"]
["External solver returned a solution. Do you want to overwrite the current solution with the best found solution?","Harici çözücü bir çözüm döndürdü. Bulunan en iyi çözümü mevcut çözümün üzerine yazmak ister misiniz?","Externer Löser gab eine Lösung zurück. Möchten Sie die aktuelle Lösung mit der am besten gefundenen Lösung überschreiben?","El solucionador externo devolvió una solución. ¿Quiere sobrescribir la solución actual con la mejor solución encontrada?","Le solveur externe a renvoyé une solution. Voulez-vous remplacer la solution actuelle par la meilleure solution trouvée?","Il risolutore esterno ha restituito una soluzione. Vuoi sovrascrivere la soluzione corrente con la migliore soluzione trovata?","O solucionador externo retornou uma solução. Quer substituir a solução atual pela melhor solução encontrada?","عاد المحلل الخارجي حلاً. هل تريد استبدال الحل الحالي بأفضل الحلول الموجودة؟","Pemecah eksternal mengembalikan solusi. Apakah Anda ingin menimpa solusi saat ini dengan solusi terbaik yang ditemukan?","بیرونی محلول نے ایک حل واپس کیا۔ کیا آپ موجودہ حل کو بہترین ڈھونڈنے والے حل کے ساتھ اوور رائٹ کرنا چاہتے ہیں؟","বাহ্যিক সমাধানকারী একটি সমাধান ফিরে এসেছিল। আপনি কি সলিউড পাওয়া সলিউশন সহ বর্তমান সলিউশনটি ওভাররাইট করতে চান?","Mtatuzi wa nje alirudisha suluhisho. Je! Unataka kuweka suluhisho la sasa na suluhisho bora zaidi?","حل کننده خارجی یک راه حل را بازگرداند. آیا می خواهید راه حل فعلی را با بهترین راه حل پیدا کنید؟","Penyelesai luaran mengembalikan penyelesaian. Adakah anda ingin menimpa penyelesaian semasa dengan penyelesaian terbaik yang dijumpai?"]
["Fastest","En hızlı","Am schnellsten","Lo más rápido","Le plus rapide","Il più veloce","O mais rápido","أسرع","Tercepat","سب سے تیز","দ্রুততম","Haraka zaidi","سریعترین","Paling laju"]
["Fastest - Real Time Traffic","En Hızlı - Gerçek Zamanlı Trafik","Am schnellsten - Echtzeitverkehr","Más rápido: tráfico en tiempo real","Plus rapide - Trafic en temps réel","Il più veloce: traffico in tempo reale","Mais rápido - Tráfego em tempo real","الأسرع - حركة المرور في الوقت الفعلي","Tercepat - Lalu Lintas Waktu Nyata","تیز ترین - ریئل ٹائم ٹریفک","দ্রুততম - রিয়েল টাইম ট্র্যাফিক","Haraka - Trafiki ya Wakati Halisi","سریعترین - ترافیک در زمان واقعی","Terpantas - Trafik Masa Sebenar"]
["Fixed cost per trip","Yolculuk başına sabit maliyet","Fixe Kosten pro Reise","Costo fijo por viaje","Coût fixe par voyage","Costo fisso per viaggio","Custo fixo por viagem","التكلفة الثابتة لكل رحلة","Biaya tetap per perjalanan","فی سفر طے شدہ لاگت","ট্রিপ প্রতি স্থির খরচ","Gharama zisizohamishika kwa kila safari","هزینه ثابت در هر سفر","Kos tetap untuk setiap perjalanan"]
["From","Nereden","Von","Desde","De","A partire dal","De","من عند","Dari","سے","থেকে","Kutoka","از جانب","Dari"]
["Hard","Sert","Hart","Difícil","Dur","Difficile","Difícil","الصعب","Keras","سخت","শক্ত","Ngumu","سخت","Keras"]
["If activated, delivery locations must be visited before pickup locations","Etkinleştirilirse, teslimat yerleri, teslim alma yerlerinden önce ziyaret edilmelidir.","Wenn aktiviert, müssen die Lieferorte vor den Abholorten besucht werden","Si está activado, los lugares de entrega deben visitarse antes que los lugares de recogida","Si activé, les lieux de livraison doivent être visités avant les lieux de ramassage","Se attivato, i luoghi di consegna devono essere visitati prima dei luoghi di ritiro","Se ativado, os locais de entrega devem ser visitados antes dos locais de coleta","في حالة التفعيل ، يجب زيارة مواقع التسليم قبل مواقع الاستلام","Jika diaktifkan, lokasi pengiriman harus dikunjungi sebelum lokasi penjemputan","اگر چالو ہوجائے تو ، اٹھاونے والے مقامات سے قبل ترسیل کے مقامات ضرور دیکھنا ضروری ہے","যদি সক্রিয় করা থাকে তবে পিকআপের লোকেশনগুলির আগে ডেলিভারি লোকেশনগুলি অবশ্যই দেখতে হবে","Ikiwa imeamilishwa, maeneo ya kupeleka lazima yatembelewe kabla ya maeneo ya kuchukua","در صورت فعال شدن ، مکان های تحویل باید قبل از مکان های وانت بازدید شوند","Sekiranya diaktifkan, lokasi penghantaran mesti dikunjungi sebelum lokasi pengambilan"]
["Incompatible","Uyumsuz","Unvereinbar","Incompatible","Incompatible","Incompatibile","Incompatível","غير متوافق","Tidak kompatibel","متضاد","বেমানান","Haiendani","ناسازگار","Tidak serasi"]
["Language","Dil","Sprache","Idioma","Langue","linguaggio","Língua","لغة","Bahasa","زبان","ভাষা","Lugha","زبان","Bahasa"]
["Lat/Lon populated. Please check the map in the Locations worksheet for geocoding errors.","Enlem / Boylam bulundu. Coğrafi kodlama hataları için lütfen Konumlar çalışma sayfasındaki haritayı kontrol edin.","Lat / Lon besiedelt. Bitte überprüfen Sie die Karte im Arbeitsblatt Standorte auf Geokodierungsfehler.","Lat / Lon poblado. Consulte el mapa en la hoja de trabajo Ubicaciones para ver si hay errores de codificación geográfica.","Lat / Lon peuplé. Veuillez vérifier la carte dans la feuille de calcul Emplacements pour les erreurs de géocodage.","Lat / Lon popolato. Controlla la mappa nel foglio di lavoro Posizioni per errori di geocodifica.","Lat / Lon preenchido. Verifique o mapa na planilha de Locais para erros de geocodificação.","خطوط الطول والخط بالسكان. يرجى التحقق من الخريطة في ورقة عمل المواقع بحثًا عن أخطاء الترميز الجغرافي.","Lintang / Bujur terisi. Silakan periksa peta di lembar kerja Lokasi untuk kesalahan geocoding.","لیٹ / لون آباد ہے۔ براہ کرم جیوکوڈنگ میں غلطیوں کے لئے مقامات کی ورک شیٹ میں نقشہ کی جانچ کریں۔","লাত / লোন জনবহুল। জিওকোডিংয়ের ত্রুটির জন্য দয়া করে অবস্থানগুলি ওয়ার্কশিটে মানচিত্রটি পরীক্ষা করুন।","Lat / Lon imejaa watu. Tafadhali angalia ramani kwenye karatasi ya Maeneo kwa makosa ya ujanibishaji.","جمعیت Lat / Lon. لطفاً نقشه را در صفحه کاری Locations برای خطاهای کدگذاری کد بررسی کنید.","Lat / Lon dihuni. Sila periksa peta di lembaran kerja Lokasi untuk ralat pengekodan geografi."]
["Latitude (y)","Enlem (y)","Breitengrad (y)","Latitud (y)","Latitude (y)","Latitudine (y)","Latitude (y)","خط العرض (ذ)","Lintang (y)","طول بلد (y)","অক্ষাংশ (y)","Latitudo (y)","عرض جغرافیایی (y)","Lintang (y)"]
["LNS algorithm running...","LNS algoritması çalışıyor ...","LNS-Algorithmus läuft ...","Algoritmo LNS en ejecución ...","Algorithme LNS en cours d'exécution ...","Algoritmo LNS in esecuzione ...","Algoritmo LNS em execução ...","تشغيل خوارزمية LNS ...","Algoritma LNS berjalan ...","ایل این ایس الگورتھم چل رہا ہے…","এলএনএস অ্যালগরিদম চলছে ...","Algorithm ya LNS inaendesha ...","الگوریتم LNS در حال اجرا است ...","Algoritma LNS berjalan ..."]
["Load","Yük","Belastung","Carga","Charge","Caricare","Carga","حمل","Beban","لوڈ","ভার","Mzigo","بار","Beban"]
["Location ","Konum ","Ort","Ubicación","Emplacement","Posizione","Localização","موقعك","Lokasi","مقام","অবস্থান","Mahali","محل","Lokasi"]
["Location ID","Konum Kimliği","Standort-ID","ID de ubicación","ID d'emplacement","ID posizione","ID de localização","معرف الموقع","ID Lokasi","مقام کی شناخت","অবস্থান আইডি","Kitambulisho cha Mahali","شناسه مکان","ID Lokasi"]
["Location IDs","Konum kimlikleri","Standort-IDs","ID de ubicación","ID d'emplacement","ID posizione","IDs de localização","معرفات الموقع","ID Lokasi","مقام کی شناخت","অবস্থান আইডি","Vitambulisho vya eneo","شناسه های مکان","ID Lokasi"]
["Location labels","Konum etiketleri","Standortbezeichnungen","Etiquetas de ubicación","Libellés d'emplacement","Etichette di posizione","Rótulos de localização","تسميات الموقع","Label lokasi","مقام کے لیبل","অবস্থানের লেবেল","Lebo za mahali","برچسب های مکان","Label lokasi"]
["Location Name","Yer ismi","Standortnamen","Nombre del lugar","Nom de la localisation","Nome del luogo","Nome do local","اسم الموقع","Nama lokasi","مقام کا نام","স্থানের নাম","Jina la Mahali","نام مکان","Nama lokasi"]
["Location name ","Yer ismi","Standortnamen","Nombre del lugar","Nom de la localisation","Nome del luogo","Nome da localização","اسم الموقع","Nama lokasi","مقام کا نام","স্থানের নাম","Jina la eneo","نام مکان","Nama lokasi"]
["Location names","Yer isimleri","Standortnamen","Nombres de ubicación","Noms d'emplacement","Nomi di località","Nomes de localização","أسماء المواقع","Nama lokasi","مقام کے نام","অবস্থানের নাম","Majina ya eneo","نام مکان","Nama lokasi"]
["Locations must be contiguous in routes. Violation at: ","Rotalarda konumlar bitişik olmalıdır. İhlal:","Standorte müssen in Routen zusammenhängend sein. Verletzung bei:","Las ubicaciones deben ser contiguas en las rutas. Violación en:","Les emplacements doivent être contigus dans les itinéraires. Violation à:","Le posizioni devono essere contigue nei percorsi. Violazione a:","Os locais devem ser contíguos nas rotas. Violação em:","يجب أن تكون المواقع متجاورة في المسارات. الانتهاك في:","Lokasi harus berdekatan dalam rute. Pelanggaran di:","مقامات لازمی طور پر راستوں میں برابر ہوں۔ خلاف ورزی:","অবস্থানগুলি অবশ্যই রুটে সামঞ্জস্যপূর্ণ হতে হবে। লঙ্ঘন এখানে:","Maeneo lazima yaendane kwa njia. Ukiukaji saa:","مکان ها باید در مسیرها مجاور باشند. تخلف در:","Lokasi mesti berdekatan dengan laluan. Pelanggaran di:"]
["Locations worksheet setup complete.","Konumlar çalışma sayfası kurulumu tamamlandı.","Einrichtung des Arbeitsblatts für Standorte abgeschlossen.","Se completó la configuración de la hoja de trabajo de ubicaciones.","Configuration de la feuille de calcul des emplacements terminée.","Configurazione del foglio di lavoro delle posizioni completata.","Configuração da planilha de locais concluída.","اكتمل إعداد ورقة عمل المواقع.","Pengaturan lembar kerja lokasi selesai.","مقامات کا ورک شیٹ سیٹ اپ مکمل ہے۔","অবস্থানগুলি কার্যপত্রক সেটআপ সম্পূর্ণ।","Usanidi wa karatasi ya maeneo umekamilika.","راه اندازی کاربرگ مکان ها کامل شد.","Penyediaan lembaran kerja lokasi selesai."]
["Longitude (x)","Boylam (x)","Längengrad (x)","Longitud (x)","Longitude (x)","Longitudine (x)","Longitude (x)","خط الطول (x)","Bujur (x)","طول البلد (x)","দ্রাঘিমাংশ (x)","Umbali (x)","طول (x)","Bujur (x)"]
["Manual entry","El ile veri girişi","Manueller Eintrag","Entrada manual","Saisie manuelle","Inserimento manuale","Entrada manual","الإدخال اليدوي","Entri manual","دستی اندراج","ম্যানুয়াল প্রবেশ","Kuingia kwa mikono","ورود دستی","Kemasukan manual"]
["May be visited","Ziyaret edilebilir","Kann besucht werden","Puede ser visitado","Peut être visité","Può essere visitato","Pode ser visitado","يمكن زيارتها","Dapat dikunjungi","جا سکتا ہے","পরিদর্শন করা যেতে পারে","Inaweza kutembelewa","ممکن است بازدید شود","Boleh dilawati"]
["Method:","Yöntem:","Methode:","Método:","Méthode:","Metodo:","Método:","طريقة:","Metode:","طریقہ:","পদ্ধতি:","Njia:","روش:","Kaedah:"]
["More can be found under the detected reasons of infeasibility in the solution worksheet.","Çözüm çalışma sayfasındaki tespit edilen yetersizlik nedenleri altında daha fazlası bulunabilir.","Weitere Informationen finden Sie unter den erkannten Gründen der Unmöglichkeit im Arbeitsblatt der Lösung.","Se pueden encontrar más en las razones detectadas de inviabilidad en la hoja de trabajo de la solución.","Plus d'informations peuvent être trouvées sous les raisons détectées d'infaisabilité dans la feuille de calcul de la solution.","Ulteriori informazioni possono essere trovate sotto i motivi di non fattibilità rilevati nel foglio di lavoro della soluzione.","Mais informações podem ser encontradas nos motivos de inviabilidade detectados na planilha de soluções.","يمكن العثور على المزيد ضمن الأسباب المكتشفة لعدم الجدوى في ورقة عمل الحل.","Lebih lanjut dapat ditemukan di bawah alasan ketidaklayakan yang terdeteksi dalam lembar kerja solusi.","حل ورکشیٹ میں عدم اہلیت کی کھوج وجوہات کے تحت مزید معلومات حاصل کی جاسکتی ہیں۔","সমাধান ওয়ার্কশিটে অপ্রাপ্তির জন্য চিহ্নিত কারণগুলির অধীনে আরও কিছু পাওয়া যাবে।","Zaidi inaweza kupatikana chini ya sababu zilizogunduliwa za kutowezekana katika karatasi ya suluhisho.","موارد بیشتر را می توان در زیر دلایل تشخیص داده نشدنی در صفحه کار راه حل یافت.","Lebih banyak boleh didapati di bawah sebab-sebab yang tidak dapat dikesan dalam lembaran kerja penyelesaian."]
["Must be visited","Ziyaret edilmelidir","Muss besucht werden","Debe ser visitado","Doit être visité","Deve essere visitato","Deve ser visitado","يجب زيارتها","Harus dikunjungi","ضرور ملاحظہ کریں","অবশ্যই ভিজিট করতে হবে","Lazima utembelewe","باید بازدید کرد","Mesti dikunjungi"]
["Must be visited?","Ziyaret edilmeli mi?","Muss besucht werden?","¿Debe ser visitado?","Doit être visité?","Deve essere visitato?","Deve ser visitado?","يجب زيارتها؟","Harus dikunjungi?","ضرور ملاحظہ کریں","ভিজিট করতে হবে?","Lazima kutembelewa?","باید بازدید کرد؟","Mesti dikunjungi?"]
["Name","İsim","Name","Nombre","Nom","Nome","Nome","اسم","Nama","نام","নাম","Jina","نام","Nama"]
["Net profit:","Net kazanç:","Reingewinn:","Beneficio neto:","Bénéfice net:","Profitto netto:","Lucro líquido:","صافي الربح:","Laba bersih:","خالص منافع:","মোট লাভ:","Faida halisi:","سود خالص:","Keuntungan bersih:"]
["No","Hayır","Nein","No","Non","No","Não","لا","Tidak","نہیں","না","Hapana","نه","Tidak"]
["No driving route could be found between some of the locations. Please check the addresses and the coordinates.","Bazı konumlar arasında sürüş rotası bulunamadı. Lütfen adresleri ve koordinatları kontrol edin.","Zwischen einigen Standorten konnte keine Fahrroute gefunden werden. Bitte überprüfen Sie die Adressen und die Koordinaten.","No se pudo encontrar ninguna ruta de conducción entre algunas de las ubicaciones. Compruebe las direcciones y las coordenadas.","Aucun itinéraire routier n'a pu être trouvé entre certains emplacements. Veuillez vérifier les adresses et les coordonnées.","Non è stato possibile trovare alcun percorso in auto tra alcune località. Si prega di controllare gli indirizzi e le coordinate.","Nenhuma rota de condução foi encontrada entre alguns dos locais. Verifique os endereços e as coordenadas.","تعذر العثور على مسار قيادة بين بعض المواقع. يرجى التحقق من العناوين والإحداثيات.","Tidak ada rute mengemudi yang dapat ditemukan di antara beberapa lokasi. Silakan periksa alamat dan koordinatnya.","کچھ مقامات کے درمیان ڈرائیونگ کا کوئی راستہ نہیں مل سکا۔ براہ کرم پتے اور نقاط کو دیکھیں۔","কয়েকটি জায়গার মধ্যে কোনও ড্রাইভিং রুট পাওয়া যায়নি। ঠিকানা এবং স্থানাঙ্কগুলি পরীক্ষা করুন check","Hakuna njia ya kuendesha gari inayoweza kupatikana kati ya baadhi ya maeneo. Tafadhali angalia anwani na kuratibu.","هیچ مسیری برای رانندگی بین برخی از مکان ها یافت نمی شود. لطفا آدرس و مختصات را بررسی کنید.","Tidak ada laluan memandu yang dapat dijumpai di antara beberapa lokasi. Sila periksa alamat dan koordinatnya."]
["Number of customers","Müşteri sayısı","Anzahl der Kunden","Numero de clientes","Nombre de clients","Numero di clienti","Número de clientes","عدد الزبائن","Jumlah pelanggan","صارفین کی تعداد","গ্রাহকের সংখ্যা","Idadi ya wateja","تعداد مشتری ها","Bilangan pelanggan"]
["Number of depots","Depo sayısı","Anzahl der Depots","Número de depósitos","Nombre de dépôts","Numero di depositi","Número de depósitos","عدد المستودعات","Jumlah depo","ڈپو کی تعداد","ডিপো সংখ্যা","Idadi ya bohari","تعداد انبارها","Bilangan depot"]
["Number of vehicle types","Araç tiplerinin sayısı","Anzahl der Fahrzeugtypen","Número de tipos de vehículos","Nombre de types de véhicules","Numero di tipi di veicoli","Número de tipos de veículos","عدد أنواع المركبات","Jumlah jenis kendaraan","گاڑی کی قسموں کی تعداد","গাড়ির ধরণের সংখ্যা","Idadi ya aina za gari","تعداد انواع خودرو","Bilangan jenis kenderaan"]
["Number of vehicles","Araç sayısı","Zahl der Fahrzeuge","Numero de vehiculos","Nombre de véhicules","Numero di veicoli","Número de veículos","عدد المركبات","Jumlah kendaraan","گاڑیوں کی تعداد","যানবাহন সংখ্যা","Idadi ya magari","تعداد وسایل نقلیه","Bilangan kenderaan"]
["One or more locations are too far from any roads. Please check the addresses and the coordinates.","Bir veya daha fazla konum, herhangi bir yoldan çok uzakta. Lütfen adresleri ve koordinatları kontrol edin.","Ein oder mehrere Standorte sind zu weit von Straßen entfernt. Bitte überprüfen Sie die Adressen und die Koordinaten.","Una o más ubicaciones están demasiado lejos de las carreteras. Compruebe las direcciones y las coordenadas.","Un ou plusieurs emplacements sont trop éloignés des routes. Veuillez vérifier les adresses et les coordonnées.","Una o più località sono troppo lontane dalle strade. Si prega di controllare gli indirizzi e le coordinate.","Um ou mais locais estão muito longe de qualquer estrada. Verifique os endereços e as coordenadas.","موقع واحد أو أكثر بعيد جدًا عن أية طرق. يرجى التحقق من العناوين والإحداثيات.","Satu atau beberapa lokasi terlalu jauh dari jalan mana pun. Silakan periksa alamat dan koordinatnya.","ایک یا زیادہ مقامات کسی بھی سڑک سے بہت دور ہیں۔ براہ کرم پتے اور نقاط کو دیکھیں۔","এক বা একাধিক অবস্থান কোনও রাস্তা থেকে খুব দূরে। ঠিকানা এবং স্থানাঙ্কগুলি পরীক্ষা করুন check","Sehemu moja au zaidi ziko mbali sana na barabara yoyote. Tafadhali angalia anwani na kuratibu.","یک یا چند مکان با جاده های دیگر فاصله زیادی دارند. لطفا آدرس و مختصات را بررسی کنید.","Satu atau lebih lokasi terlalu jauh dari jalan. Sila periksa alamat dan koordinatnya."]
["Open source, developed by Dr Gunes Erdogan (G.Erdogan@bath.ac.uk)","Açık kaynak, Dr. Güneş Erdoğan tarafından geliştirilmiştir (G.Erdogan@bath.ac.uk)","Open Source, entwickelt von Dr. Gunes Erdogan (G.Erdogan@bath.ac.uk)","Código abierto, desarrollado por el Dr. Gunes Erdogan (G.Erdogan@bath.ac.uk)","Open source, développé par le Dr Gunes Erdogan (G.Erdogan@bath.ac.uk)","Open source, sviluppato dal Dr Gunes Erdogan (G.Erdogan@bath.ac.uk)","Código aberto, desenvolvido pelo Dr. Gunes Erdogan (G.Erdogan@bath.ac.uk)","المصدر المفتوح ، من تطوير الدكتور غونيس أردوغان (G.Erdogan@bath.ac.uk)","Open source, dikembangkan oleh Dr Gunes Erdogan (G.Erdogan@bath.ac.uk)","اوپن سورس ، جسے ڈاکٹر گنز اردگان (G.Erdogan@bath.ac.uk) تیار کیا ہے","ডাঃ গুনেস এরদোগান (G.Erdogan@bath.ac.uk) দ্বারা নির্মিত ওপেন সোর্স","Chanzo wazi, kilichotengenezwa na Dr Gunes Erdogan (G.Erdogan@bath.ac.uk)","منبع باز ، توسعه یافته توسط دکتر گونس اردوغان (G.Erdogan@bath.ac.uk)","Sumber terbuka, yang dikembangkan oleh Dr Gunes Erdogan (G.Erdogan@bath.ac.uk)"]
["Optional - Bing Maps Key","İsteğe bağlı - Bing Haritalar Anahtarı","Optional - Bing Maps Key","Opcional: clave de Bing Maps","Facultatif - Clé Bing Maps","Facoltativo: chiave Bing Maps","Opcional - Chave do Bing Maps","اختياري - مفتاح خرائط Bing","Opsional - Tombol Bing Maps","اختیاری - بنگ نقشے کی","Ptionচ্ছিক - বিং মানচিত্র কী","Hiari - Ufunguo wa Ramani za Bing","اختیاری - Bing Maps Key","Pilihan - Kunci Peta Bing"]
["Parameter","Parametre","Parameter","Parámetro","Paramètre","Parametro","Parâmetro","معامل","Parameter","پیرامیٹر","প্যারামিটার","Kigezo","پارامتر","Parameter"]
["Pickup amount","Teslim alma miktarı","Abholbetrag","Importe de recogida","Montant du ramassage","Importo del ritiro","Valor de retirada","مبلغ الاستلام","Jumlah pengambilan","اٹھا لینے کی رقم","পিকআপ পরিমাণ","Kiasi cha kuchukua","مبلغ وانت","Jumlah pengambilan"]
["Please enter a nonnegative integer value","Lütfen negatif olmayan bir tam sayı değeri girin","Bitte geben Sie einen nichtnegativen ganzzahligen Wert ein","Ingrese un valor entero no negativo","Veuillez saisir une valeur entière non négative","Inserisci un valore intero non negativo","Insira um valor inteiro não negativo","الرجاء إدخال قيمة عدد صحيح غير سالب","Harap masukkan nilai bilangan bulat nonnegatif","براہ کرم ایک غیر منقول عدد صحیح قدر داخل کریں","অনুগ্রহ করে একটি nonnegative পূর্ণসংখ্যা মান লিখুন","Tafadhali ingiza nambari ya nambari isiyo na ubishi","لطفاً یک مقدار صحیح غیر منفی وارد کنید","Sila masukkan nilai integer bukan negatif"]
["Please enter a nonnegative value","Lütfen negatif olmayan bir değer girin","Bitte geben Sie einen nicht negativen Wert ein","Ingrese un valor no negativo","Veuillez saisir une valeur non négative","Inserisci un valore non negativo","Insira um valor não negativo","الرجاء إدخال قيمة غير سالبة","Harap masukkan nilai nonnegatif","براہ کرم ایک نانگیٹیو ویلیو درج کریں","অনুগ্রহ করে একটি অবৈধ মান লিখুন","Tafadhali ingiza thamani isiyo ya ubishi","لطفاً یک مقدار غیر منفی وارد کنید","Sila masukkan nilai bukan negatif"]
["Please enter a positive value","Lütfen pozitif bir değer girin","Bitte geben Sie einen positiven Wert ein","Ingrese un valor positivo","Veuillez saisir une valeur positive","Inserisci un valore positivo","Insira um valor positivo","الرجاء إدخال قيمة موجبة","Harap masukkan nilai positif","براہ کرم ایک مثبت قیمت درج کریں","দয়া করে একটি ইতিবাচক মান লিখুন","Tafadhali ingiza thamani chanya","لطفا یک مقدار مثبت وارد کنید","Sila masukkan nilai positif"]
["Please enter a value greater than or equal to 10 seconds.","Lütfen 10 saniyeden büyük veya 10 saniyeye eşit bir değer girin.","Bitte geben Sie einen Wert größer oder gleich 10 Sekunden ein.","Ingrese un valor mayor o igual a 10 segundos.","Veuillez saisir une valeur supérieure ou égale à 10 secondes.","Inserisci un valore maggiore o uguale a 10 secondi.","Insira um valor maior ou igual a 10 segundos.","الرجاء إدخال قيمة أكبر من أو تساوي 10 ثوانٍ.","Harap masukkan nilai yang lebih besar dari atau sama dengan 10 detik.","براہ کرم 10 سیکنڈ سے زیادہ یا اس کے برابر کی کوئی قیمت درج کریں۔","দয়া করে 10 সেকেন্ডের চেয়ে বড় বা সমান মান লিখুন।","Tafadhali ingiza thamani kubwa kuliko au sawa na sekunde 10.","لطفاً مقداری بزرگتر یا مساوی 10 ثانیه وارد کنید.","Masukkan nilai yang lebih besar daripada atau sama dengan 10 saat."]
["Please enter an integer from 1 to 10","Lütfen 1 ile 10 arasında bir tam sayı girin","Bitte geben Sie eine Ganzzahl von 1 bis 10 ein","Ingrese un número entero del 1 al 10","Veuillez saisir un entier de 1 à 10","Inserisci un numero intero compreso tra 1 e 10","Insira um número inteiro de 1 a 10","الرجاء إدخال عدد صحيح من 1 إلى 10","Harap masukkan bilangan bulat dari 1 hingga 10","براہ کرم ایک عدد 10 سے 10 تک داخل کریں","দয়া করে 1 থেকে 10 পর্যন্ত পূর্ণসংখ্যা প্রবেশ করান","Tafadhali ingiza nambari kutoka 1 hadi 10","لطفا یک عدد صحیح از 1 تا 10 وارد کنید","Sila masukkan bilangan bulat dari 1 hingga 10"]
["Please enter an integer from 1 to 20","Lütfen 1 ile 20 arasında bir tam sayı girin","Bitte geben Sie eine Ganzzahl von 1 bis 20 ein","Ingrese un número entero del 1 al 20","Veuillez saisir un entier de 1 à 20","Inserisci un numero intero compreso tra 1 e 20","Insira um número inteiro de 1 a 20","الرجاء إدخال عدد صحيح من 1 إلى 20","Harap masukkan bilangan bulat dari 1 hingga 20","براہ کرم 1 سے 20 تک تکمیل درج کریں","দয়া করে 1 থেকে 20 এর মধ্যে একটি পূর্ণসংখ্যা প্রবেশ করান","Tafadhali ingiza nambari kutoka 1 hadi 20","لطفا یک عدد صحیح از 1 تا 20 وارد کنید","Sila masukkan bilangan bulat dari 1 hingga 20"]
["Please enter an integer from 5 to 200","Lütfen 5 ile 200 arasında bir tam sayı girin","Bitte geben Sie eine Ganzzahl von 5 bis 200 ein","Ingrese un número entero de 5 a 200","Veuillez saisir un entier de 5 à 200","Inserisci un numero intero compreso tra 5 e 200","Insira um número inteiro de 5 a 200","الرجاء إدخال عدد صحيح من 5 إلى 200","Harap masukkan bilangan bulat dari 5 hingga 200","براہ کرم 5 سے 200 تک ایک عددی درج کریں","5 থেকে 200 এর মধ্যে একটি পূর্ণসংখ্যা প্রবেশ করান","Tafadhali ingiza nambari kamili kutoka 5 hadi 200","لطفا یک عدد صحیح از 5 تا 200 وارد کنید","Sila masukkan bilangan bulat dari 5 hingga 200"]
["Please refer to the manual for modifying the interface.","Arayüzü değiştirmek için lütfen kılavuza bakın.","Weitere Informationen zum Ändern der Schnittstelle finden Sie im Handbuch.","Consulte el manual para modificar la interfaz.","Veuillez vous référer au manuel pour modifier l'interface.","Fare riferimento al manuale per modificare l'interfaccia.","Consulte o manual para modificar a interface.","يرجى الرجوع إلى دليل تعديل الواجهة.","Silakan merujuk ke manual untuk mengubah antarmuka.","براہ کرم انٹرفیس میں ترمیم کرنے کے لئے دستی سے رجوع کریں۔","ইন্টারফেসটি পরিবর্তন করার জন্য দয়া করে ম্যানুয়ালটি দেখুন।","Tafadhali rejelea mwongozo wa kurekebisha kiolesura.","لطفاً برای تغییر رابط به دفترچه راهنما مراجعه کنید.","Sila rujuk manual untuk mengubah suai antara muka."]
["Please save, close, and reopen the workbook for the menu to be updated.","Lütfen menüyü güncellemek için çalışma kitabını kaydedin, kapatın ve yeniden açın.","Speichern Sie die Arbeitsmappe, schließen Sie sie und öffnen Sie sie erneut, damit das Menü aktualisiert werden kann.","Guarde, cierre y vuelva a abrir el libro de trabajo para que se actualice el menú.","Veuillez enregistrer, fermer et rouvrir le classeur pour que le menu soit mis à jour.","Salvare, chiudere e riaprire la cartella di lavoro per aggiornare il menu.","Salve, feche e reabra a pasta de trabalho para que o menu seja atualizado.","يرجى حفظ المصنف وإغلاقه وإعادة فتحه حتى يتم تحديث القائمة.","Harap simpan, tutup, dan buka kembali buku kerja untuk menu yang akan diperbarui.","براہ کرم مینو کی تازہ کاری کے ل work ورک بک کو محفوظ کریں ، بند کریں اور دوبارہ کھولیں۔","মেনু আপডেট হওয়ার জন্য দয়া করে ওয়ার্কবুকটি সংরক্ষণ করুন, বন্ধ করুন এবং আবার খুলুন।","Tafadhali weka, funga, na ufungue tena kitabu cha kazi ili menyu iweze kusasishwa.","لطفاً کتاب کار را برای به روزرسانی منو ذخیره ، بسته و دوباره باز کنید.","Sila simpan, tutup, dan buka semula buku kerja agar menu dikemas kini."]
["Please select a value from the list available in the selected cell.","Lütfen seçili hücrede bulunan listeden bir değer seçin.","Bitte wählen Sie einen Wert aus der Liste aus, die in der ausgewählten Zelle verfügbar ist.","Seleccione un valor de la lista disponible en la celda seleccionada.","Veuillez sélectionner une valeur dans la liste disponible dans la cellule sélectionnée.","Seleziona un valore dall'elenco disponibile nella cella selezionata.","Selecione um valor da lista disponível na célula selecionada.","يرجى تحديد قيمة من القائمة المتاحة في الخلية المحددة.","Pilih nilai dari daftar yang tersedia di sel yang dipilih.","براہ کرم منتخب کردہ سیل میں دستیاب فہرست میں سے ایک قیمت منتخب کریں۔","নির্বাচিত ঘরে উপলব্ধ তালিকা থেকে একটি মান নির্বাচন করুন।","Tafadhali chagua thamani kutoka kwenye orodha inayopatikana kwenye seli iliyochaguliwa.","لطفاً مقداری را از لیست موجود در سلول انتخاب شده انتخاب کنید.","Sila pilih nilai dari senarai yang ada di sel yang dipilih."]
["Populating distances, ","Mesafeler hesaplanıyor,","Entfernungen bevölkern,","Poblando distancias,","Remplir les distances,","Distanze di popolazione,","Preenchendo distâncias,","مسافات بالسكان ،","Jarak populasi,","آبادی فاصلے ،","জনসংখ্যা দূরত্ব,","Kuishi umbali,","مسافت جمعیتی ،","Jarak penduduk,"]
["Populating Lat/Lon, ","Enlem / Boylam bulunuyor,","Lat / Lon bevölkern,","Poblando Lat / Lon,","Remplir Lat / Lon,","Popolazione Lat / Lon,","Preenchendo Lat / Lon,","السكان لات / لون ،","Mengisi Lintang / Bujur,","لیٹ / لون آبادی ،","জনসংখ্যা ল্যাট / লোন,","Kujaa Lat / Lon,","جمعیت Lat / Lon ،","Mengisi Lat / Lon,"]
["Populating the distances using Bing Maps GIS service will overwrite existing distance data and take some time (estimated ","Bing Maps GIS hizmetini kullanarak mesafeleri doldurmak, mevcut mesafe verilerinin üzerine yazacak ve biraz zaman alacaktır (tahmini","Das Auffüllen der Entfernungen mit dem Bing Maps GIS-Dienst überschreibt vorhandene Entfernungsdaten und dauert einige Zeit (geschätzt)","Completar las distancias con el servicio GIS de Bing Maps sobrescribirá los datos de distancia existentes y llevará algún tiempo (estimado","Le remplissage des distances à l'aide du service SIG Bing Maps écrasera les données de distance existantes et prendra un certain temps (estimation","Il popolamento delle distanze utilizzando il servizio Bing Maps GIS sovrascriverà i dati di distanza esistenti e richiederà del tempo (stimato","Preencher as distâncias usando o serviço Bing Maps GIS substituirá os dados de distância existentes e levará algum tempo (estimativa","سيؤدي ملء المسافات باستخدام خدمة Bing Maps GIS إلى الكتابة فوق بيانات المسافة الحالية وسيستغرق بعض الوقت (تقديري","Mengisi jarak menggunakan layanan Bing Maps GIS akan menimpa data jarak yang ada dan memakan waktu (perkiraan","بنگ میپس جی آئی ایس سروس کا استعمال کرتے ہوئے فاصلوں کو آباد کرنا موجودہ فاصلے کے ڈیٹا کو ادلھ دے گا اور کچھ وقت لگے گا (تخمینہ لگایا گیا ہے)","বিং মানচিত্র জিআইএস পরিষেবা ব্যবহার করে দূরত্বকে জনসংখ্যা করা বিদ্যমান দূরত্বের ডেটা ওভাররাইট করে এবং কিছু সময় নিতে পারে (আনুমানিক)","Kuongeza umbali kutumia huduma ya Ramani za Bing GIS kutaandika data ya umbali iliyopo na itachukua muda (inakadiriwa","جمع کردن فواصل با استفاده از سرویس GIS Bing Maps داده های فاصله موجود را رونویسی می کند و مدتی طول می کشد (تخمین زده می شود)","Mengisi jarak menggunakan perkhidmatan GIS Peta Bing akan menimpa data jarak yang ada dan memerlukan sedikit masa (dianggarkan"]
["Profit","Kar","Profitieren","Lucro","Profit","Profitto","Lucro","الربح","Keuntungan","منافع","লাভ","Faida","سود","Keuntungan"]
["Profit collected","Toplanan kar","Gewinn gesammelt","Beneficio recaudado","Bénéfice collecté","Utile raccolto","Lucro coletado","تم جمع الأرباح","Keuntungan terkumpul","منافع جمع ہوا","লাভ আদায় করা","Faida imekusanywa","سود جمع شده","Keuntungan dikumpulkan"]
["Reasons for infeasibility detected.","Uygulanabilirlik nedenleri tespit edildi.","Gründe für die Unmöglichkeit festgestellt.","Razones de inviabilidad detectadas.","Raisons d'infaisabilité détectées.","Motivi dell'infattibilità rilevati.","Razões de inviabilidade detectadas.","تم الكشف عن أسباب عدم الجدوى.","Alasan ketidaklayakan terdeteksi.","نا اہلیت کی وجوہات کا پتہ چلا۔","অপ্রাপ্তির কারণ চিহ্নিত করা হয়েছে।","Sababu za kutowezekana zimegunduliwa.","دلایل عدم امکان شناسایی","Sebab-sebab ketidaklayakan dikesan."]
["Recommendation: At least ","Öneri: En azından","Empfehlung: Zumindest","Recomendación: al menos","Recommandation: au moins","Raccomandazione: almeno","Recomendação: pelo menos","التوصية: على الأقل","Rekomendasi: Setidaknya","سفارش: کم از کم","প্রস্তাবনা: কমপক্ষে","Pendekezo: Angalau","توصیه: حداقل","Cadangan: Sekurang-kurangnya"]
["Recommendation: Use 'Fastest'","Öneri: \"En Hızlı\" seçeneğini kullanın","Empfehlung: Verwenden Sie \"Schnellste\"","Recomendación: use 'más rápido'","Recommandation: utilisez 'Fastest'","Consiglio: usa \"Fastest\"","Recomendação: use 'mais rápido'","توصية: استخدم \"الأسرع\"","Rekomendasi: Gunakan 'Tercepat'","تجویز: 'تیز ترین' استعمال کریں","প্রস্তাবনা: 'দ্রুততম' ব্যবহার করুন","Pendekezo: Tumia 'Haraka zaidi'","توصیه: از \"سریعترین\" استفاده کنید","Cadangan: Gunakan 'Terpantas'"]
["Recommendation: Use 'postcode, country' format for addresses","Öneri: Adresler için \"posta kodu, ülke\" biçimini kullanın","Empfehlung: Verwenden Sie für Adressen das Format \"Postleitzahl, Land\"","Recomendación: utilice el formato 'código postal, país' para las direcciones","Recommandation: utilisez le format «code postal, pays» pour les adresses","Raccomandazione: utilizza il formato \"codice postale, paese\" per gli indirizzi","Recomendação: use o formato de 'código postal, país' para endereços","توصية: استخدم تنسيق \"الرمز البريدي ، البلد\" للعناوين","Rekomendasi: Gunakan format 'kode pos, negara' untuk alamat","تجویز: پتوں کے لئے 'پوسٹ کوڈ ، ملک' کی شکل استعمال کریں","প্রস্তাবনা: ঠিকানার জন্য 'পোস্টকোড, দেশ' বিন্যাস ব্যবহার করুন","Pendekezo: Tumia muundo wa 'msimbo wa posta, nchi' kwa anwani","پیشنهاد: برای آدرس ها از قالب \"کد پستی ، کشور\" استفاده کنید","Cadangan: Gunakan format 'poskod, negara' untuk alamat"]
["Rectilinear (Manhattan) distances","Doğrusal (Manhattan) mesafeler","Geradlinige (Manhattan) Entfernungen","Distancias rectilíneas (Manhattan)","Distances rectilignes (Manhattan)","Distanze rettilinee (Manhattan)","Distâncias retilíneas (Manhattan)","مسافات مستقيمة (مانهاتن)","Jarak bujursangkar (Manhattan)","ریکٹ لائنیر (مین ہٹن) دوریاں","রেকটিলাইনার (ম্যানহাটন) দূরত্ব","Umbali wa Rectilinear (Manhattan)","فاصله های یک خطی (منهتن)","Jarak Rectilinear (Manhattan)"]
["Remarks","Uyarılar","Bemerkungen","Observaciones","Remarques","Osservazioni","Observações","ملاحظات","Catatan","ریمارکس","মন্তব্য","Maneno","ملاحظات","Kenyataan"]
["Return depot","Dönüş deposu","Rückgabedepot","Depósito de devolución","Dépôt de retour","Deposito di ritorno","Depósito de devolução","مستودع العودة","Kembali depot","ڈپو واپس","রিটার্ন ডিপো","Rudisha bohari","انبار برگشت","Balik depot"]
["Rounded Euclidian distances","Yuvarlanmış Öklid mesafeleri","Abgerundete euklidische Abstände","Distancias euclidianas redondeadas","Distances euclidiennes arrondies","Distanze euclidee arrotondate","Distâncias euclidianas arredondadas","مسافات إقليدية مستديرة","Jarak Euclidian membulat","گول یکلیڈیائی دوری","গোলাকার ইউক্যালিডিয়ান দূরত্ব","Umbali wa mviringo wa Euclidian","فاصله های اقلیدسی گرد شده","Jarak Euclidian yang bulat"]
["Rusuhi Cantay for helping with the multi-language support.","Rusuhi Cantay, çoklu dil desteğine yardımcı olduğu için.","Rusuhi Cantay für die Unterstützung bei der mehrsprachigen Unterstützung.","Rusuhi Cantay por ayudar con el soporte multilingüe.","Rusuhi Cantay pour son aide avec le support multilingue.","Rusuhi Cantay per aver aiutato con il supporto multilingue.","Rusuhi Cantay por ajudar com o suporte multilíngue.","Rusuhi Cantay للمساعدة في دعم متعدد اللغات.","Rusuhi Cantay atas bantuannya dengan dukungan multi-bahasa.","متعدد زبانوں کی مدد میں مدد کرنے کے لئے روسہی کینٹی۔","বহুভাষা সহায়তায় সহায়তার জন্য রুশুহি কন্টে।","Rusuhi Cantay kwa kusaidia na msaada wa lugha anuwai.","Rusuhi Cantay برای کمک به پشتیبانی چند زبانه.","Rusuhi Cantay kerana membantu dengan sokongan berbilang bahasa."]
["School of Management, University of Bath, 2020.","İşletme Fakültesi, Bath Üniversitesi, 2020.","School of Management, Universität Bath, 2020.","Escuela de Administración, Universidad de Bath, 2020.","École de gestion, Université de Bath, 2020.","School of Management, Università di Bath, 2020.","School of Management, University of Bath, 2020.","كلية الإدارة ، جامعة باث ، 2020.","Sekolah Manajemen, Universitas Bath, 2020.","اسکول آف مینجمنٹ ، باتھ یونیورسٹی ، 2020۔","স্কুল অফ ম্যানেজমেন্ট, ইউনিভার্সিটি অফ বাথ, ২০২০।","Shule ya Usimamizi, Chuo Kikuu cha Bath, 2020.","دانشکده مدیریت ، دانشگاه بات ، 2020","Sekolah Pengurusan, Universiti Bath, 2020."]
["Send feedback / ask a question","Geri bildirim gönderin / soru sorun","Feedback senden / Frage stellen","Enviar comentarios / hacer una pregunta","Envoyer des commentaires / poser une question","Invia feedback / fai una domanda","Envie feedback / faça uma pergunta","إرسال ملاحظات / طرح سؤال","Kirim tanggapan / ajukan pertanyaan","آراء بھیجیں / کوئی سوال پوچھیں","প্রতিক্রিয়া পাঠান / একটি প্রশ্ন জিজ্ঞাসা করুন","Tuma maoni / uliza swali","بازخورد ارسال کنید / س askالی بپرسید","Hantar maklum balas / ajukan soalan"]
["Sequence","Sıra","Reihenfolge","Secuencia","Séquence","Sequenza","Seqüência","تسلسل","Urutan","تسلسل","ক্রম","Mlolongo","توالی","Urutan"]
["Service time","Servis zamanı","Servicezeit","Tiempo de servicio","Temps de service","Tempo di servizio","Tempo de serviço","وقت الخدمة","Waktu pelayanan","خدمت کا وقت","পরিষেবা সময়","Wakati wa huduma","زمان سرویس","Masa perkhidmatan"]
["Setting up distances worksheet, working on location ","Mesafeler çalışma sayfası ayarlama, konum üzerinde çalışma","Arbeitsblatt für Entfernungen einrichten und vor Ort arbeiten","Configuración de la hoja de cálculo de distancias, trabajando en el lugar","Configuration de la feuille de calcul des distances, travail sur site","Impostazione del foglio di lavoro delle distanze, lavoro sulla posizione","Planilha de configuração de distâncias, trabalhando no local","إعداد ورقة عمل المسافات والعمل على الموقع","Menyiapkan lembar kerja jarak, mengerjakan lokasi","فاصلے والی ورک شیٹ مرتب کرنا ، مقام پر کام کرنا","অবস্থানের উপর কাজ করে দূরত্বের কার্যপত্রক সেট আপ করা হচ্ছে","Kuweka karatasi ya umbali, kufanya kazi kwenye eneo","راه اندازی کاربرگ مسافت ، کار با مکان","Menyiapkan lembaran kerja jarak jauh, bekerja di lokasi"]
["Setting up solution worksheet, working on vehicle ","Çözüm çalışma sayfası oluşturma, araç üzerinde çalışma","Lösungsarbeitsblatt einrichten, am Fahrzeug arbeiten","Configuración de la hoja de trabajo de la solución, trabajando en el vehículo","Configuration de la feuille de calcul de la solution, travail sur le véhicule","Impostazione del foglio di lavoro della soluzione, lavorando sul veicolo","Configurando planilha de solução, trabalhando no veículo","إعداد ورقة عمل الحل ، والعمل على السيارة","Menyiapkan lembar kerja solusi, mengerjakan kendaraan","حل ورکشیٹ مرتب کرنا ، گاڑی پر کام کرنا","সলিউশন ওয়ার্কশিট স্থাপন, যানবাহনে কাজ করা","Kuweka karatasi ya suluhisho, kufanya kazi kwenye gari","راه اندازی صفحه کار راه حل ، کار بر روی وسیله نقلیه","Menyiapkan lembaran kerja penyelesaian, bekerja pada kenderaan"]
["Shortest","En kısa","Kürzeste","Más corto","Le plus court","Il più breve","Mais curto","أقصر","Terpendek","سب سے کم","সবচেয়ে কম","Fupi zaidi","کوتاهترین","Terpendek"]
["Show progress on the status bar?","Durum çubuğunda ilerleme gösterilsin mi?","Fortschritt in der Statusleiste anzeigen?","¿Mostrar progreso en la barra de estado?","Afficher la progression sur la barre d'état?","Mostrare i progressi sulla barra di stato?","Mostrar progresso na barra de status?","إظهار التقدم على شريط الحالة؟","Tampilkan kemajuan di bilah status?","اسٹیٹس بار پر پیشرفت دکھائیں؟","স্ট্যাটাস বারে অগ্রগতি দেখান?","Onyesha maendeleo kwenye mwambaa hali?","پیشرفت در نوار وضعیت نشان داده می شود؟","Tunjukkan kemajuan pada bar status?"]
["Soft","Yumuşak","Sanft","Suave","Doux","Morbido","Suave","ناعم","Lembut","نرم","নরম","Laini","نرم","Lembut"]
["Solution worksheet setup complete.","Çözüm çalışma sayfası kurulumu tamamlandı.","Einrichtung des Lösungsarbeitsblatts abgeschlossen.","Se completó la configuración de la hoja de trabajo de la solución.","Configuration de la feuille de calcul de la solution terminée.","Configurazione del foglio di lavoro della soluzione completata.","Configuração da planilha de solução concluída.","اكتمل إعداد ورقة عمل الحل.","Pengaturan lembar kerja solusi selesai.","حل ورکشیٹ سیٹ اپ مکمل۔","সমাধান ওয়ার্কশিট সেটআপ সম্পূর্ণ।","Usanidi wa karatasi ya suluhisho umekamilika.","راه اندازی صفحه کار راه حل کامل است.","Penyediaan lembaran kerja penyelesaian selesai."]
["Starting depot","Başlangıç deposu","Depot starten","Depósito inicial","Dépôt de départ","Deposito di partenza","Depósito inicial","بدء المستودع","Memulai depo","ڈپو شروع کرنا","ডিপো শুরু হচ্ছে","Kuanzia bohari","شروع انبار","Memulakan depot"]
["Starting LNS iteration ","LNS yinelemesini başlatma","Starten der LNS-Iteration","Inicio de la iteración LNS","Démarrage de l'itération LNS","Avvio dell'iterazione LNS","Iniciando a iteração LNS","بدء تكرار LNS","Memulai iterasi LNS","LNS تکرار شروع کرنا","এলএনএস পুনরাবৃত্তি শুরু হচ্ছে","Kuanzisha upimaji wa LNS","شروع تکرار LNS","Memulakan lelaran LNS"]
["Starting location","Başlangıç ​​konumu","Startort","Lugar de inicio","Lieu de départ","Luogo di partenza","Localização inicial","موقع البدء","Lokasi awal","شروع مقام","শুরু অবস্থান","Kuanzia eneo","شروع مکان","Lokasi permulaan"]
["Stop count","Saymayı durdur","Stoppt die Zählung","Detener la cuenta","Arrêter le compte","Smetti di contare","Parar a contagem","وقف العد","Hentikan hitungan","گنتی بند کرو","গণনা বন্ধ করুন","Acha kuhesabu","شمارش را متوقف کنید","Berhenti mengira"]
["Stops:","Durur:","Stopps:","Paradas:","Arrêts:","Fermate:","Pára:","توقف:","Berhenti:","رک جاتا ہے:","স্টপস:","Imesimama:","متوقف می شود:","Berhenti:"]
["Subtractive delivery","Eksiltici teslimat","Subtraktive Lieferung","Entrega sustractiva","Livraison soustractive","Consegna sottrattiva","Entrega subtrativa","تسليم مطروح","Pengiriman subtraktif","گھٹانے والی ترسیل","বিয়োগের বিতরণ","Utoaji wa kuvutia","زایمان کم کننده","Penghantaran yang kurang menarik"]
["The best found solution after ","Bulunan en iyi çözüm","Die am besten gefundene Lösung nach","La mejor solución encontrada después","La meilleure solution trouvée après","La migliore soluzione trovata dopo","A melhor solução encontrada após","أفضل حل وجد بعد","Solusi terbaik yang ditemukan setelahnya","اس کے بعد بہترین حل ملا","এর পরে সবচেয়ে ভাল সমাধান পাওয়া গেল","Suluhisho bora kupatikana baada ya","بهترین راه حل پیدا شده بعد","Penyelesaian terbaik dijumpai selepas"]
["The capacity of the given fleet is not enough to transport the mandatory demand.","Verilen filonun kapasitesi, zorunlu talebi taşımak için yeterli değil.","Die Kapazität der jeweiligen Flotte reicht nicht aus, um den obligatorischen Bedarf zu decken.","La capacidad de la flota dada no es suficiente para transportar la demanda obligatoria.","La capacité de la flotte donnée n'est pas suffisante pour transporter la demande obligatoire.","La capacità della flotta data non è sufficiente per trasportare la domanda obbligatoria.","A capacidade da frota fornecida não é suficiente para escoar a demanda obrigatória.","سعة الأسطول المعين ليست كافية لنقل الطلب الإلزامي.","Kapasitas armada yang diberikan tidak cukup untuk mengangkut permintaan wajib.","دیئے گئے بیڑے کی گنجائش لازمی مطالبہ کو ٹرانسپورٹ کرنے کے لئے کافی نہیں ہے۔","প্রদত্ত বহরের সক্ষমতা বাধ্যতামূলক চাহিদা পরিবহনের জন্য যথেষ্ট নয়।","Uwezo wa meli zilizopewa haitoshi kusafirisha mahitaji ya lazima.","ظرفیت ناوگان داده شده برای انتقال تقاضای اجباری کافی نیست.","Kapasiti armada yang diberikan tidak cukup untuk mengangkut permintaan wajib."]
["The capacity of the given fleet is not enough to transport the mandatory supply.","Verilen filonun kapasitesi, zorunlu tedariki taşımak için yeterli değil.","Die Kapazität der jeweiligen Flotte reicht nicht aus, um die obligatorische Versorgung zu transportieren.","La capacidad de la flota dada no es suficiente para transportar el suministro obligatorio.","La capacité de la flotte donnée n'est pas suffisante pour transporter l'approvisionnement obligatoire.","La capacità della flotta data non è sufficiente per trasportare la fornitura obbligatoria.","A capacidade da frota fornecida não é suficiente para transportar o abastecimento obrigatório.","سعة الأسطول المحدد ليست كافية لنقل الإمداد الإلزامي.","Kapasitas armada yang diberikan tidak cukup untuk mengangkut suplai wajib.","دیئے گئے بیڑے کی گنجائش لازمی فراہمی کو لے جانے کے ل to کافی نہیں ہے۔","বাধ্যতামূলক সরবরাহ পরিবহনের জন্য প্রদত্ত বহরের সক্ষমতা যথেষ্ট নয়।","Uwezo wa meli zilizopewa haitoshi kusafirisha usambazaji wa lazima.","ظرفیت ناوگان داده شده برای حمل و نقل تامین اجباری کافی نیست.","Kapasiti armada yang diberikan tidak cukup untuk mengangkut bekalan wajib."]
["The demand of location ","Yer talebi","Die Nachfrage nach Standort","La demanda de ubicación","La demande de localisation","La domanda di posizione","A demanda de localização","طلب الموقع","Permintaan lokasi","مقام کا مطالبہ","অবস্থানের চাহিদা","Mahitaji ya eneo","تقاضای مکان","Permintaan lokasi"]
["The latest version of the solver can be downloaded at","Çözücünün en son sürümü şu adresten indirilebilir:","Die neueste Version des Solvers kann unter heruntergeladen werden","La última versión del solucionador se puede descargar en","La dernière version du solveur peut être téléchargée sur","L'ultima versione del risolutore può essere scaricata all'indirizzo","A versão mais recente do solver pode ser baixada em","يمكن تنزيل أحدث إصدار من برنامج الحل على","Versi terbaru dari pemecah dapat diunduh di","سالور کا تازہ ترین ورژن ڈاؤن لوڈ کیا جاسکتا ہے","সলভারটির সর্বশেষতম সংস্করণটি এখানে ডাউনলোড করা যায়","Toleo la hivi karibuni la solver linaweza kupakuliwa kwenye","آخرین نسخه حل کننده را می توانید در اینجا بارگیری کنید","Versi pemecah terkini boleh dimuat turun di"]
["The latest version of the solver can be downloaded at: http://people.bath.ac.uk/ge277/vrp-spreadsheet-solver/","Çözücünün en son sürümü şu adresten indirilebilir: http://people.bath.ac.uk/ge277/vrp-spreadsheet-solver/","Die neueste Version des Solvers kann unter folgender Adresse heruntergeladen werden: http://people.bath.ac.uk/ge277/vrp-spreadsheet-solver/","La última versión del solucionador se puede descargar en: http://people.bath.ac.uk/ge277/vrp-spreadsheet-solver/","La dernière version du solveur peut être téléchargée à l'adresse: http://people.bath.ac.uk/ge277/vrp-spreadsheet-solver/","L'ultima versione del solutore può essere scaricata all'indirizzo: http://people.bath.ac.uk/ge277/vrp-spreadsheet-solver/","A versão mais recente do solver pode ser baixada em: http://people.bath.ac.uk/ge277/vrp-spreadsheet-solver/","يمكن تنزيل أحدث إصدار من برنامج الحلول من: http://people.bath.ac.uk/ge277/vrp-spreadsheet-solver/","Versi terbaru dari solver dapat diunduh di: http://people.bath.ac.uk/ge277/vrp-spreadsheet-solver/","سالور کا تازہ ترین ورژن اس پر ڈاؤن لوڈ کیا جاسکتا ہے:","সমাধানকারীটির সর্বশেষতম সংস্করণটি এখানে ডাউনলোড করা যাবে:","Toleo la hivi karibuni la suluhisho linapakuliwa kwenye: http://people.bath.ac.uk/ge277/vrp-spreadsheet-solver/","آخرین نسخه حل کننده را می توان در اینجا بارگیری کرد: http://people.bath.ac.uk/ge277/vrp-spreadsheet-solver/","Versi pemecah terkini boleh dimuat turun di: http://people.bath.ac.uk/ge277/vrp-spreadsheet-solver/"]
["The load of vehicle ","Aracın yükü","Die Ladung des Fahrzeugs","La carga del vehículo","La charge du véhicule","Il carico del veicolo","A carga do veículo","حمولة السيارة","Beban kendaraan","گاڑی کا بوجھ","যানবাহন বোঝা","Mzigo wa gari","بار خودرو","Beban kenderaan"]
["The service time of location ","Konumun hizmet süresi","Die Servicezeit des Standorts","El tiempo de servicio de la ubicación.","Le temps de service de l'emplacement","Il tempo di servizio del luogo","O tempo de serviço da localização","وقت خدمة الموقع","Waktu layanan lokasi","مقام کی خدمت کا وقت","অবস্থানের পরিষেবা সময়","Wakati wa huduma ya eneo","زمان سرویس دهی محل","Waktu perkhidmatan lokasi"]
["The solution has format problems:","Çözümün format sorunları var:","Die Lösung hat Formatprobleme:","La solución tiene problemas de formato:","La solution a des problèmes de format:","La soluzione presenta problemi di formato:","A solução tem problemas de formato:","الحل به مشاكل في التنسيق:","Solusinya memiliki masalah format:","حل میں شکل کی دشواری ہے۔","সমাধানটির ফর্ম্যাট সমস্যা রয়েছে:","Suluhisho lina shida za fomati:","این راه حل دارای مشکلات فرمت است:","Penyelesaiannya mempunyai masalah format:"]
["The solution is feasible.","Çözüm uygulanabilir.","Die Lösung ist machbar.","La solución es factible.","La solution est faisable.","La soluzione è fattibile.","A solução é viável.","الحل ممكن.","Solusinya layak.","حل ممکن ہے۔","সমাধানটি সম্ভাব্য।","Suluhisho linawezekana.","راه حل عملی است.","Penyelesaiannya boleh dilaksanakan."]
["The solution is infeasible.","Çözüm mümkün değil.","Die Lösung ist nicht realisierbar.","La solución es inviable.","La solution est irréalisable.","La soluzione è irrealizzabile.","A solução é inviável.","الحل غير ممكن.","Solusinya tidak mungkin.","حل ناقابل علاج ہے۔","সমাধানটি অক্ষম।","Suluhisho haliwezekani.","راه حل غیرقابل اجرا است.","Penyelesaiannya tidak dapat dilaksanakan."]
["The supply of location ","Yer temini","Die Lieferung von Standort","La oferta de ubicación","L'offre de localisation","La fornitura di location","A oferta de localização","توريد الموقع","Pasokan lokasi","مقام کی فراہمی","লোকেশন সরবরাহ","Ugavi wa eneo","تأمین محل","Bekalan lokasi"]
["The time window end time of location ","Konumun zaman aralığı bitiş zamanı","Die Zeitfenster-Endzeit des Standorts","La hora de finalización de la ventana de tiempo de la ubicación","L'heure de fin de la fenêtre de temps de l'emplacement","L'ora di fine della finestra temporale del luogo","O horário de término da janela de tempo do local","وقت انتهاء النافذة الزمنية للموقع","Waktu akhir jendela waktu lokasi","مقام کا وقت ونڈو اختتامی وقت","অবস্থানের সময় উইন্ডো শেষ সময়","Wakati wa mwisho wa eneo la dirisha","زمان پایان زمان پنجره زمان","Masa tamat lokasi masa"]
["The time window start time of location ","Konumun zaman penceresi başlangıç ​​zamanı","Die Zeitfenster-Startzeit des Standorts","La hora de inicio de la ventana de tiempo de la ubicación","L'heure de début de la fenêtre horaire de l'emplacement","L'ora di inizio della finestra temporale del luogo","A janela de tempo, hora de início do local","وقت بدء النافذة الزمنية للموقع","Jendela waktu mulai waktu lokasi","وقت کی کھڑکی شروع ہونے کا وقت","অবস্থানের সময় উইন্ডো শুরুর সময়","Wakati wa kuanza kwa dirisha la saa","زمان شروع مکان پنجره زمان","Jangka masa waktu mula lokasi"]
["The visit time of location ","Konumun ziyaret süresi","Die Besuchszeit des Ortes","La hora de la visita de la ubicación","L'heure de la visite du lieu","Il tempo di visita del luogo","A hora da visita do local","وقت الزيارة للموقع","Waktu kunjungan lokasi","مقام کا وزٹ ٹائم","অবস্থানের দর্শন সময়","Wakati wa kutembelea eneo","زمان بازدید از محل","Waktu lawatan lokasi"]
["There are coordinates with |latitude| > 90 or |longitude| > 180. Proceeding with a blank background.","| Enlem | ile koordinatlar var > 90 veya | boylam | > 180. Boş bir arka planla devam ediliyor.","Es gibt Koordinaten mit | Breitengrad | > 90 oder | Länge | > 180. Fahren Sie mit einem leeren Hintergrund fort.","Hay coordenadas con | latitud | > 90 o | longitud | > 180. Proceder con un fondo en blanco.","Il y a des coordonnées avec | latitude | > 90 ou | longitude | > 180. Continuer avec un arrière-plan vierge.","Ci sono coordinate con | latitudine | > 90 o | longitudine | > 180. Procedendo con uno sfondo bianco.","Existem coordenadas com | latitude | > 90 ou | longitude | > 180. Continuando com um fundo em branco.","هناك إحداثيات مع | خط العرض | > 90 أو | خط الطول | > 180. المتابعة بخلفية فارغة.","Ada koordinat dengan | latitude | > 90 atau | bujur | > 180. Melanjutkan dengan latar belakang kosong.","| عرض البلد کے ساتھ نقاط ہیں > 90 یا | طول البلد | > 180. خالی پس منظر کے ساتھ آگے بڑھ رہے ہیں۔","| অক্ষাংশ | সহ স্থানাঙ্ক রয়েছে > 90 বা | দ্রাঘিমাংশ | > 180. একটি ফাঁকা পটভূমি নিয়ে এগিয়ে চলছে।","Kuna kuratibu na | latitudo | > 90 au | longitudo | > 180. Kuendelea na usuli tupu.","مختصات با | عرض جغرافیایی | وجود دارد > 90 یا | طول جغرافیایی | > 180. ادامه با پس زمینه خالی.","Terdapat koordinat dengan | latitud | > 90 atau | bujur | > 180. Teruskan dengan latar belakang kosong."]
["There is not enough supply for pickup items to satisfy the demand for pickup items.","Teslim alma kalemlerine yönelik talebi karşılayacak kadar yeterli tedarik yok.","Es gibt nicht genügend Angebot für Abholartikel, um die Nachfrage nach Abholartikeln zu befriedigen.","No hay suficiente suministro de artículos para recoger para satisfacer la demanda de artículos para recoger.","L'offre d'articles à ramasser n'est pas suffisante pour satisfaire la demande d'articles à ramasser.","L'offerta di articoli da prelevare non è sufficiente per soddisfare la domanda di articoli da prelevare.","Não há suprimento suficiente para itens de coleta para satisfazer a demanda por itens de coleta.","لا يوجد عرض كافٍ لعناصر الاستلام لتلبية الطلب على عناصر الالتقاط.","Tidak ada cukup persediaan barang pikap untuk memenuhi permintaan barang pikap.","پک اپ آئٹمز کی طلب کو پورا کرنے کے لئے پک اپ آئٹمز کے لئے کافی سپلائی نہیں ہے۔","পিকআপ আইটেমগুলির চাহিদা মেটাতে পিকআপ আইটেমগুলির জন্য পর্যাপ্ত সরবরাহ নেই।","Hakuna usambazaji wa kutosha wa vitu vya kubeba kukidhi mahitaji ya vitu vya kubeba.","برای کالاهای وانت عرضه کافی برای تأمین تقاضای کالاهای وانت وجود ندارد.","Tidak ada cukup bekalan untuk barang pickup untuk memenuhi permintaan barang pickup."]
["There may be at most one return to the starting location. Violation at: ","Başlangıç ​​konumuna en fazla bir dönüş olabilir. İhlal:","Es kann höchstens eine Rückkehr zum Startort geben. Verletzung bei:","Puede haber como máximo un regreso al lugar de inicio. Violación en:","Il peut y avoir au plus un retour au point de départ. Violation à:","Può esserci al massimo un ritorno al luogo di partenza. Violazione a:","Pode haver no máximo um retorno ao local de partida. Violação em:","قد يكون هناك عودة واحدة على الأكثر إلى موقع البداية. الانتهاك في:","Mungkin ada paling banyak satu kali kembali ke lokasi awal. Pelanggaran di:","ابتدائی مقام پر زیادہ سے زیادہ ایک واپسی ہوسکتی ہے۔ خلاف ورزی:","প্রারম্ভিক অবস্থানে সর্বাধিক এক ফিরতে পারে। লঙ্ঘন এখানে:","Kunaweza kuwa na kurudi mara moja kwa eneo la kuanzia. Ukiukaji saa:","حداکثر ممکن است یک بازگشت به محل شروع وجود داشته باشد. تخلف در:","Mungkin ada paling banyak satu kembali ke lokasi permulaan. Pelanggaran di:"]
["There must be at least one available vehicle for the solution worksheet to be created.","Çözüm çalışma sayfasının oluşturulabilmesi için en az bir kullanılabilir araç olması gerekir.","Für die Erstellung des Lösungsarbeitsblatts muss mindestens ein Fahrzeug verfügbar sein.","Debe haber al menos un vehículo disponible para que se cree la hoja de trabajo de la solución.","Il doit y avoir au moins un véhicule disponible pour que la feuille de calcul de la solution soit créée.","Per poter creare il foglio di lavoro della soluzione deve essere disponibile almeno un veicolo.","Deve haver pelo menos um veículo disponível para a planilha de solução a ser criada.","يجب أن تكون هناك مركبة واحدة متاحة على الأقل حتى يتم إنشاء ورقة عمل الحل.","Harus ada setidaknya satu kendaraan yang tersedia untuk lembar kerja solusi yang akan dibuat.","کم از کم ایک دستیاب کی گاڑی وہاں ہونا ضروری ہے کے لئے حل قرطاس پیدا کی جائے.","সমাধানের কার্যপত্রকটি তৈরি করতে অবশ্যই কমপক্ষে একটি উপলব্ধ যানবাহন থাকতে হবে।","Lazima kuwe na angalau gari moja inayopatikana ili karatasi ya suluhisho iundwe.","برای ایجاد صفحه کار راه حل باید حداقل یک وسیله نقلیه در دسترس باشد.","Terdapat sekurang-kurangnya satu kenderaan yang tersedia agar lembaran kerja penyelesaian dibuat."]
["This will delete all existing problem data. Do you want to continue?","Bu, tüm mevcut sorun verilerini silecektir. Devam etmek istiyor musun?","Dadurch werden alle vorhandenen Problemdaten gelöscht. Wollen Sie fortfahren?","Esto eliminará todos los datos de problemas existentes. ¿Quieres continuar?","Cela supprimera toutes les données de problème existantes. Voulez-vous continuer?","Questo cancellerà tutti i dati esistenti del problema. Vuoi continuare?","Isso excluirá todos os dados do problema existentes. Você quer continuar?","سيؤدي هذا إلى حذف جميع بيانات المشكلة الموجودة. هل تريد الاستمرار؟","Ini akan menghapus semua data masalah yang ada. Apakah Anda ingin melanjutkan?","اس سے تمام موجودہ مسئلہ کا ڈیٹا حذف ہوجائے گا۔ کیا آپ جاری رکھنا چاہتے ہیں؟","এটি সমস্ত বিদ্যমান সমস্যার ডেটা মুছে ফেলবে। আপনি কি অবিরত করতে চান?","Hii itafuta data zote zilizopo za shida. Je! Unataka kuendelea?","با این کار تمام داده های مشکل موجود حذف می شوند. می خواهید ادامه دهید؟","Ini akan menghapus semua data masalah yang ada. Adakah anda mahu meneruskan?"]
["This will delete existing distance, solution, and visualization data. Do you want to continue?","Bu, mevcut mesafe, çözüm ve görselleştirme verilerini silecektir. Devam etmek istiyor musun?","Dadurch werden vorhandene Entfernungs-, Lösungs- und Visualisierungsdaten gelöscht. Wollen Sie fortfahren?","Esto eliminará los datos existentes de distancia, solución y visualización. ¿Quieres continuar?","Cela supprimera les données de distance, de solution et de visualisation existantes. Voulez-vous continuer?","Ciò eliminerà i dati esistenti di distanza, soluzione e visualizzazione. Vuoi continuare?","Isso excluirá os dados existentes de distância, solução e visualização. Você quer continuar?","سيؤدي هذا إلى حذف بيانات المسافة والحلول والتصور الموجودة. هل تريد الاستمرار؟","Ini akan menghapus data jarak, solusi, dan visualisasi yang ada. Apakah Anda ingin melanjutkan?","یہ موجودہ دوری، حل، اور تصور کے اعداد و شمار کو خارج کر دیں گے. کیا آپ جاری رکھنا چاہتے ہیں؟","এটি বিদ্যমান দূরত্ব, সমাধান এবং ভিজ্যুয়ালাইজেশন ডেটা মুছে ফেলবে। আপনি কি অবিরত করতে চান?","Hii itafuta data iliyopo ya umbali, suluhisho, na taswira. Je! Unataka kuendelea?","با این کار داده ها ، راه حل و تجسم موجود حذف می شود. می خواهید ادامه دهید؟","Ini akan menghapus data jarak, penyelesaian, dan visualisasi yang ada. Adakah anda mahu meneruskan?"]
["This will overwrite existing distance data, and will take some time (estimated ","Bu, mevcut mesafe verilerinin üzerine yazacak ve biraz zaman alacaktır (tahmini","Dies überschreibt vorhandene Entfernungsdaten und dauert einige Zeit (geschätzt)","Esto sobrescribirá los datos de distancia existentes y llevará algún tiempo (estimado","Cela écrasera les données de distance existantes et prendra un certain temps (estimation","Questo sovrascriverà i dati sulla distanza esistenti e richiederà del tempo (stimato","Isso substituirá os dados de distância existentes e levará algum tempo (estimativa","سيؤدي هذا إلى استبدال بيانات المسافة الحالية ، وسيستغرق بعض الوقت (تقديري","Ini akan menimpa data jarak yang ada, dan akan memakan waktu (perkiraan","اس سے موجودہ فاصلے کے ڈیٹا کو ادلیکھت ہوجائے گی ، اور اس میں کچھ وقت لگے گا (اندازہ لگایا گیا ہے کہ)","এটি বিদ্যমান দূরত্বের ডেটা ওভাররাইট করবে এবং কিছু সময় নেবে (আনুমানিক)","Hii itaandika data ya umbali iliyopo, na itachukua muda (inakadiriwa","این داده های فاصله موجود را رونویسی می کند و مدتی طول می کشد (تخمین زده می شود)","Ini akan menimpa data jarak yang ada, dan akan memakan masa (dianggarkan"]
["This will overwrite existing distance data. Do you want to continue?","Bu, mevcut mesafe verilerinin üzerine yazacaktır. Devam etmek istiyor musun?","Dadurch werden vorhandene Entfernungsdaten überschrieben. Wollen Sie fortfahren?","Esto sobrescribirá los datos de distancia existentes. ¿Quieres continuar?","Cela écrasera les données de distance existantes. Voulez-vous continuer?","Questo sovrascriverà i dati di distanza esistenti. Vuoi continuare?","Isso substituirá os dados de distância existentes. Você quer continuar?","سيؤدي هذا إلى الكتابة فوق بيانات المسافة الموجودة. هل تريد الاستمرار؟","Ini akan menimpa data jarak yang ada. Apakah Anda ingin melanjutkan?","یہ موجودہ فاصلے ڈیٹا ادلیکھت گا. کیا آپ جاری رکھنا چاہتے ہیں؟","এটি বিদ্যমান দূরত্বের ডেটা ওভাররাইট করবে। আপনি কি অবিরত করতে চান?","Hii itaandika data ya umbali iliyopo. Je! Unataka kuendelea?","این داده های فاصله موجود را رونویسی می کند. می خواهید ادامه دهید؟","Ini akan menimpa data jarak yang ada. Adakah anda mahu meneruskan?"]
["This will overwrite existing location data, and erase distance and solution data. Do you want to continue?","Bu, mevcut konum verilerinin üzerine yazacak ve mesafe ile çözüm verilerini silecektir. Devam etmek istiyor musun?","Dadurch werden vorhandene Standortdaten überschrieben und Entfernungs- und Lösungsdaten gelöscht. Wollen Sie fortfahren?","Esto sobrescribirá los datos de ubicación existentes y borrará los datos de distancia y solución. ¿Quieres continuar?","Cela écrasera les données de localisation existantes et effacera les données de distance et de solution. Voulez-vous continuer?","Ciò sovrascriverà i dati di posizione esistenti e cancellerà i dati sulla distanza e sulla soluzione. Vuoi continuare?","Isso substituirá os dados de localização existentes e apagará os dados de distância e solução. Você quer continuar?","سيؤدي هذا إلى الكتابة فوق بيانات الموقع الحالية ، ومحو بيانات المسافة والحلول. هل تريد الاستمرار؟","Ini akan menimpa data lokasi yang ada, dan menghapus data jarak dan solusi. Apakah Anda ingin melanjutkan?","یہ موجودہ مقام کے اعداد و شمار کو ادلیکھت کرے گا ، اور فاصلہ اور حل ڈیٹا کو مٹا دے گا۔ کیا آپ جاری رکھنا چاہتے ہیں؟","এটি বিদ্যমান অবস্থানের ডেটা ওভাররাইট করবে এবং দূরত্ব এবং সমাধানের ডেটা মুছবে। আপনি কি অবিরত করতে চান?","Hii itaandika data ya eneo iliyopo, na kufuta data ya umbali na suluhisho. Je! Unataka kuendelea?","با این کار داده های موجود موجود بازنویسی می شود و داده های مسافت و راه حل پاک می شود. می خواهید ادامه دهید؟","Ini akan menimpa data lokasi yang ada, dan menghapus data jarak dan penyelesaian. Adakah anda mahu meneruskan?"]
["This will overwrite existing vehicle compatibility data. Do you want to continue?","Bu, mevcut araç uyumluluk verilerinin üzerine yazacaktır. Devam etmek istiyor musun?","Dadurch werden vorhandene Fahrzeugkompatibilitätsdaten überschrieben. Wollen Sie fortfahren?","Esto sobrescribirá los datos de compatibilidad de vehículos existentes. ¿Quieres continuar?","Cela écrasera les données de compatibilité des véhicules existantes. Voulez-vous continuer?","Questo sovrascriverà i dati di compatibilità del veicolo esistenti. Vuoi continuare?","Isso substituirá os dados de compatibilidade do veículo existentes. Você quer continuar?","سيؤدي هذا إلى الكتابة فوق بيانات توافق السيارة الحالية. هل تريد الاستمرار؟","Ini akan menimpa data kompatibilitas kendaraan yang ada. Apakah Anda ingin melanjutkan?","یہ موجودہ گاڑی مطابقت ڈیٹا ادلیکھت گا. کیا آپ جاری رکھنا چاہتے ہیں؟","এটি বিদ্যমান যানবাহনের সামঞ্জস্যের ডেটা ওভাররাইট করবে। আপনি কি অবিরত করতে চান?","Hii itaondoa data iliyopo ya utangamano wa gari. Je! Unataka kuendelea?","با این کار داده های موجود سازگاری خودرو بازنویسی می شود. می خواهید ادامه دهید؟","Ini akan menimpa data keserasian kenderaan yang ada. Adakah anda mahu meneruskan?"]
["This will overwrite existing vehicle data, and erase solution and visualization data. Do you want to continue?","Bu, mevcut araç verilerinin üzerine yazacak ve çözüm ve görselleştirme verilerini silecektir. Devam etmek istiyor musun?","Dadurch werden vorhandene Fahrzeugdaten überschrieben und Lösungs- und Visualisierungsdaten gelöscht. Wollen Sie fortfahren?","Esto sobrescribirá los datos existentes del vehículo y borrará los datos de visualización y solución. ¿Quieres continuar?","Cela écrasera les données existantes du véhicule et effacera les données de solution et de visualisation. Voulez-vous continuer?","Ciò sovrascriverà i dati del veicolo esistenti e cancellerà i dati della soluzione e della visualizzazione. Vuoi continuare?","Isso sobrescreverá os dados existentes do veículo e apagará os dados de solução e visualização. Você quer continuar?","سيؤدي هذا إلى الكتابة فوق بيانات السيارة الموجودة ، ومحو بيانات الحل والتصور. هل تريد الاستمرار؟","Ini akan menimpa data kendaraan yang ada, dan menghapus data solusi dan visualisasi. Apakah Anda ingin melanjutkan?","اس سے گاڑیوں کے موجودہ اعداد و شمار کو ادلیکھت مل جائے گی ، اور حل اور تصو .ر کوائف کو مٹا دیا جائے گا۔ کیا آپ جاری رکھنا چاہتے ہیں؟","এটি বিদ্যমান যানবাহনের ডেটা ওভাররাইট করবে এবং সমাধান এবং ভিজুয়ালাইজেশন ডেটা মুছে ফেলবে। আপনি কি অবিরত করতে চান?","Hii itaandika data ya gari iliyopo, na kufuta data ya suluhisho na taswira. Je! Unataka kuendelea?","این داده های موجود خودرو را رونویسی می کند ، و داده های راه حل و تجسم را پاک می کند. می خواهید ادامه دهید؟","Ini akan menimpa data kenderaan yang ada, dan menghapus data penyelesaian dan visualisasi. Adakah anda mahu meneruskan?"]
["This will overwrite existing visualization data. By clicking the Yes button below, you confirm that you accept Bing Maps Terms of Service. Do you want to continue?","Bu, mevcut görselleştirme verilerinin üzerine yazacaktır. Aşağıdaki Evet düğmesini tıklayarak, Bing Haritalar Hizmet Şartları'nı kabul ettiğinizi onaylarsınız. Devam etmek istiyor musun?","Dadurch werden vorhandene Visualisierungsdaten überschrieben. Durch Klicken auf die Schaltfläche Ja unten bestätigen Sie, dass Sie die Nutzungsbedingungen von Bing Maps akzeptieren. Wollen Sie fortfahren?","Esto sobrescribirá los datos de visualización existentes. Al hacer clic en el botón Sí a continuación, confirma que acepta los Términos de servicio de Bing Maps. ¿Quieres continuar?","Cela écrasera les données de visualisation existantes. En cliquant sur le bouton Oui ci-dessous, vous confirmez que vous acceptez les conditions d'utilisation de Bing Maps. Voulez-vous continuer?","Questo sovrascriverà i dati di visualizzazione esistenti. Facendo clic sul pulsante Sì di seguito, confermi di accettare i Termini di servizio di Bing Maps. Vuoi continuare?","Isso substituirá os dados de visualização existentes. Ao clicar no botão Sim abaixo, você confirma que aceita os Termos de Serviço do Bing Maps. Você quer continuar?","سيؤدي هذا إلى الكتابة فوق بيانات التصور الموجودة. بالنقر فوق الزر \"نعم\" أدناه ، فإنك تؤكد قبولك لشروط خدمة خرائط Bing. هل تريد الاستمرار؟","Ini akan menimpa data visualisasi yang ada. Dengan mengklik tombol Ya di bawah ini, Anda mengonfirmasi bahwa Anda menerima Persyaratan Layanan Bing Maps. Apakah Anda ingin melanjutkan?","یہ بصری موجودہ ڈیٹا کو ادلیکھت کر دے گا۔ ذیل میں ہاں کے بٹن پر کلک کرکے ، آپ اس کی تصدیق کرتے ہیں کہ آپ Bing میپ سروس کی شرائط کو قبول کرتے ہیں۔ کیا آپ جاری رکھنا چاہتے ہیں؟","এটি বিদ্যমান ভিজ্যুয়ালাইজেশন ডেটা ওভাররাইট করবে। নীচের হ্যাঁ বোতামটি ক্লিক করে, আপনি নিশ্চিত হয়েছিলেন যে আপনি বিং মানচিত্রের পরিষেবার শর্তাদি স্বীকার করেছেন। আপনি কি অবিরত করতে চান?","Hii itaondoa data iliyopo ya taswira. Kwa kubofya kitufe cha Ndio hapa chini, unathibitisha kwamba unakubali Sheria na Masharti ya Ramani za Bing. Je! Unataka kuendelea?","این داده های تجسم موجود را رونویسی می کند. با کلیک بر روی دکمه بله در زیر ، تأیید می کنید که شرایط خدمات Bing Maps را می پذیرید. می خواهید ادامه دهید؟","Ini akan menimpa data visualisasi yang ada. Dengan mengklik butang Ya di bawah, anda mengesahkan bahawa anda menerima Syarat Perkhidmatan Peta Bing. Adakah anda mahu meneruskan?"]
["This will overwrite existing visualization data. Do you want to continue?","Bu, mevcut görselleştirme verilerinin üzerine yazacaktır. Devam etmek istiyor musun?","Dadurch werden vorhandene Visualisierungsdaten überschrieben. Wollen Sie fortfahren?","Esto sobrescribirá los datos de visualización existentes. ¿Quieres continuar?","Cela écrasera les données de visualisation existantes. Voulez-vous continuer?","Questo sovrascriverà i dati di visualizzazione esistenti. Vuoi continuare?","Isso substituirá os dados de visualização existentes. Você quer continuar?","سيؤدي هذا إلى الكتابة فوق بيانات التصور الموجودة. هل تريد الاستمرار؟","Ini akan menimpa data visualisasi yang ada. Apakah Anda ingin melanjutkan?","یہ بصری موجودہ ڈیٹا کو ادلیکھت کر دے گا۔ کیا آپ جاری رکھنا چاہتے ہیں؟","এটি বিদ্যমান ভিজ্যুয়ালাইজেশন ডেটা ওভাররাইট করবে। আপনি কি অবিরত করতে চান?","Hii itaondoa data iliyopo ya taswira. Je! Unataka kuendelea?","این داده های تجسم موجود را رونویسی می کند. می خواهید ادامه دهید؟","Ini akan menimpa data visualisasi yang ada. Adakah anda mahu meneruskan?"]
["This will take ","Bu işlem ","Dies wird dauern","Esto tomará","Cela prendra","Questo richiederà","Isso vai demorar","هذا سوف يستغرق","Ini akan memakan waktu","یہ لے جائے گا","এই লাগবে","Hii itachukua","این طول خواهد کشید","Ini akan berlaku"]
["This will take some time (estimated ","Bu biraz zaman alacak (tahmini","Dies wird einige Zeit dauern (geschätzt","Esto llevará algún tiempo (estimado","Cela prendra un certain temps (estimation","Questo richiederà del tempo (stimato","Isso levará algum tempo (estimativa","سيستغرق هذا بعض الوقت (تقديري","Ini akan memakan waktu (perkiraan","اس میں کچھ وقت لگے گا (اندازے کے مطابق)","এতে কিছুটা সময় লাগবে (আনুমানিক)","Hii itachukua muda (inakadiriwa","مدتی طول می کشد (تخمین زده می شود)","Ini akan memakan masa (dianggarkan"]
["Time window end","Zaman aralığı sonu","Zeitfenster endet","Fin de la ventana de tiempo","Fin de la fenêtre de temps","Fine della finestra temporale","Fim da janela de tempo","نهاية النافذة الزمنية","Jendela waktu berakhir","ٹائم ونڈو ختم","সময় উইন্ডো শেষ","Dirisha la saa linaisha","پایان پنجره زمان","Tingkap masa tamat"]
["Time window start","Zaman aralığı başlangıcı","Start des Zeitfensters","Inicio de la ventana de tiempo","Début de la fenêtre horaire","Inizio della finestra temporale","Início da janela de tempo","تبدأ النافذة الزمنية","Jendela waktu mulai","ٹائم ونڈو اسٹارٹ","সময় উইন্ডো শুরু","Muda wa kuanza kwa dirisha","زمان شروع پنجره","Tetingkap masa bermula"]
["Time window type","Zaman penceresi türü","Zeitfenstertyp","Tipo de ventana de tiempo","Type de fenêtre de temps","Tipo di finestra temporale","Tipo de janela de tempo","نوع النافذة الزمنية","Jenis jendela waktu","وقت کی کھڑکی کی قسم","সময় উইন্ডো টাইপ","Aina ya dirisha la wakati","نوع پنجره زمان","Jenis tetingkap masa"]
["To","Nereye","Zu","A","À","Per","Para","إلى","Untuk","کرنا","প্রতি","Kwa","به","Ke"]
["Total net profit:","Toplam net kar:","Gesamtnettogewinn:","Beneficio neto total:","Bénéfice net total:","Utile netto totale:","Lucro líquido total:","إجمالي صافي الربح:","Total laba bersih:","کل خالص منافع:","মোট নিট লাভ:","Jumla ya faida halisi:","سود خالص کل:","Jumlah keuntungan bersih:"]
["Unable to access Tools menu.","Araçlar menüsüne erişilemiyor.","Zugriff auf das Menü Extras nicht möglich.","No se puede acceder al menú Herramientas.","Impossible d'accéder au menu Outils.","Impossibile accedere al menu Strumenti.","Incapaz de acessar o menu Ferramentas.","تعذر الوصول إلى قائمة الأدوات.","Tidak dapat mengakses menu Alat.","ٹولز مینو تک رسائی حاصل کرنے سے قاصر ہے۔","সরঞ্জাম মেনু অ্যাক্সেস করতে অক্ষম।","Imeshindwa kufikia menyu ya Zana.","دسترسی به منوی Tools امکان پذیر نیست.","Tidak dapat mengakses menu Alat."]
["Value","Değer","Wert","Valor","Valeur","Valore","Valor","القيمة","Nilai","قدر","মান","Thamani","ارزش","Nilai"]
["Vehicle ","Araç","Fahrzeug","Vehículo","Véhicule","Veicolo","Veículo","مركبة","Kendaraan","گاڑی","যানবাহন","Gari","وسیله نقلیه","Kenderaan"]
["Vehicle compatibility worksheet setup complete.","Araç uyumluluğu çalışma sayfası kurulumu tamamlandı.","Einrichtung des Arbeitsblatts für die Fahrzeugkompatibilität abgeschlossen.","Se completó la configuración de la hoja de trabajo de compatibilidad del vehículo.","Configuration de la feuille de calcul de compatibilité des véhicules terminée.","Configurazione del foglio di lavoro per la compatibilità del veicolo completata.","Configuração da planilha de compatibilidade do veículo concluída.","اكتمل إعداد ورقة عمل توافق السيارة.","Penyiapan lembar kerja kompatibilitas kendaraan selesai.","گاڑی کی مطابقت والی ورک شیٹ سیٹ اپ مکمل۔","গাড়ির সামঞ্জস্যতা কার্যপত্রক সেটআপ সম্পূর্ণ।","Usanidi wa karatasi ya utangamano wa gari umekamilika.","راه اندازی کاربرگ سازگاری خودرو کامل شد.","Penyediaan lembaran kerja keserasian kenderaan selesai."]
["Vehicle type","Araç tipi","Fahrzeugtyp","Tipo de vehiculo","Type de véhicule","Tipo di veicolo","Tipo de Veículo","نوع السيارة","Jenis kendaraan","گاڑی کی قسم","গাড়ির ধরন","Aina ya gari","نوع خودرو","Jenis kenderaan"]
["Vehicle:","Araç:","Fahrzeug:","Vehículo:","Véhicule:","Veicolo:","Veículo:","مركبة:","Kendaraan:","گاڑی:","যানবাহন:","Gari:","وسیله نقلیه:","Kenderaan:"]
["Vehicles worksheet setup complete.","Araç çalışma sayfası kurulumu tamamlandı.","Einrichtung des Arbeitsblatts für Fahrzeuge abgeschlossen.","Se completó la configuración de la hoja de trabajo de vehículos.","Configuration de la feuille de calcul des véhicules terminée.","Configurazione del foglio di lavoro dei veicoli completata.","Configuração da planilha de veículos concluída.","اكتمل إعداد ورقة عمل المركبات.","Penyiapan lembar kerja kendaraan selesai.","گاڑیوں کی ورک شیٹ سیٹ اپ مکمل۔","যানবাহনের কার্যপত্রক সেটআপ সম্পূর্ণ।","Usanidi wa karatasi ya gari umekamilika.","راه اندازی صفحه کار وسایل نقلیه کامل است.","Penyediaan lembaran kerja kenderaan selesai."]
["Visualization background","Görselleştirme arka planı","Visualisierungshintergrund","Fondo de visualización","Contexte de visualisation","Sfondo di visualizzazione","Fundo de visualização","خلفية التصور","Latar belakang visualisasi","تصور کا پس منظر","ভিজ্যুয়ালাইজেশন পটভূমি","Mandharinyuma ya taswira","پس زمینه تجسم","Latar belakang visualisasi"]
["VRP Solver","VRP Çözücü","VRP-Löser","Solucionador de VRP","Solveur VRP","Risolutore VRP","VRP Solver","VRP Solver","Pemecah VRP","VRP حل کرنے والا","ভিআরপি সলভার","Solver ya VRP","VRP Solver","Penyelesai VRP"]
["VRP Solver Console","VRP Çözücü Konsolu","VRP Solver Console","Consola VRP Solver","Console du solveur VRP","Console risolutore VRP","VRP Solver Console","وحدة تحكم VRP Solver","Konsol Pemecah VRP","وی آر پی سولور کنسول","ভিআরপি সলভার কনসোল","Kiweko cha Suluhisho la VRP","کنسول VRP Solver","Konsol Penyelesai VRP"]
["VRP Spreadsheet Solver","VRP Elektronik Tablo Çözücü","VRP Spreadsheet Solver","Solucionador de hojas de cálculo VRP","Solveur de feuille de calcul VRP","Risolutore di fogli di calcolo VRP","VRP Spreadsheet Solver","VRP Spreadsheet Solver","VRP Spreadsheet Solver","وی آر پی اسپریڈشیٹ حل کرنے والا","ভিআরপি স্প্রেডশিট সলভার","Solver Lahajedwali ya VRP","حل صفحه گسترده VRP","Penyelesaian Hamparan VRP"]
["VRP Spreadsheet Solver performed ","VRP Excel Çözücü ","VRP Spreadsheet Solver durchgeführt","Solucionador de hojas de cálculo VRP realizado","Solveur de feuille de calcul VRP effectué","Risolutore di fogli di calcolo VRP eseguito","VRP Spreadsheet Solver executado","تم تنفيذ برنامج VRP Spreadsheet Solver","VRP Spreadsheet Solver dilakukan","وی آر پی اسپریڈشیٹ سولور نے پرفارم کیا","ভিআরপি স্প্রেডশিট সলভার সঞ্চালিত","Solver Lahajedwali ya VRP ilifanywa","VRP صفحه گسترده حل کرد","Penyelesaian Spreadsheet VRP dilakukan"]
["Warm start?","Sıcak başlangıç ​​mı?","Warmstart?","¿Arranque en caliente?","Démarrage à chaud?","Inizio caldo?","Começo quente?","بداية دافئة؟","Awal yang hangat?","گرم آغاز؟","গরম শুরু?","Kuanza kwa joto?","شروع گرم؟","Permulaan yang hangat?"]
["Warning","Uyarı","Warnung","Advertencia","Attention","avvertimento","Atenção","تحذير","Peringatan","انتباہ","সতর্কতা","Onyo","هشدار","Amaran"]
["Warning! You are changing the distance computation parameters, which will not be reflected on the existing distances and durations until you populate them again.","Uyarı! Tekrar hesaplanana kadar mevcut mesafelere ve sürelere yansıtılmayacak olan mesafe hesaplama parametrelerini değiştiriyorsunuz.","Warnung! Sie ändern die Entfernungsberechnungsparameter, die sich erst dann auf die vorhandenen Entfernungen und -dauern auswirken, wenn Sie sie erneut füllen.","¡Advertencia! Está cambiando los parámetros de cálculo de distancia, que no se reflejarán en las distancias y duraciones existentes hasta que los vuelva a completar.","Attention! Vous modifiez les paramètres de calcul de distance, qui ne seront pas reflétés sur les distances et durées existantes tant que vous ne les remplissez pas à nouveau.","Avvertimento! Stai modificando i parametri di calcolo della distanza, che non si rifletteranno sulle distanze e sulle durate esistenti finché non li popolerai di nuovo.","Atenção! Você está alterando os parâmetros de cálculo de distância, que não serão refletidos nas distâncias e durações existentes até que você os preencha novamente.","تحذير! أنت تقوم بتغيير معلمات حساب المسافة ، والتي لن تنعكس على المسافات والمدد الحالية حتى تقوم بتعبئتها مرة أخرى.","Peringatan! Anda mengubah parameter penghitungan jarak, yang tidak akan tercermin pada jarak dan durasi yang ada hingga Anda mengisinya lagi.","انتباہ! آپ فاصلے کے حساب کے پیرامیٹرز کو تبدیل کر رہے ہیں ، جو موجودہ فاصلوں اور دورانیوں پر ظاہر نہیں ہوگا جب تک کہ آپ انہیں دوبارہ آباد نہ کریں۔","সতর্কতা! আপনি দূরত্বের গণনার প্যারামিটারগুলি পরিবর্তন করছেন, যা আপনি যখন এগুলি আবার পপুলেশন না করেন ততক্ষণ বিদ্যমান দূরত্ব এবং স্থায়িত্বগুলিতে প্রতিফলিত হবে না।","Onyo! Unabadilisha vigezo vya hesabu ya umbali, ambayo haitaonyeshwa kwa umbali na muda uliopo hadi utakapowajaza tena.","هشدار شما در حال تغییر پارامترهای محاسبه مسافت هستید ، که تا زمانی که دوباره آنها را پر نکنید ، در فواصل و مدت زمان موجود منعکس نخواهد شد.","Amaran! Anda mengubah parameter pengiraan jarak, yang tidak akan dapat dilihat pada jarak dan jangka masa yang ada sehingga anda mengisinya lagi."]
["Warning! You are changing the distance data, which will not be reflected on the rest of the existing worksheets until you set them up again.","Uyarı! Siz onları yeniden ayarlayana kadar mevcut çalışma sayfalarının geri kalanına yansıtılmayacak olan mesafe verilerini değiştiriyorsunuz.","Warnung! Sie ändern die Entfernungsdaten, die erst dann in den übrigen vorhandenen Arbeitsblättern angezeigt werden, wenn Sie sie erneut einrichten.","¡Advertencia! Está cambiando los datos de distancia, que no se reflejarán en el resto de las hojas de trabajo existentes hasta que las configure nuevamente.","Attention! Vous modifiez les données de distance, qui ne seront pas reflétées sur le reste des feuilles de calcul existantes tant que vous ne les aurez pas reconfigurées.","Avvertimento! Stai modificando i dati sulla distanza, che non si rifletteranno sul resto dei fogli di lavoro esistenti finché non li imposterai di nuovo.","Atenção! Você está alterando os dados de distância, que não serão refletidos no restante das planilhas existentes até que você as configure novamente.","تحذير! أنت تقوم بتغيير بيانات المسافة ، والتي لن تنعكس على باقي أوراق العمل الموجودة حتى تقوم بإعدادها مرة أخرى.","Peringatan! Anda mengubah data jarak, yang tidak akan tercermin pada lembar kerja lainnya yang ada sampai Anda mengaturnya lagi.","انتباہ! آپ فاصلہ کا ڈیٹا تبدیل کر رہے ہیں ، جو باقی موجودہ ورک شیٹوں پر ظاہر نہیں ہوگا جب تک آپ انہیں دوبارہ مرتب نہیں کریں گے۔","সতর্কতা! আপনি দূরত্বের ডেটা পরিবর্তন করছেন, যা বাকি কর্মশীটগুলিতে আবার সেট আপ না করা অবধি প্রতিফলিত হবে না।","Onyo! Unabadilisha data ya umbali, ambayo haitaonekana kwenye karatasi zingine zilizopo hadi uziweke tena.","هشدار شما در حال تغییر داده های فاصله هستید ، که تا زمانی که دوباره آنها را تنظیم نکنید ، در بقیه صفحات کاری موجود منعکس نخواهد شد.","Amaran! Anda mengubah data jarak, yang tidak akan ditunjukkan pada lembaran kerja lain yang ada sehingga anda menyiapkannya semula."]
["Warning! You are changing the fleet size, which will not be reflected on the rest of the existing worksheets until you set them up again.","Uyarı! Filo boyutunu değiştiriyorsunuz, bu da siz onları yeniden kurana kadar mevcut çalışma sayfalarının geri kalanına yansıtılmayacak.","Warnung! Sie ändern die Flottengröße, die erst dann in den übrigen vorhandenen Arbeitsblättern angezeigt wird, wenn Sie sie erneut einrichten.","¡Advertencia! Está cambiando el tamaño de la flota, que no se reflejará en el resto de las hojas de trabajo existentes hasta que las configure nuevamente.","Attention! Vous modifiez la taille du parc, qui ne sera pas reflétée sur le reste des feuilles de calcul existantes jusqu'à ce que vous les configuriez à nouveau.","Avvertimento! Stai modificando le dimensioni della flotta, che non si rifletterà sul resto dei fogli di lavoro esistenti fino a quando non li configurerai di nuovo.","Atenção! Você está alterando o tamanho da frota, o que não será refletido no restante das planilhas existentes até que você as configure novamente.","تحذير! أنت تقوم بتغيير حجم الأسطول ، والذي لن ينعكس على بقية أوراق العمل الحالية حتى تقوم بإعدادها مرة أخرى.","Peringatan! Anda mengubah ukuran armada, yang tidak akan terlihat di lembar kerja lain yang ada hingga Anda menyiapkannya lagi.","انتباہ! آپ بیڑے کے سائز کو تبدیل کر رہے ہیں ، جو باقی موجودہ ورک شیٹوں پر ظاہر نہیں ہوگا جب تک کہ آپ انہیں دوبارہ مرتب نہ کریں۔","সতর্কতা! আপনি বহরের আকার পরিবর্তন করছেন, যা বাকি কর্মশীটগুলিকে আবার সেট আপ না করা পর্যন্ত প্রতিফলিত হবে না।","Onyo! Unabadilisha saizi ya meli, ambayo haitaonyeshwa kwenye karatasi zilizobaki zilizopo hadi uziweke tena.","هشدار شما در حال تغییر اندازه ناوگان هستید ، که تا زمانی که دوباره آنها را تنظیم نکنید ، در بقیه صفحات کاری موجود منعکس نخواهد شد.","Amaran! Anda mengubah ukuran armada, yang tidak akan tercermin pada lembaran kerja lain yang ada sehingga anda menetapkannya lagi."]
["Warning! You are changing the location data, which may render the current solution infeasible or suboptimal, and will not be reflected on the rest of the existing worksheets until you set them up again.","Uyarı! Mevcut çözümü olanaksız veya yetersiz hale getirebilecek konum verilerini değiştiriyorsunuz ve siz onları yeniden kurana kadar mevcut çalışma sayfalarının geri kalanına yansıtılmayacaksınız.","Warnung! Sie ändern die Standortdaten, wodurch die aktuelle Lösung möglicherweise nicht realisierbar oder suboptimal wird. Sie werden erst dann in den übrigen vorhandenen Arbeitsblättern angezeigt, wenn Sie sie erneut einrichten.","¡Advertencia! Está cambiando los datos de ubicación, lo que puede hacer que la solución actual sea inviable o subóptima, y ​​no se reflejará en el resto de las hojas de trabajo existentes hasta que las configure nuevamente.","Attention! Vous modifiez les données d'emplacement, ce qui peut rendre la solution actuelle irréalisable ou sous-optimale, et ne sera pas reflétée sur le reste des feuilles de calcul existantes jusqu'à ce que vous les configuriez à nouveau.","Avvertimento! Stai modificando i dati sulla posizione, il che potrebbe rendere la soluzione corrente non fattibile o non ottimale e non si rifletterà sul resto dei fogli di lavoro esistenti finché non li configurerai di nuovo.","Atenção! Você está alterando os dados de localização, o que pode tornar a solução atual inviável ou subótima e não será refletida no restante das planilhas existentes até que você as configure novamente.","تحذير! أنت تقوم بتغيير بيانات الموقع ، مما قد يجعل الحل الحالي غير عملي أو دون المستوى الأمثل ، ولن ينعكس على بقية أوراق العمل الموجودة حتى تقوم بإعدادها مرة أخرى.","Peringatan! Anda mengubah data lokasi, yang mungkin membuat solusi saat ini tidak layak atau kurang optimal, dan tidak akan tercermin di lembar kerja lainnya yang ada hingga Anda menyiapkannya lagi.","انتباہ! آپ محل وقوع کا ڈیٹا تبدیل کر رہے ہیں ، جو موجودہ حل کو ناقابل استعمال یا سبوپٹیمل پیش کرسکتا ہے ، اور باقی موجود ورک شیٹس پر اس وقت تک نہیں جھلکیں گے جب تک کہ آپ انہیں دوبارہ مرتب نہیں کریں۔","সতর্কতা! আপনি অবস্থানের ডেটা পরিবর্তন করছেন, যা বর্তমান সমাধানটিকে অপ্রাপ্তিযোগ্য বা উপশক্তির উপস্থাপন করতে পারে এবং আপনি আবার সেট আপ না করা অবধি বিদ্যমান ওয়ার্কশিটগুলির বাকী অংশে প্রতিফলিত হবে না।","Onyo! Unabadilisha data ya eneo, ambayo inaweza kutoa suluhisho la sasa kuwa lisilowezekana au ndogo, na haitaonyeshwa kwenye karatasi zingine zilizopo hadi uziweke tena.","هشدار شما در حال تغییر داده های مکان هستید ، که ممکن است راه حل فعلی را غیرقابل اجرا یا بهینه کند و تا زمانی که دوباره آنها را تنظیم نکنید ، در بقیه صفحات کاری موجود منعکس نخواهد شد.","Amaran! Anda mengubah data lokasi, yang mungkin menjadikan penyelesaian semasa tidak dapat dilaksanakan atau tidak optimal, dan tidak akan tercermin pada lembaran kerja lain yang ada sehingga anda menyiapkannya lagi."]
["Warning! You are changing the number of vehicle types, which will not be reflected on the existing vehicles, solution, or visualization worksheets until you set them up again.","Uyarı! Yeniden kurana kadar mevcut araçlara, çözümlere veya görselleştirme çalışma sayfalarına yansıtılmayacak araç türlerinin sayısını değiştiriyorsunuz.","Warnung! Sie ändern die Anzahl der Fahrzeugtypen, die nicht in den vorhandenen Arbeitsblättern für Fahrzeuge, Lösungen oder Visualisierungen berücksichtigt werden, bis Sie sie erneut einrichten.","¡Advertencia! Está cambiando el número de tipos de vehículos, que no se reflejarán en los vehículos existentes, la solución o las hojas de trabajo de visualización hasta que los configure nuevamente.","Attention! Vous modifiez le nombre de types de véhicules, qui ne sera pas reflété sur les feuilles de calcul des véhicules existants, de la solution ou de la visualisation tant que vous ne les aurez pas configurés à nouveau.","Avvertimento! Stai modificando il numero di tipi di veicolo, che non si rifletterà sui veicoli esistenti, sulla soluzione o sui fogli di lavoro di visualizzazione fino a quando non li configurerai di nuovo.","Atenção! Você está alterando o número de tipos de veículos, o que não será refletido nos veículos, soluções ou planilhas de visualização existentes até que você os configure novamente.","تحذير! أنت تقوم بتغيير عدد أنواع المركبات ، والتي لن تنعكس على أوراق عمل المركبات أو الحلول أو التصورات الموجودة حتى تقوم بإعدادها مرة أخرى.","Peringatan! Anda mengubah jumlah jenis kendaraan, yang tidak akan terlihat pada kendaraan yang ada, solusi, atau lembar kerja visualisasi hingga Anda mengaturnya lagi.","انتباہ! آپ گاڑیوں کی اقسام کی تعداد تبدیل کر رہے ہیں ، جو موجودہ گاڑیوں ، حل ، یا تصویری ورکی شیٹس پر ظاہر نہیں ہوگا جب تک کہ آپ انہیں دوبارہ مرتب نہیں کریں۔","সতর্কতা! আপনি যানবাহনের ধরণের সংখ্যা পরিবর্তন করছেন যা বিদ্যমান গাড়ি, সমাধান, বা ভিজ্যুয়ালাইজেশন ওয়ার্কশিটগুলিতে পুনরায় সেট আপ না করা পর্যন্ত এটি প্রতিফলিত হবে না।","Onyo! Unabadilisha idadi ya aina za gari, ambazo hazitaonyeshwa kwenye karatasi zilizopo, suluhisho, au karatasi za kuibua hadi utakapoweka tena.","هشدار شما در حال تغییر تعداد انواع وسایل نقلیه هستید که تا زمانی که دوباره آنها را تنظیم نکنید ، در وسایل نقلیه ، راه حل ها یا صفحه های تجسم موجود منعکس نمی شوند.","Amaran! Anda mengubah jumlah jenis kenderaan, yang tidak akan tercermin pada lembaran kerja kenderaan, penyelesaian, atau visualisasi yang ada sehingga anda memasangnya semula."]
["Warning! You are changing the parameters regarding the constraints for the solution, which will not be reflected on the existing solution worksheet until you set it up again. The current solution may have become infeasible.","Uyarı! Çözüme yönelik kısıtlamalarla ilgili parametreleri değiştiriyorsunuz ve bu, siz onu yeniden kurana kadar mevcut çözüm çalışma sayfasına yansıtılmayacak. Mevcut çözüm uygulanamaz hale gelmiş olabilir.","Warnung! Sie ändern die Parameter bezüglich der Einschränkungen für die Lösung, die erst dann im vorhandenen Lösungsarbeitsblatt angezeigt werden, wenn Sie es erneut einrichten. Die aktuelle Lösung ist möglicherweise nicht mehr realisierbar.","¡Advertencia! Está cambiando los parámetros relacionados con las restricciones de la solución, que no se reflejarán en la hoja de trabajo de la solución existente hasta que la configure de nuevo. La solución actual puede haberse vuelto inviable.","Attention! Vous modifiez les paramètres concernant les contraintes de la solution, qui ne seront pas reflétées dans la feuille de calcul de la solution existante tant que vous ne l'aurez pas configurée à nouveau. La solution actuelle est peut-être devenue irréalisable.","Avvertimento! Stai modificando i parametri relativi ai vincoli per la soluzione, che non si rifletteranno sul foglio di lavoro della soluzione esistente finché non lo imposterai di nuovo. L'attuale soluzione potrebbe essere diventata irrealizzabile.","Atenção! Você está alterando os parâmetros relativos às restrições para a solução, que não serão refletidas na planilha de solução existente até que você a configure novamente. A solução atual pode ter se tornado inviável.","تحذير! أنت تقوم بتغيير المعلمات المتعلقة بقيود الحل ، والتي لن تنعكس على ورقة عمل الحل الحالية حتى تقوم بإعداده مرة أخرى. ربما أصبح الحل الحالي غير مجدٍ.","Peringatan! Anda mengubah parameter mengenai batasan untuk solusi, yang tidak akan tercermin pada lembar kerja solusi yang ada sampai Anda mengaturnya lagi. Solusi saat ini mungkin menjadi tidak layak.","انتباہ! آپ حل کی رکاوٹوں سے متعلق پیرامیٹرز کو تبدیل کر رہے ہیں ، جو موجودہ حل ورکشیٹ پر ظاہر نہیں ہوگا جب تک آپ اسے دوبارہ مرتب نہیں کرتے ہیں۔ ہوسکتا ہے کہ موجودہ حل ناقابل عمل ہو گیا ہو۔","সতর্কতা! আপনি সমাধানের সীমাবদ্ধতাগুলি সম্পর্কে পরামিতিগুলি পরিবর্তন করছেন, যা আপনি আবার সেট আপ না করা পর্যন্ত বিদ্যমান সমাধানের কার্যপত্রকটিতে প্রতিফলিত হবে না। বর্তমান সমাধান অপরিবর্তনীয় হয়ে উঠতে পারে।","Onyo! Unabadilisha vigezo kuhusu vizuizi vya suluhisho, ambavyo haitaonekana kwenye karatasi ya suluhisho iliyopo hadi uiweke tena. Suluhisho la sasa linaweza kuwa lisilowezekana.","هشدار شما در حال تغییر پارامترهای مربوط به محدودیت های راه حل هستید ، که تا زمانی که دوباره آن را تنظیم نکنید ، در صفحه کار راه حل موجود منعکس نمی شود. راه حل فعلی غیرقابل اجرا شده است.","Amaran! Anda mengubah parameter mengenai batasan untuk penyelesaian, yang tidak akan tercermin pada lembaran kerja penyelesaian yang ada sehingga anda menetapkannya semula. Penyelesaian semasa mungkin tidak dapat dilaksanakan."]
["Warning! You are changing the parameters regarding the visualization worksheet, which will not be reflected on the visualization worksheet until you set it up again.","Uyarı! Siz yeniden ayarlayana kadar görselleştirme çalışma sayfasına yansıtılmayacak olan görselleştirme çalışma sayfasıyla ilgili parametreleri değiştiriyorsunuz.","Warnung! Sie ändern die Parameter für das Visualisierungsarbeitsblatt, die erst dann im Visualisierungsarbeitsblatt angezeigt werden, wenn Sie es erneut einrichten.","¡Advertencia! Está cambiando los parámetros relacionados con la hoja de trabajo de visualización, que no se reflejarán en la hoja de trabajo de visualización hasta que la configure nuevamente.","Attention! Vous modifiez les paramètres concernant la feuille de calcul de visualisation, qui ne seront pas reflétés sur la feuille de calcul de visualisation tant que vous ne l'aurez pas configurée à nouveau.","Avvertimento! Stai modificando i parametri relativi al foglio di lavoro della visualizzazione, che non si rifletteranno sul foglio di lavoro della visualizzazione finché non lo imposterai di nuovo.","Atenção! Você está alterando os parâmetros relativos à planilha de visualização, que não serão refletidos na planilha de visualização até que você a configure novamente.","تحذير! أنت تقوم بتغيير المعلمات المتعلقة بورقة عمل التصور ، والتي لن تنعكس على ورقة عمل التصور حتى تقوم بإعدادها مرة أخرى.","Peringatan! Anda mengubah parameter mengenai lembar kerja visualisasi, yang tidak akan tercermin pada lembar kerja visualisasi sampai Anda mengaturnya lagi.","انتباہ! آپ ویژیلائزیشن ورکشیٹ سے متعلق پیرامیٹرز کو تبدیل کر رہے ہیں ، جس کی عکاسی ورکی شیٹ پر نہیں ہوگی جب تک آپ اسے دوبارہ مرتب نہیں کرتے ہیں۔","সতর্কতা! আপনি ভিজ্যুয়ালাইজেশন ওয়ার্কশিট সম্পর্কিত প্যারামিটারগুলি পরিবর্তন করছেন, যা আপনি আবার সেট আপ না করা পর্যন্ত ভিজ্যুয়ালাইজেশন ওয়ার্কশিটে প্রতিফলিত হবে না।","Onyo! Unabadilisha vigezo kuhusu laha ya kazi ya taswira, ambayo haitaonyeshwa kwenye laha ya kazi ya kuibua hadi uiweke tena.","هشدار شما در حال تغییر پارامترهای مربوط به کاربرگ تجسم هستید ، تا زمانی که دوباره آن را تنظیم نکنید ، در صفحه کار تجسم منعکس نمی شود.","Amaran! Anda mengubah parameter mengenai lembaran kerja visualisasi, yang tidak akan ditunjukkan pada lembaran kerja visualisasi sehingga anda menyiapkannya semula."]
["Warning! You are changing the problem size parameters, which will not be reflected on the existing worksheets until you set them up again.","Uyarı! Tekrar ayarlayana kadar mevcut çalışma sayfalarına yansıtılmayacak olan problem boyutu parametrelerini değiştiriyorsunuz.","Warnung! Sie ändern die Problemgrößenparameter, die erst in den vorhandenen Arbeitsblättern angezeigt werden, wenn Sie sie erneut einrichten.","¡Advertencia! Está cambiando los parámetros de tamaño del problema, que no se reflejarán en las hojas de trabajo existentes hasta que las configure nuevamente.","Attention! Vous modifiez les paramètres de taille du problème, qui ne seront pas reflétés sur les feuilles de calcul existantes tant que vous ne les aurez pas configurés à nouveau.","Avvertimento! Stai modificando i parametri della dimensione del problema, che non si rifletteranno sui fogli di lavoro esistenti finché non li imposterai di nuovo.","Atenção! Você está alterando os parâmetros de tamanho do problema, que não serão refletidos nas planilhas existentes até que você os configure novamente.","تحذير! أنت تقوم بتغيير معلمات حجم المشكلة ، والتي لن تنعكس على أوراق العمل الحالية حتى تقوم بإعدادها مرة أخرى.","Peringatan! Anda mengubah parameter ukuran masalah, yang tidak akan tercermin pada lembar kerja yang ada sampai Anda mengaturnya lagi.","انتباہ! آپ دشواری کے سائز کے پیرامیٹرز کو تبدیل کر رہے ہیں ، جو موجودہ ورک شیٹوں پر ظاہر نہیں ہوگا جب تک آپ انہیں دوبارہ مرتب نہیں کرتے ہیں۔","সতর্কতা! আপনি সমস্যার আকারের পরামিতিগুলি পরিবর্তন করছেন, যা আপনি আবার সেট আপ না করা অবধি বিদ্যমান ওয়ার্কশিটগুলিতে প্রতিফলিত হবে না।","Onyo! Unabadilisha vigezo vya saizi ya shida, ambayo haitaonyeshwa kwenye karatasi za kazi zilizopo mpaka utakapoweka tena.","هشدار شما در حال تغییر پارامترهای اندازه مسئله هستید ، که تا زمانی که دوباره آنها را تنظیم نکنید ، در صفحات کاری موجود منعکس نخواهد شد.","Amaran! Anda mengubah parameter ukuran masalah, yang tidak akan tercermin pada lembaran kerja yang ada sehingga anda menetapkannya semula."]
["Warning! You are changing the vehicle data, which will not be reflected on the rest of the existing worksheets until you set them up again.","Uyarı! Araç verilerini değiştiriyorsunuz ve bunlar siz onları yeniden ayarlayana kadar mevcut çalışma sayfalarının geri kalanına yansıtılmayacak.","Warnung! Sie ändern die Fahrzeugdaten, die erst dann in den übrigen vorhandenen Arbeitsblättern angezeigt werden, wenn Sie sie erneut einrichten.","¡Advertencia! Está cambiando los datos del vehículo, que no se reflejarán en el resto de las hojas de trabajo existentes hasta que las configure nuevamente.","Attention! Vous modifiez les données du véhicule, qui ne seront pas reflétées sur le reste des feuilles de calcul existantes jusqu'à ce que vous les configuriez à nouveau.","Avvertimento! Stai modificando i dati del veicolo, che non si rifletteranno sul resto dei fogli di lavoro esistenti fino a quando non li configurerai di nuovo.","Atenção! Você está alterando os dados do veículo, que não serão refletidos no restante das planilhas existentes até que você as configure novamente.","تحذير! أنت تقوم بتغيير بيانات السيارة ، والتي لن تنعكس على بقية أوراق العمل الحالية حتى تقوم بإعدادها مرة أخرى.","Peringatan! Anda sedang mengubah data kendaraan, yang tidak akan terlihat di lembar kerja lainnya yang ada sampai Anda mengaturnya lagi.","انتباہ! آپ گاڑی کا ڈیٹا تبدیل کر رہے ہیں ، جو باقی موجودہ ورک شیٹوں پر ظاہر نہیں ہوگی جب تک آپ انہیں دوبارہ مرتب نہیں کریں گے۔","সতর্কতা! আপনি গাড়ির ডেটা পরিবর্তন করছেন, যা বাকি কর্মশীটগুলিতে আবার সেট আপ না করা পর্যন্ত প্রতিফলিত হবে না।","Onyo! Unabadilisha data ya gari, ambayo haitaonyeshwa kwenye karatasi zingine zilizopo hadi utakapoweka tena.","هشدار شما در حال تغییر داده های وسیله نقلیه هستید ، که تا زمانی که دوباره آنها را تنظیم نکنید ، در بقیه کاربرگهای موجود منعکس نخواهد شد.","Amaran! Anda mengubah data kenderaan, yang tidak akan tercermin pada lembaran kerja lain yang ada sehingga anda menyiapkannya semula."]
["Warning: Distances for the pairs below have not been populated.","Uyarı: Aşağıdaki çiftler için mesafeler hesaplanamadı.","Warnung: Entfernungen für die unten aufgeführten Paare wurden nicht ausgefüllt.","Advertencia: No se han completado las distancias para los pares siguientes.","Attention: les distances pour les paires ci-dessous n'ont pas été renseignées.","Avvertenza: le distanze per le coppie seguenti non sono state popolate.","Aviso: as distâncias para os pares abaixo não foram preenchidas.","تحذير: لم يتم ملء المسافات الخاصة بالأزواج أدناه.","Peringatan: Jarak untuk pasangan di bawah ini belum diisi.","انتباہ: نیچے کے جوڑے کے لئے فاصلہ آباد نہیں کیا گیا ہے۔","সতর্কতা: নীচের জোড়াগুলির জন্য দূরত্বগুলি জনবহুল হয়নি।","Onyo: Umbali wa jozi hapa chini haujawa na watu.","هشدار: فاصله برای جفت های زیر جمع نشده است.","Amaran: Jarak untuk pasangan di bawah belum diisi."]
["Warning: Last infeasibility check found problems with the solution.","Uyarı: Son fizibilite kontrolü, çözümle ilgili sorunlar buldu.","Warnung: Bei der letzten Unmöglichkeitsprüfung wurden Probleme mit der Lösung festgestellt.","Advertencia: la última comprobación de inviabilidad encontró problemas con la solución.","Avertissement: le dernier contrôle d'infaisabilité a détecté des problèmes avec la solution.","Attenzione: l'ultimo controllo di non fattibilità ha rilevato problemi con la soluzione.","Aviso: A última verificação de inviabilidade encontrou problemas com a solução.","تحذير: كشف اختبار عدم الجدوى الأخير عن مشاكل في الحل.","Peringatan: Pemeriksaan ketidaklayakan terakhir menemukan masalah dengan solusinya.","انتباہ: آخری ناکامی کی جانچ پڑتال میں حل میں دشواری کا سامنا کرنا پڑا۔","সতর্কতা: শেষ অপরিবর্তনীয়তা যাচাই সমস্যার সমাধান পেয়েছে।","Onyo: Ukaguzi wa mwisho wa kutoweza kupatikana ulipata shida na suluhisho.","هشدار: آخرین بررسی عدم امکان ، مشکلاتی را در راه حل پیدا کرد.","Amaran: Pemeriksaan kebolehlaksanaan terakhir menemui masalah dengan penyelesaiannya."]
["Warning: Last solution returned by the solver does not satisfy all constraints.","Uyarı: Çözücü tarafından döndürülen son çözüm tüm kısıtlamaları karşılamıyor.","Warnung: Die letzte vom Solver zurückgegebene Lösung erfüllt nicht alle Einschränkungen.","Advertencia: la última solución devuelta por el solucionador no satisface todas las restricciones.","Attention: la dernière solution retournée par le solveur ne satisfait pas toutes les contraintes.","Avvertenza: l'ultima soluzione restituita dal risolutore non soddisfa tutti i vincoli.","Aviso: a última solução retornada pelo solucionador não atende a todas as restrições.","تحذير: الحل الأخير الذي تم إرجاعه بواسطة المحلل لا يفي بجميع القيود.","Peringatan: Solusi terakhir yang dikembalikan oleh solver tidak memenuhi semua batasan.","انتباہ: حل کرنے والے کے ذریعہ لوٹا ہوا آخری حل تمام رکاوٹوں کو پورا نہیں کرتا ہے۔","সতর্কতা: সলভার দ্বারা ফিরিয়ে দেওয়া শেষ সমাধান সমস্ত সীমাবদ্ধতা পূরণ করে না।","Onyo: Suluhisho la mwisho lililorejeshwa na mtatuzi haliridhishi vizuizi vyote.","هشدار: آخرین راه حل برگشتی توسط حل کننده ، همه محدودیت ها را برآورده نمی کند.","Amaran: Penyelesaian terakhir yang dikembalikan oleh pemecah tidak memenuhi semua kekangan."]
["Warning: The data has changed since the last solver run / feasibility check.","Uyarı: Veriler, son çözücü çalıştırması / fizibilite kontrolünden bu yana değişti.","Warnung: Die Daten haben sich seit dem letzten Solverlauf / der letzten Machbarkeitsprüfung geändert.","Advertencia: Los datos han cambiado desde la última ejecución / verificación de viabilidad del solucionador.","Avertissement: les données ont changé depuis la dernière exécution / vérification de faisabilité du solveur.","Avvertenza: i dati sono cambiati dall'ultima esecuzione / verifica di fattibilità del risolutore.","Aviso: os dados foram alterados desde a última execução do solucionador / verificação de viabilidade.","تحذير: تم تغيير البيانات منذ آخر اختبار تشغيل / جدوى للحل.","Peringatan: Data telah berubah sejak pemeriksaan kelayakan / jalan solver terakhir.","انتباہ: آخری سولور رن / فزیبلٹی چیک کے بعد سے ڈیٹا بدلا ہے۔","সতর্কতা: সর্বশেষ সমাধানকারী চালানো / সম্ভাব্যতা যাচাইয়ের পর থেকে ডেটা পরিবর্তন হয়েছে।","Onyo: Takwimu zimebadilika tangu ukaguzi wa mwisho wa suluhisho / uwezekano wa kuangalia.","هشدار: داده ها از آخرین بررسی حل مسئله / امکان سنجی تغییر کرده است.","Amaran: Data telah berubah sejak pemeriksaan penyelesaian / kelayakan terakhir."]
["Watch the tutorial video on YouTube","Eğitici videoyu YouTube'da izleyin","Sehen Sie sich das Tutorial-Video auf YouTube an","Mira el video tutorial en YouTube","Regardez la vidéo du didacticiel sur YouTube","Guarda il video tutorial su YouTube","Assista ao vídeo tutorial no YouTube","شاهد الفيديو التعليمي على موقع يوتيوب","Tonton video tutorialnya di YouTube","ٹیوٹوریل ویڈیو یوٹیوب پر دیکھیں","টিউটোরিয়াল ভিডিওটি ইউটিউবে দেখুন","Tazama video ya mafunzo kwenye YouTube","فیلم آموزشی را در YouTube تماشا کنید","Tonton video tutorial di YouTube"]
["Work start time","İş başlangıç ​​zamanı","Arbeitsbeginnzeit","Hora de inicio del trabajo","Heure de début du travail","Ora di inizio del lavoro","Horário de início do trabalho","وقت بدء العمل","Waktu mulai kerja","کام شروع ہونے کا وقت","কাজ শুরুর সময়","Wakati wa kuanza kazi","زمان شروع کار","Masa mula bekerja"]
["Working time","Çalışma zamanı","Arbeitszeit","Tiempo de trabajo","Temps de travail","Orario di lavoro","Expediente","وقت العمل","Waktu kerja","کام کرنے کا وقت","কাজের সময়","Wakati wa kazi","زمان کار","Waktu bekerja"]
["Working time limit","Çalışma süresi sınırı","Arbeitszeitlimit","Límite de tiempo de trabajo","Limite du temps de travail","Limite di tempo di lavoro","Limite de tempo de trabalho","حد وقت العمل","Batas waktu kerja","کام کرنے کی وقت کی حد","কাজের সময়সীমা","Kikomo cha muda wa kufanya kazi","محدودیت زمان کار","Had masa bekerja"]
["Worksheet 1.Locations must exist for coordinates to be determined.","Çalışma Sayfası 1. Koordinatların belirlenebilmesi için konumların mevcut olması gerekir.","Arbeitsblatt 1. Es müssen Positionen vorhanden sein, damit die Koordinaten bestimmt werden können.","Hoja de trabajo 1. Deben existir ubicaciones para que se determinen las coordenadas.","Feuille de travail 1. Des emplacements doivent exister pour que les coordonnées soient déterminées.","Foglio di lavoro 1. Devono esistere posizioni per determinare le coordinate.","Planilha 1. Devem existir locais para que as coordenadas sejam determinadas.","ورقة العمل 1 يجب أن تكون المواقع موجودة حتى يتم تحديد الإحداثيات.","Lembar Kerja 1. Lokasi harus ada agar koordinat dapat ditentukan.","ورک شیٹ 1. کوآرڈینیٹ کا تعین کرنے کے لئے مقامات موجود ہوں۔","কার্যপত্রক 1. স্থানাঙ্কগুলি নির্ধারণের জন্য অবস্থানগুলি অবশ্যই বিদ্যমান।","Karatasi ya kazi 1. Maeneo lazima yawepo ili kuratibu zijulikane.","صفحه کار 1. مکان ها برای تعیین مختصات باید وجود داشته باشند.","Lembaran kerja 1. Lokasi mesti ada agar koordinat dapat ditentukan."]
["Worksheet 1.Locations must exist for locations to be sorted.","Çalışma Sayfası 1. Sıralanacak konumlar için konumlar mevcut olmalıdır.","Arbeitsblatt 1. Standorte müssen vorhanden sein, damit Standorte sortiert werden können.","Hoja de trabajo 1. Las ubicaciones deben existir para que las ubicaciones se clasifiquen.","Feuille de travail 1. Des emplacements doivent exister pour que les emplacements soient triés.","Foglio di lavoro 1. Le posizioni devono esistere per poter ordinare le posizioni.","Planilha 1. Devem existir locais para que os locais sejam classificados.","ورقة العمل 1 يجب أن تكون المواقع موجودة حتى يتم فرز المواقع.","Lembar Kerja 1. Lokasi harus ada untuk lokasi yang akan disortir.","ورک شیٹ 1. جگہوں کو ترتیب دینے کے لoc مقامات ضرور موجود ہوں گے۔","কার্যপত্রক 1. অবস্থানগুলি বাছাই করার জন্য অবস্থান অবশ্যই বিদ্যমান।","Karatasi ya kazi 1. Maeneo lazima yawepo kwa maeneo yanayopangwa.","صفحه کار 1. مکان ها برای مرتب سازی باید وجود داشته باشند.","Lembaran kerja 1. Lokasi mesti ada untuk lokasi yang hendak disusun."]
["Worksheets 1.Locations must exist for the distance worksheet to be created.","Çalışma Sayfaları 1. Mesafe çalışma sayfasının oluşturulabilmesi için konumların mevcut olması gerekir.","Arbeitsblätter 1. Für das zu erstellende Entfernungsarbeitsblatt müssen Standorte vorhanden sein.","Hojas de trabajo 1. Deben existir ubicaciones para que se cree la hoja de trabajo de distancia.","Feuilles de calcul 1. Des emplacements doivent exister pour que la feuille de calcul de distance soit créée.","Fogli di lavoro 1. Per creare il foglio di lavoro della distanza devono esistere posizioni.","Planilhas 1. Devem existir locais para que a planilha de distância seja criada.","أوراق العمل 1. يجب أن تكون المواقع موجودة حتى يتم إنشاء ورقة عمل المسافة.","Lembar Kerja 1. Lokasi harus ada agar lembar kerja jarak dapat dibuat.","ورک شیٹ 1. فاصلاتی ورک شیٹ بنانے کے لoc مقامات موجود ہوں گے۔","কার্যপত্রক 1. দূরত্বের কার্যপত্রকটি তৈরি করার জন্য অবস্থান অবশ্যই বিদ্যমান exist","Karatasi za kazi 1. Maeneo lazima yawepo kwa karatasi ya umbali iliyoundwa.","کاربرگ 1. مکان های ایجاد شده برای ایجاد صفحه کار از راه دور باید وجود داشته باشد.","Lembaran kerja 1. Lokasi mesti ada agar lembaran kerja jarak jauh dibuat."]
["Worksheets 1.Locations, 2.Distances, 3.Vehicles, and 4.Solution must exist for the external solver to function.","Çalışma sayfaları 1. Konumlar, 2. Mesafeler, 3. Araçlar ve 4. Çözüm, harici çözücünün çalışması için mevcut olmalıdır.","Arbeitsblätter 1.Standorte, 2. Abstände, 3.Fahrzeuge und 4.Lösung müssen vorhanden sein, damit der externe Löser funktioniert.","Hojas de trabajo 1. Ubicaciones, 2.Distancias, 3.Vehículos y 4.La solución debe existir para que funcione el solucionador externo.","Les feuilles de calcul 1.Locations, 2.Distances, 3.Vehicles et 4.Solution doivent exister pour que le solveur externe fonctionne.","Fogli di lavoro 1.Locations, 2.Distances, 3.Vehicles e 4.La soluzione deve esistere affinché il risolutore esterno funzioni.","Planilhas 1.Locais, 2.Distâncias, 3.Veículos e 4.A solução deve existir para que o solucionador externo funcione.","أوراق العمل 1- المواقع 2- المسافات 3- المركبات 4- يجب أن يكون الحل موجودًا حتى يعمل الحل الخارجي.","Lembar kerja 1. Lokasi, 2. Jarak, 3. Kendaraan, dan 4. Solusi harus ada agar pemecah eksternal berfungsi.","ورک شیٹ 1. مقامات ، 2. فاصلے ، 3. گاڑیوں ، اور 4. بیرونی محلول کے کام کرنے کے لolution حل موجود ہونا ضروری ہے۔","ওয়ার্কশিটগুলি 1. বহিরাগত দ্রাবককে কাজ করার জন্য সমাধান 1. অবস্থান, 2. দূরত্ব, 3. वाहन এবং 4. সমাধান অবশ্যই বিদ্যমান।","Karatasi za kazi 1. Maeneo, 2. Masafa, 3. Magari, na 4. Suluhisho lazima liwepo ili mtatuzi wa nje afanye kazi.","کاربرگهای 1. مکان ها ، 2. فاصله ها ، 3. وسایل نقلیه و 4. راه حل ها برای عملکرد حل کننده خارجی باید وجود داشته باشد.","Lembaran kerja 1.Lokasi, 2.Jarak, 3.Kenderaan, dan 4. Penyelesaian mesti ada agar pemecah luaran berfungsi."]
["Worksheets 1.Locations, 2.Distances, 3.Vehicles, and 4.Solution must exist for the Infeasibility Check.","Çalışma Sayfaları 1. Konumlar, 2. Mesafeler, 3. Araçlar ve 4. Çözüm Olasılık Kontrolü için mevcut olmalıdır.","Arbeitsblätter 1. Standorte, 2. Entfernungen, 3. Fahrzeuge und 4. Lösung müssen für die Unmöglichkeitsprüfung vorhanden sein.","Hojas de trabajo 1. Ubicaciones, 2.Distancias, 3.Vehículos y 4.La solución debe existir para la Verificación de inviabilidad.","Les feuilles de travail 1.Locations, 2.Distances, 3.Véhicules et 4.Solution doivent exister pour le contrôle d'infaisabilité.","Fogli di lavoro 1.Locations, 2.Distances, 3.Vehicles, and 4.La soluzione deve esistere per il controllo di fattibilità.","Planilhas 1.Locais, 2.Distâncias, 3.Veículos e 4.Solução deve existir para a verificação de inviabilidade.","أوراق العمل 1. المواقع ، 2.المسافات ، 3. المركبات ، 4. يجب أن يكون الحل موجودًا لفحص عدم الجدوى.","Lembar kerja 1. Lokasi, 2. Jarak, 3. Kendaraan, dan 4. Solusi harus ada untuk Pemeriksaan Ketidaklayakan.","ورک شیٹ 1. مقامات ، 2. فاصلے ، 3. گاڑیاں ، اور 4. ناکافی جانچ پڑتال کے لolution حل موجود ہونا ضروری ہے۔","কার্যপত্রক 1. স্থান, ২.দুরত্ব, ৩.উক্তিক্যালস এবং ৪.অর্থ্যতা পরীক্ষা করার জন্য সমাধান অবশ্যই বিদ্যমান।","Karatasi za kazi 1. Maeneo, 2. Masafa, 3. Magari, na 4. Azimio lazima liwepo kwa Ukaguzi wa Kutoweza.","کاربرگ 1. مکان ها ، 2. فاصله ، 3. وسایل نقلیه و 4. راه حل باید برای بررسی عدم امکان وجود داشته باشد.","Lembaran kerja 1. Lokasi, 2. jarak, 3. kenderaan, dan 4. penyelesaian mesti ada untuk Pemeriksaan Kebolehlaksanaan."]
["Worksheets 1.Locations, 2.Distances, 3.Vehicles, and 4.Solution must exist for the visualization worksheet to be created.","Çalışma Sayfaları 1. Konumlar, 2. Mesafeler, 3. Araçlar ve 4. Çözüm, görselleştirme çalışma sayfasının oluşturulabilmesi için mevcut olmalıdır.","Arbeitsblätter 1.Standorte, 2. Abstände, 3.Fahrzeuge und 4.Lösung müssen vorhanden sein, damit das Visualisierungsarbeitsblatt erstellt werden kann.","Hojas de trabajo 1. Ubicaciones, 2.Distancias, 3.Vehículos y 4.La solución debe existir para que se cree la hoja de trabajo de visualización.","Les feuilles de calcul 1.Locations, 2.Distances, 3.Vehicles et 4.Solution doivent exister pour que la feuille de calcul de visualisation soit créée.","Fogli di lavoro 1.Locations, 2.Distances, 3.Vehicles, and 4.Solution deve esistere per poter creare il foglio di lavoro di visualizzazione.","Planilhas 1.Locais, 2.Distâncias, 3.Veículos e 4.Solução deve existir para que a planilha de visualização seja criada.","أوراق العمل 1. المواقع ، 2.المسافات ، 3. المركبات ، و 4. يجب أن يكون الحل موجودًا لإنشاء ورقة عمل التصور.","Lembar Kerja 1. Lokasi, 2. Jarak, 3. Kendaraan, dan 4. Solusi harus ada untuk lembar kerja visualisasi yang akan dibuat.","ورک شیٹ 1. مقامات ، 2. فاصلے ، 3. گاڑیاں ، اور 4. تصو existر کی تخلیق کے ل works حل موجود ہونا ضروری ہے۔","কার্যপত্রক 1. অবস্থান, 2. দূরত্ব, 3.ভিচিক্যালস এবং 4. সমাধানটি ভিজ্যুয়ালাইজেশন ওয়ার্কশিটটি তৈরি করার জন্য অবশ্যই বিদ্যমান থাকতে হবে।","Karatasi za kazi 1. Maeneo, 2. Masafa, 3. Magari, na 4. Suluhisho lazima liwepo ili karatasi ya taswira iundwe.","کاربرگهای 1. مکان ها ، 2. فاصله ها ، 3. وسایل نقلیه و 4. راه حل ها برای ایجاد صفحه کار تجسم باید وجود داشته باشد.","Lembaran kerja 1. Lokasi, 2. jarak, 3. kenderaan, dan 4. penyelesaian mesti ada untuk lembaran kerja visualisasi dibuat."]
["Worksheets 1.Locations, 2.Distances, 3.Vehicles, and 4.Solution must exist for VRP Spreadsheet Solver to function.","Çalışma Sayfaları 1. Konumlar, 2. Mesafeler, 3. Araçlar ve 4. Çözüm, VRP Elektronik Tablo Çözücünün çalışması için mevcut olmalıdır.","Arbeitsblätter 1.Standorte, 2. Abstände, 3.Fahrzeuge und 4.Lösung müssen vorhanden sein, damit VRP Spreadsheet Solver funktioniert.","Hojas de trabajo 1. Ubicaciones, 2.Distancias, 3.Vehículos y 4.La solución debe existir para que VRP Spreadsheet Solver funcione.","Les feuilles de calcul 1.Locations, 2.Distances, 3.Vehicles et 4.Solution doivent exister pour que VRP Spreadsheet Solver fonctionne.","Fogli di lavoro 1.Locations, 2.Distances, 3.Vehicles e 4.Solution deve esistere affinché VRP Spreadsheet Solver funzioni.","Planilhas 1.Locais, 2.Distâncias, 3.Veículos e 4.Solução deve existir para que o VRP Spreadsheet Solver funcione.","أوراق العمل 1. المواقع ، 2.المسافات ، 3. المركبات ، و 4. يجب أن يكون الحل موجودًا لكي يعمل برنامج VRP Spreadsheet Solver.","Lembar kerja 1. Lokasi, 2. Jarak, 3. Kendaraan, dan 4. Solusi harus ada agar VRP Spreadsheet Solver berfungsi.","ورک شیٹس 1. مقامات ، 2. فاصلے ، 3. گاڑیاں ، اور 4. وی آر پی اسپریڈشیٹ سالور کے کام کرنے کے لolution حل موجود ہونا ضروری ہے۔","কার্যপত্রক 1. অবস্থান, 2. দূরত্ব, 3.ভিচিক্যালস, এবং 4. সমাধান ভিআরপি স্প্রেডশিট সলভার কাজ করার জন্য বিদ্যমান থাকতে হবে।","Karatasi za kazi 1. Maeneo, 2. Masafa, 3. Magari, na 4. Suluhisho lazima liwepo kwa Suluhishi la Lahajedwali la VRP kufanya kazi.","کاربرگهای 1. مکان ها ، 2. فاصله ها ، 3. وسایل نقلیه و 4. راه حل ها برای عملکرد VRP صفحه گسترده باید وجود داشته باشد.","Lembaran kerja 1.Lokasi, 2.Jarak, 3.Kenderaan, dan 4. Penyelesaian mesti ada agar Penyelesai Lembaran VRP berfungsi."]
["Worksheets 1.Locations, 2.Distances, and 3.Vehicles must exist for the solution worksheet to be created.","Çalışma Sayfaları 1. Konumlar, 2. Mesafeler ve 3. Araçlar, çözüm çalışma sayfasının oluşturulabilmesi için mevcut olmalıdır.","Arbeitsblätter 1. Standorte, 2. Abstände und 3. Fahrzeuge müssen vorhanden sein, damit das Lösungsarbeitsblatt erstellt werden kann.","Las hojas de trabajo 1.Ubicaciones, 2.Distancias y 3.Vehículos deben existir para que se cree la hoja de trabajo de la solución.","Les feuilles de calcul 1.Locations, 2.Distances et 3.Vehicles doivent exister pour que la feuille de calcul de solution soit créée.","Fogli di lavoro 1.Locazioni, 2.Distanze e 3.Per poter creare il foglio di lavoro della soluzione devono esistere veicoli.","Planilhas 1.Locais, 2.Distâncias e 3.Veículos devem existir para que a planilha de solução seja criada.","أوراق العمل 1. المواقع ، 2.المسافات ، 3. يجب أن تكون المركبات موجودة حتى يتم إنشاء ورقة عمل الحل.","Lembar kerja 1. Lokasi, 2. Jarak, dan 3. Kendaraan harus ada untuk lembar kerja solusi yang akan dibuat.","ورکشیٹ 1. مقامات ، 2. فاصلے ، اور 3. حل کی ورکیٹیٹ تخلیق کرنے کے لئے ضروریات موجود ہونی چاہئیں۔","কার্যপত্রক 1. অবস্থান, 2. দূরত্ব এবং 3. সমাধান সমাধানের জন্য পত্রিকা তৈরি করতে অবশ্যই অস্তিত্ব থাকতে হবে।","Karatasi za kazi 1. Maeneo, 2. Masafa, na 3. Magari lazima yawepo ili karatasi ya suluhisho iundwe.","کاربرگهای 1. مکان ها ، 2. فاصله ها و 3. وسایل نقلیه باید ایجاد شوند تا صفحه کار راه حل ایجاد شود.","Lembaran kerja 1. Lokasi, 2. Jarak, dan 3. Kenderaan mesti ada agar lembaran kerja penyelesaian dibuat."]
["Worksheets 1.Locations, 2.Distances, and 3.Vehicles must exist for the vehicle compatibility worksheet to be created.","Çalışma Sayfaları 1. Konumlar, 2. Mesafeler ve 3. Araçlar'ın, araç uyumluluk çalışma sayfasının oluşturulması için mevcut olması gerekir.","Arbeitsblätter 1. Standorte, 2. Entfernungen und 3. Fahrzeuge müssen vorhanden sein, damit das Arbeitsblatt zur Fahrzeugkompatibilität erstellt werden kann.","Las hojas de trabajo 1.Ubicaciones, 2.Distancias y 3.Vehículos deben existir para que se cree la hoja de trabajo de compatibilidad del vehículo.","Les feuilles de calcul 1.Localisations, 2.Distances et 3.Véhicules doivent exister pour que la feuille de calcul de compatibilité des véhicules soit créée.","Fogli di lavoro 1.Locazioni, 2.Distanze e 3.I veicoli devono esistere per creare il foglio di lavoro sulla compatibilità del veicolo.","Planilhas 1.Locais, 2.Distâncias e 3.Veículos devem existir para que a planilha de compatibilidade do veículo seja criada.","أوراق العمل 1. المواقع ، 2.المسافات ، 3. المركبات يجب أن تكون موجودة حتى يتم إنشاء ورقة عمل توافق السيارة.","Lembar kerja 1. Lokasi, 2. Jarak, dan 3. Kendaraan harus ada untuk lembar kerja kompatibilitas kendaraan yang akan dibuat.","ورک شیٹ 1. مقامات ، 2. فاصلے ، اور 3. گاڑیوں کی مطابقت والی ورک شیٹ تیار کرنے کے لe گاڑیوں کا موجود ہونا ضروری ہے۔","ওয়ার্কশিট 1. স্থান, 2. দূরত্ব এবং 3। যানবাহন সামঞ্জস্যতা ওয়ার্কশিট তৈরি করতে অবশ্যই অস্তিত্ব থাকতে হবে।","Karatasi za kazi 1. Maeneo, 2. Masafa, na 3. Magari lazima yawepo ili karatasi ya utangamano wa gari iundwe.","کاربرگهای 1. مکان ها ، 2. فاصله ها و 3. وسایل نقلیه باید ایجاد شوند تا کاربرگ سازگاری خودرو ایجاد شود.","Lembaran kerja 1. Lokasi, 2. Jarak, dan 3. Kenderaan mesti ada agar lembaran kerja keserasian kenderaan dibuat."]
["Worksheets VRP Solver Console, 1.Locations, and 2.Distances must exist for distances to be computed.","Çalışma Sayfaları VRP Çözücü Konsolu, 1. Konumlar ve 2. Mesafelerin hesaplanabilmesi için mevcut olması gerekir.","Arbeitsblätter VRP Solver Console, 1.Locations und 2.Distances müssen vorhanden sein, damit Entfernungen berechnet werden können.","Las hojas de trabajo VRP Solver Console, 1.Locations y 2.Distances deben existir para que se calculen las distancias.","Les feuilles de calcul VRP Solver Console, 1.Locations et 2.Distances doivent exister pour que les distances soient calculées.","Fogli di lavoro VRP Solver Console, 1.Locations e 2.Distances devono esistere per il calcolo delle distanze.","Planilhas VRP Solver Console, 1.Locations e 2.Distances devem existir para que as distâncias sejam calculadas.","أوراق العمل VRP Solver Console و 1.Locations و 2. يجب أن توجد مسافات للمسافات المراد حسابها.","Lembar Kerja Konsol Pemecah VRP, 1. Lokasi, dan 2. Jarak harus ada untuk jarak yang akan dihitung.","ورک شیٹ وی آر پی سولور کنسول ، 1. مقامات ، اور 2. فاصلوں کا حساب لگانے کے ل exist ضروری ہے۔","কার্যপত্রক ভিআরপি সলভার কনসোল, 1. স্থান এবং 2. দূরত্বগুলি গণনা করার জন্য অবশ্যই বিদ্যমান থাকতে হবে।","Karatasi za kufanya kazi za VRP Solver Console, 1. Maeneo, na 2. Umbali lazima uwepo kwa umbali unaoweza kuhesabiwa.","کاربرگ VRP Solver Console ، 1. مکان ها و 2. فاصله ها برای محاسبه فاصله ها باید وجود داشته باشد.","Lembaran Kerja VRP Solver Console, 1. Lokasi, dan 2. Jarak mesti ada untuk jarak yang akan dikira."]
["Yes","Evet","Ja","si","Oui","Sì","sim","نعم","Iya","جی ہاں","হ্যাঁ","Ndio","آره","Ya"]
["Yes - may do so multiple times","Evet - bunu birden çok kez yapabilir","Ja - kann dies mehrmals tun","Sí, puede hacerlo varias veces","Oui - peut le faire plusieurs fois","Sì, può farlo più volte","Sim - pode fazer isso várias vezes","نعم - يمكن القيام بذلك عدة مرات","Ya - dapat melakukannya beberapa kali","ہاں - ایسا متعدد بار کرسکتا ہے","হ্যাঁ - একাধিকবার এটি করতে পারে","Ndio - inaweza kufanya hivyo mara nyingi","بله - ممکن است چندین بار این کار را انجام دهد","Ya - boleh melakukannya berkali-kali"]
["Yes - only once at the end","Evet - yalnızca sonda bir kez","Ja - nur einmal am Ende","Sí, solo una vez al final","Oui - une seule fois à la fin","Sì, solo una volta alla fine","Sim - apenas uma vez no final","نعم - مرة واحدة فقط في النهاية","Ya - hanya sekali di akhir","ہاں - آخر میں صرف ایک بار","হ্যাঁ - একবারে একবারে","Ndio - mara moja tu mwishoni","بله - در پایان فقط یک بار","Ya - hanya sekali pada akhir"]
["You can get a free trial key at https://www.bingmapsportal.com/","https://www.bingmapsportal.com/ adresinden ücretsiz deneme anahtarı edinebilirsiniz.","Sie erhalten einen kostenlosen Testschlüssel unter https://www.bingmapsportal.com/","Puede obtener una clave de prueba gratuita en https://www.bingmapsportal.com/","Vous pouvez obtenir une clé d'essai gratuite sur https://www.bingmapsportal.com/","Puoi ottenere una chiave di prova gratuita su https://www.bingmapsportal.com/","Você pode obter uma chave de teste gratuita em https://www.bingmapsportal.com/","يمكنك الحصول على مفتاح تجريبي مجاني على https://www.bingmapsportal.com/","Anda bisa mendapatkan kunci uji coba gratis di https://www.bingmapsportal.com/","آپ مفت آزمائشی کلید https://www.bingmapsportal.com/ پر حاصل کرسکتے ہیں۔","আপনি https://www.bingmapsportal.com/ এ একটি নিখরচায় কী পেতে পারেন","Unaweza kupata kitufe cha jaribio la bure kwa https://www.bingmapsportal.com/","می توانید یک کلید آزمایشی رایگان در https://www.bingmapsportal.com/ دریافت کنید","Anda boleh mendapatkan kunci percubaan percuma di https://www.bingmapsportal.com/"]
["Your Bing Maps key is not valid or has expired. Remaining coordinates will not be populated.","Bing Maps anahtarınız geçerli değil veya süresi dolmuş. Kalan koordinatlar doldurulmayacaktır.","Ihr Bing Maps-Schlüssel ist ungültig oder abgelaufen. Verbleibende Koordinaten werden nicht ausgefüllt.","Su clave de Bing Maps no es válida o ha caducado. Las coordenadas restantes no se completarán.","Votre clé Bing Maps n'est pas valide ou a expiré. Les coordonnées restantes ne seront pas renseignées.","La tua chiave Bing Maps non è valida o è scaduta. Le coordinate rimanenti non verranno popolate.","Sua chave do Bing Maps não é válida ou expirou. As coordenadas restantes não serão preenchidas.","مفتاح خرائط Bing غير صالح أو انتهت صلاحيته. الإحداثيات المتبقية لن يتم ملؤها.","Kunci Bing Maps Anda tidak valid atau telah kedaluwarsa. Koordinat yang tersisa tidak akan diisi.","آپ کے بنگلہ میپس کی کلید درست نہیں ہے یا میعاد ختم ہوگئی ہے۔ باقی کوآرڈینیٹ آباد نہیں ہوں گے۔","আপনার বিং মানচিত্র কী বৈধ নয় বা মেয়াদোত্তীর্ণ হয়েছে। অবশিষ্ট স্থানাঙ্কগুলি পপুলেশন করা হবে না।","Ufunguo wako wa Ramani za Bing sio halali au umekwisha muda. Kuratibu zilizosalia hazitakuwa na watu.","کلید Bing Maps شما معتبر نیست یا منقضی شده است. مختصات باقیمانده پر نمی شوند.","Kunci Peta Bing anda tidak sah atau telah tamat tempoh. Koordinat yang tinggal tidak akan diisi."]
["Your Bing Maps key is not valid or has expired. Remaining distances will not be populated.","Bing Maps anahtarınız geçerli değil veya süresi dolmuş. Kalan mesafeler doldurulmayacaktır.","Ihr Bing Maps-Schlüssel ist ungültig oder abgelaufen. Verbleibende Entfernungen werden nicht ausgefüllt.","Su clave de Bing Maps no es válida o ha caducado. Las distancias restantes no se completarán.","Votre clé Bing Maps n'est pas valide ou a expiré. Les distances restantes ne seront pas renseignées.","La tua chiave Bing Maps non è valida o è scaduta. Le distanze rimanenti non verranno popolate.","Sua chave do Bing Maps não é válida ou expirou. As distâncias restantes não serão preenchidas.","مفتاح خرائط Bing غير صالح أو انتهت صلاحيته. لن يتم ملؤها المسافات المتبقية.","Kunci Bing Maps Anda tidak valid atau telah kedaluwarsa. Jarak yang tersisa tidak akan diisi.","آپ کے بنگلہ میپ کی کلید درست نہیں ہے یا اس کی میعاد ختم ہوگئی ہے۔ باقی فاصلے آباد نہیں ہوں گے۔","আপনার বিং মানচিত্র কী বৈধ নয় বা মেয়াদোত্তীর্ণ হয়েছে। অবশিষ্ট দূরত্ব জনবহুল হবে না।","Ufunguo wako wa Ramani za Bing sio halali au umekwisha muda. Umbali uliobaki hautakuwa na watu.","کلید Bing Maps شما معتبر نیست یا منقضی شده است. فاصله های باقیمانده پرجمعیت نخواهد شد.","Kunci Peta Bing anda tidak sah atau telah tamat tempoh. Jarak yang tinggal tidak akan dihuni."]
["Special thanks to:","Özel teşekkürler:","Besonderer Dank an:","Agradecimientos especiales a:","Remerciement spécial à:","Ringraziamenti speciali a:","Agradecimentos especiais para:","شكر خاص ل:","Terima kasih khusus kepada:","خصوصی شکریہ:","বিশেষ ধন্যবাদ:","Shukrani maalum kwa:","با تشکر ویژه از:","Terima kasih khas kepada:"]
["Please enter an integer from 0 to 10","Lütfen 0 ile 10 arasında bir tam sayı girin","Bitte geben Sie eine ganze Zahl von 0 bis 10 ein","Ingrese un número entero de 0 a 10","Veuillez saisir un nombre entier de 0 à 10","Per favore inserisci un numero intero da 0 a 10","Insira um número inteiro de 0 a 10","الرجاء إدخال عدد صحيح من 0 إلى 10","Harap masukkan bilangan bulat dari 0 hingga 10","براہ کرم 0 سے 10 تک ایک عددی درج کریں","দয়া করে 0 থেকে 10 পর্যন্ত পূর্ণসংখ্যা প্রবেশ করান","Tafadhali ingiza nambari kamili kutoka 0 hadi 10","لطفاً یک عدد صحیح از 0 تا 10 وارد کنید","Sila masukkan bilangan bulat dari 0 hingga 10"]
["Polyline break ","Çoklu çizgi sonu ","Polylinienbruch","Rotura de polilínea","Rupture de polyligne","Interruzione polilinea","Quebra de polilinha","كسر متعدد الخطوط","istirahat polyline","پولی لائن کا توڑ","পললাইন বিরতি","Polyline kuvunja","استراحت پلی لاین","Pecahan polyline"]
["Bing Maps route detail level","Bing Haritalar rota ayrıntı düzeyi","Detailebene der Bing Maps-Route","Nivel de detalle de la ruta de Bing Maps","Niveau de détail de l'itinéraire Bing Maps","Livello di dettaglio del percorso di Bing Maps","Nível de detalhe da rota do Bing Maps","مستوى تفاصيل مسار خرائط Bing","Tingkat detail rute Bing Maps","بنگ میپس کے راستے کی تفصیل کی سطح","বিং মানচিত্রের রুটের বিশদ স্তর","Kiwango cha maelezo ya njia ya Ramani za Bing","سطح جزئیات مسیر Bing Maps","Tahap perincian laluan Peta Bing"]
["All","Tümü","Alle","Todos","Toute","Tutto","Tudo","الجميع","Semua","سب","সব","Wote","همه","Semua"]
[" exceeds its capacity."," kapasitesini aşıyor."," überschreitet seine Kapazität."," excede su capacidad."," dépasse sa capacité."," supera la sua capacità."," excede sua capacidade.","يفوق قدرتها.","melebihi kapasitasnya.","اپنی صلاحیت سے زیادہ","তার ধারণক্ষমতা অতিক্রম করে।"," huzidi uwezo wake.","بیش از ظرفیت خود است"," melebihi kemampuannya."]
["Visualization worksheet setup complete.","Görselleştirme çalışma sayfası kurulumu tamamlandı.","Einrichtung des Visualisierungsarbeitsblatts abgeschlossen.","Se completó la configuración de la hoja de trabajo de visualización.","Configuration de la feuille de calcul de visualisation terminée.","Configurazione del foglio di lavoro di visualizzazione completata.","Configuração da planilha de visualização concluída.","اكتمل إعداد ورقة عمل التصور.","Penyiapan lembar kerja visualisasi selesai.","ویژولائزیشن ورک شیٹ سیٹ اپ مکمل۔","ভিজ্যুয়ালাইজেশন ওয়ার্কশীট সেটআপ সম্পূর্ণ।","Usanidi wa karatasi ya taswira umekamilika.","تنظیم کاربرگ تجسم کامل شد.","Penyediaan lembaran kerja visualisasi selesai."]
["Animation complete.","Animasyon tamamlandı.","Animation abgeschlossen.","Animación completa.","Animation terminée.","Animazione completata.","Animação concluída.","اكتملت الرسوم المتحركة.","Animasi selesai.","حرکت پذیری مکمل","অ্যানিমেশন সম্পূর্ণ।","Uhuishaji umekamilika.","انیمیشن کامل شد.","Animasi selesai."]
[", step ",", adım",", Schritt",", paso",", étape",", fare un passo",", Passo","، خطوة",", melangkah","، قدم",", ধাপ",", hatua","، گام",", langkah"]
[", vehicle ",", araç",", Fahrzeug",", vehículo",", véhicule",", veicolo",", veículo","، مركبة",", kendaraan","، گاڑی",", যানবাহন",", gari","، وسیله نقلیه",", kenderaan"]
[", vehicle type ",", araç tipi",", Fahrzeugtyp",", tipo de vehiculo",", Type de véhicule",", tipo di veicolo",", Tipo de Veículo","، نوع السيارة",", jenis kendaraan","، گاڑی کی قسم",", গাড়ির ধরন",", gari aina","، نوع وسیله نقلیه",", jenis kenderaan"]
["This will take up to ","Bu kadar sürecek","Dies dauert bis zu","Esto tomará hasta","Cela prendra jusqu'à","Questo richiederà fino a","Isso vai demorar até","هذا سوف يستغرق ما يصل إلى","Ini akan memakan waktu hingga","یہ تک لے جائے گا","এই পর্যন্ত লাগবে","Hii itachukua hadi","این کار تا","Ini akan memakan masa sehingga"]
[" seconds. You can speed up the animation by pressing (or holding down) the <Esc> key. Do you want to continue?","  saniye. <Esc> tuşuna basarak (veya basılı tutarak) animasyonu hızlandırabilirsiniz. Devam etmek istiyor musun?","  Sekunden. Sie können die Animation beschleunigen, indem Sie die <Esc>-Taste drücken (oder gedrückt halten). Wollen Sie fortfahren?","  segundos. Puede acelerar la animación presionando (o manteniendo presionada) la tecla <Esc>. ¿Quieres continuar?","  secondes. Vous pouvez accélérer l'animation en appuyant (ou en maintenant enfoncée) la touche <Esc>. Voulez-vous continuer?","  secondi. È possibile velocizzare l'animazione premendo (o tenendo premuto) il tasto <Esc>. Vuoi continuare?","  segundos. Você pode acelerar a animação pressionando (ou mantendo pressionada) a tecla <Esc>. Você quer continuar?","  ثواني. يمكنك تسريع الرسم المتحرك بالضغط (أو الضغط باستمرار) على مفتاح <Esc>. هل تريد الاستمرار؟","  detik. Anda dapat mempercepat animasi dengan menekan (atau menahan) tombol <Esc>. Apakah Anda ingin melanjutkan?","  سیکنڈ آپ <Esc> کی کو دباکر (یا دبائے رکھ کر) حرکت پذیری کو تیز کرسکتے ہیں۔ کیا آپ جاری رکھنا چاہتے ہیں؟","  সেকেন্ড আপনি <Esc> কী টিপে (বা চেপে ধরে) অ্যানিমেশনের গতি বাড়িয়ে দিতে পারেন। আপনি কি অবিরত করতে চান?","  sekunde. Unaweza kuharakisha uhuishaji kwa kubonyeza (au kushikilia) kitufe cha <Esc>. Je! Unataka kuendelea?","  ثانیه می توانید با فشار دادن (یا نگه داشتن) کلید <Esc> سرعت حرکت را افزایش دهید. می خواهید ادامه دهید؟","  saat. Anda boleh mempercepat animasi dengan menekan (atau menahan) kekunci <Esc>. Adakah anda mahu meneruskan?"]
["Worksheet 5.Visualization must exist for the solution worksheet to be created.","Çalışma Sayfası 5. Oluşturulacak çözüm çalışma sayfası için görselleştirme bulunmalıdır.","Arbeitsblatt 5. Die Visualisierung muss vorhanden sein, damit das Lösungsarbeitsblatt erstellt werden kann.","Hoja de trabajo 5. Debe existir visualización para que se cree la hoja de trabajo de la solución.","Feuille de calcul 5.La visualisation doit exister pour que la feuille de calcul de la solution soit créée.","Foglio di lavoro 5.La visualizzazione deve esistere per creare il foglio di lavoro della soluzione.","Planilha 5. A visualização deve existir para que a planilha de solução seja criada.","ورقة العمل 5.يجب أن يكون التصور موجودًا حتى يتم إنشاء ورقة عمل الحل.","Lembar Kerja 5.Visualisasi harus ada untuk lembar kerja solusi yang akan dibuat.","ورک شیٹ 5. حل ورک شیٹ بنانے کے لیے ویزولائزیشن کا ہونا ضروری ہے۔","ওয়ার্কশীট 5. সমাধান কার্যপত্রক তৈরির জন্য ভিজ্যুয়ালাইজেশন থাকতে হবে।","Karatasi ya kazi 5. Uhakiki lazima uwepo ili karatasi ya suluhisho iundwe.","کاربرگ 5. برای ایجاد کاربرگ راه حل باید تجسم وجود داشته باشد.","Lembaran Kerja 5. Visualisasi mesti ada agar lembaran kerja penyelesaian dibuat."]
["Driving","Binek araç","Fahren","Conduciendo","Conduite","Guida","Dirigindo","القيادة","Menyetir","ڈرائیونگ","পরিচালনা","Kuendesha gari","رانندگی","Memandu"]
["Truck","Kamyon","Lastwagen","Camión","Camion","Camion","Caminhão","شاحنة","Truk","ٹرک","ট্রাক","Lori","کامیون","Lori"]
["Walking","Yürüme","Gehen","Caminando","Marche à pied","A piedi","Andando","المشي","Sedang berjalan","چلنا","হাঁটা","Kutembea","پیاده روی","berjalan"]
["Bing Maps travel mode","Bing Haritalar seyahat modu","Bing Maps-Reisemodus","Modo de viaje de Bing Maps","Mode de voyage Bing Maps","Modalità viaggio Bing Maps","Modo de viagem Bing Maps","وضع السفر في خرائط Bing","Mode perjalanan Bing Maps","بنگ میپس ٹریول موڈ","Bing মানচিত্র ভ্রমণ মোড","Hali ya usafiri ya Ramani za Bing","حالت سفر نقشه های بینگ","Mod perjalanan Peta Bing"]

{"sheet":"1.Locations","index":4,"n_rows":7,"n_cols":12,"rows_kept":7,"cut":false,"hidden":false,"merged":[]}
["Location ID","Name","Address","Latitude (y)","Longitude (x)","Time window start","Time window end","Must be visited?","Service time","Pickup amount","Delivery amount","Profit"]
[0,"Depot",null,null,null,"00:00:00","23:59:00","Starting location",0,0,0,0]
[1,"Customer 1",null,null,null,"00:00:00","23:59:00","Must be visited",0,0,37,0]
[2,"Customer 2",null,null,null,"00:00:00","23:59:00","Must be visited",0,0,35,0]
[3,"Customer 3",null,null,null,"00:00:00","23:59:00","Must be visited",0,0,30,0]
[4,"Customer 4",null,null,null,"00:00:00","23:59:00","Must be visited",0,0,25,0]
[5,"Customer 5",null,null,null,"00:00:00","23:59:00","Must be visited",0,0,32,0]

{"sheet":"2.Distances","index":5,"n_rows":38,"n_cols":10,"rows_kept":38,"cut":false,"hidden":false,"merged":[]}
["Method:"]
["From","To","Distance","Duration","Polyline break 1 Latitude (y)","Polyline break 1 Longitude (x)","Polyline break 2 Latitude (y)","Polyline break 2 Longitude (x)","Polyline break 3 Latitude (y)","Polyline break 3 Longitude (x)"]
["Depot","Depot",0,0,{"$f":"'1.Locations'!D2","v":0},{"$f":"'1.Locations'!E2","v":0},{"$f":"'1.Locations'!D2","v":0},{"$f":"'1.Locations'!E2","v":0},{"$f":"'1.Locations'!D2","v":0},{"$f":"'1.Locations'!E2","v":0}]
["Depot","Customer 1",28,0,{"$f":"'1.Locations'!D2","v":0},{"$f":"'1.Locations'!E2","v":0},{"$f":"'1.Locations'!D2","v":0},{"$f":"'1.Locations'!E2","v":0},{"$f":"'1.Locations'!D2","v":0},{"$f":"'1.Locations'!E2","v":0}]
["Depot","Customer 2",31,0,{"$f":"'1.Locations'!D2","v":0},{"$f":"'1.Locations'!E2","v":0},{"$f":"'1.Locations'!D2","v":0},{"$f":"'1.Locations'!E2","v":0},{"$f":"'1.Locations'!D2","v":0},{"$f":"'1.Locations'!E2","v":0}]
["Depot","Customer 3",20,0,{"$f":"'1.Locations'!D2","v":0},{"$f":"'1.Locations'!E2","v":0},{"$f":"'1.Locations'!D2","v":0},{"$f":"'1.Locations'!E2","v":0},{"$f":"'1.Locations'!D2","v":0},{"$f":"'1.Locations'!E2","v":0}]
["Depot","Customer 4",25,0,{"$f":"'1.Locations'!D2","v":0},{"$f":"'1.Locations'!E2","v":0},{"$f":"'1.Locations'!D2","v":0},{"$f":"'1.Locations'!E2","v":0},{"$f":"'1.Locations'!D2","v":0},{"$f":"'1.Locations'!E2","v":0}]
["Depot","Customer 5",34,0,{"$f":"'1.Locations'!D2","v":0},{"$f":"'1.Locations'!E2","v":0},{"$f":"'1.Locations'!D2","v":0},{"$f":"'1.Locations'!E2","v":0},{"$f":"'1.Locations'!D2","v":0},{"$f":"'1.Locations'!E2","v":0}]
["Customer 1","Depot",28,0,{"$f":"'1.Locations'!D3","v":0},{"$f":"'1.Locations'!E3","v":0},{"$f":"'1.Locations'!D3","v":0},{"$f":"'1.Locations'!E3","v":0},{"$f":"'1.Locations'!D3","v":0},{"$f":"'1.Locations'!E3","v":0}]
["Customer 1","Customer 1",0,0,{"$f":"'1.Locations'!D3","v":0},{"$f":"'1.Locations'!E3","v":0},{"$f":"'1.Locations'!D3","v":0},{"$f":"'1.Locations'!E3","v":0},{"$f":"'1.Locations'!D3","v":0},{"$f":"'1.Locations'!E3","v":0}]
["Customer 1","Customer 2",21,0,{"$f":"'1.Locations'!D3","v":0},{"$f":"'1.Locations'!E3","v":0},{"$f":"'1.Locations'!D3","v":0},{"$f":"'1.Locations'!E3","v":0},{"$f":"'1.Locations'!D3","v":0},{"$f":"'1.Locations'!E3","v":0}]
["Customer 1","Customer 3",38,0,{"$f":"'1.Locations'!D3","v":0},{"$f":"'1.Locations'!E3","v":0},{"$f":"'1.Locations'!D3","v":0},{"$f":"'1.Locations'!E3","v":0},{"$f":"'1.Locations'!D3","v":0},{"$f":"'1.Locations'!E3","v":0}]
["Customer 1","Customer 4",20,0,{"$f":"'1.Locations'!D3","v":0},{"$f":"'1.Locations'!E3","v":0},{"$f":"'1.Locations'!D3","v":0},{"$f":"'1.Locations'!E3","v":0},{"$f":"'1.Locations'!D3","v":0},{"$f":"'1.Locations'!E3","v":0}]
["Customer 1","Customer 5",32,0,{"$f":"'1.Locations'!D3","v":0},{"$f":"'1.Locations'!E3","v":0},{"$f":"'1.Locations'!D3","v":0},{"$f":"'1.Locations'!E3","v":0},{"$f":"'1.Locations'!D3","v":0},{"$f":"'1.Locations'!E3","v":0}]
["Customer 2","Depot",31,0,{"$f":"'1.Locations'!D4","v":0},{"$f":"'1.Locations'!E4","v":0},{"$f":"'1.Locations'!D4","v":0},{"$f":"'1.Locations'!E4","v":0},{"$f":"'1.Locations'!D4","v":0},{"$f":"'1.Locations'!E4","v":0}]
["Customer 2","Customer 1",21,0,{"$f":"'1.Locations'!D4","v":0},{"$f":"'1.Locations'!E4","v":0},{"$f":"'1.Locations'!D4","v":0},{"$f":"'1.Locations'!E4","v":0},{"$f":"'1.Locations'!D4","v":0},{"$f":"'1.Locations'!E4","v":0}]
["Customer 2","Customer 2",0,0,{"$f":"'1.Locations'!D4","v":0},{"$f":"'1.Locations'!E4","v":0},{"$f":"'1.Locations'!D4","v":0},{"$f":"'1.Locations'!E4","v":0},{"$f":"'1.Locations'!D4","v":0},{"$f":"'1.Locations'!E4","v":0}]
["Customer 2","Customer 3",38,0,{"$f":"'1.Locations'!D4","v":0},{"$f":"'1.Locations'!E4","v":0},{"$f":"'1.Locations'!D4","v":0},{"$f":"'1.Locations'!E4","v":0},{"$f":"'1.Locations'!D4","v":0},{"$f":"'1.Locations'!E4","v":0}]
["Customer 2","Customer 4",20,0,{"$f":"'1.Locations'!D4","v":0},{"$f":"'1.Locations'!E4","v":0},{"$f":"'1.Locations'!D4","v":0},{"$f":"'1.Locations'!E4","v":0},{"$f":"'1.Locations'!D4","v":0},{"$f":"'1.Locations'!E4","v":0}]
["Customer 2","Customer 5",32,0,{"$f":"'1.Locations'!D4","v":0},{"$f":"'1.Locations'!E4","v":0},{"$f":"'1.Locations'!D4","v":0},{"$f":"'1.Locations'!E4","v":0},{"$f":"'1.Locations'!D4","v":0},{"$f":"'1.Locations'!E4","v":0}]
["Customer 3","Depot",20,0,{"$f":"'1.Locations'!D5","v":0},{"$f":"'1.Locations'!E5","v":0},{"$f":"'1.Locations'!D5","v":0},{"$f":"'1.Locations'!E5","v":0},{"$f":"'1.Locations'!D5","v":0},{"$f":"'1.Locations'!E5","v":0}]
["Customer 3","Customer 1",29,0,{"$f":"'1.Locations'!D5","v":0},{"$f":"'1.Locations'!E5","v":0},{"$f":"'1.Locations'!D5","v":0},{"$f":"'1.Locations'!E5","v":0},{"$f":"'1.Locations'!D5","v":0},{"$f":"'1.Locations'!E5","v":0}]
["Customer 3","Customer 2",38,0,{"$f":"'1.Locations'!D5","v":0},{"$f":"'1.Locations'!E5","v":0},{"$f":"'1.Locations'!D5","v":0},{"$f":"'1.Locations'!E5","v":0},{"$f":"'1.Locations'!D5","v":0},{"$f":"'1.Locations'!E5","v":0}]
["Customer 3","Customer 3",0,0,{"$f":"'1.Locations'!D5","v":0},{"$f":"'1.Locations'!E5","v":0},{"$f":"'1.Locations'!D5","v":0},{"$f":"'1.Locations'!E5","v":0},{"$f":"'1.Locations'!D5","v":0},{"$f":"'1.Locations'!E5","v":0}]
["Customer 3","Customer 4",30,0,{"$f":"'1.Locations'!D5","v":0},{"$f":"'1.Locations'!E5","v":0},{"$f":"'1.Locations'!D5","v":0},{"$f":"'1.Locations'!E5","v":0},{"$f":"'1.Locations'!D5","v":0},{"$f":"'1.Locations'!E5","v":0}]
["Customer 3","Customer 5",27,0,{"$f":"'1.Locations'!D5","v":0},{"$f":"'1.Locations'!E5","v":0},{"$f":"'1.Locations'!D5","v":0},{"$f":"'1.Locations'!E5","v":0},{"$f":"'1.Locations'!D5","v":0},{"$f":"'1.Locations'!E5","v":0}]
["Customer 4","Depot",25,0,{"$f":"'1.Locations'!D6","v":0},{"$f":"'1.Locations'!E6","v":0},{"$f":"'1.Locations'!D6","v":0},{"$f":"'1.Locations'!E6","v":0},{"$f":"'1.Locations'!D6","v":0},{"$f":"'1.Locations'!E6","v":0}]
["Customer 4","Customer 1",26,0,{"$f":"'1.Locations'!D6","v":0},{"$f":"'1.Locations'!E6","v":0},{"$f":"'1.Locations'!D6","v":0},{"$f":"'1.Locations'!E6","v":0},{"$f":"'1.Locations'!D6","v":0},{"$f":"'1.Locations'!E6","v":0}]
["Customer 4","Customer 2",20,0,{"$f":"'1.Locations'!D6","v":0},{"$f":"'1.Locations'!E6","v":0},{"$f":"'1.Locations'!D6","v":0},{"$f":"'1.Locations'!E6","v":0},{"$f":"'1.Locations'!D6","v":0},{"$f":"'1.Locations'!E6","v":0}]
["Customer 4","Customer 3",30,0,{"$f":"'1.Locations'!D6","v":0},{"$f":"'1.Locations'!E6","v":0},{"$f":"'1.Locations'!D6","v":0},{"$f":"'1.Locations'!E6","v":0},{"$f":"'1.Locations'!D6","v":0},{"$f":"'1.Locations'!E6","v":0}]
["Customer 4","Customer 4",0,0,{"$f":"'1.Locations'!D6","v":0},{"$f":"'1.Locations'!E6","v":0},{"$f":"'1.Locations'!D6","v":0},{"$f":"'1.Locations'!E6","v":0},{"$f":"'1.Locations'!D6","v":0},{"$f":"'1.Locations'!E6","v":0}]
["Customer 4","Customer 5",25,0,{"$f":"'1.Locations'!D6","v":0},{"$f":"'1.Locations'!E6","v":0},{"$f":"'1.Locations'!D6","v":0},{"$f":"'1.Locations'!E6","v":0},{"$f":"'1.Locations'!D6","v":0},{"$f":"'1.Locations'!E6","v":0}]
["Customer 5","Depot",34,0,{"$f":"'1.Locations'!D7","v":0},{"$f":"'1.Locations'!E7","v":0},{"$f":"'1.Locations'!D7","v":0},{"$f":"'1.Locations'!E7","v":0},{"$f":"'1.Locations'!D7","v":0},{"$f":"'1.Locations'!E7","v":0}]
["Customer 5","Customer 1",20,0,{"$f":"'1.Locations'!D7","v":0},{"$f":"'1.Locations'!E7","v":0},{"$f":"'1.Locations'!D7","v":0},{"$f":"'1.Locations'!E7","v":0},{"$f":"'1.Locations'!D7","v":0},{"$f":"'1.Locations'!E7","v":0}]
["Customer 5","Customer 2",32,0,{"$f":"'1.Locations'!D7","v":0},{"$f":"'1.Locations'!E7","v":0},{"$f":"'1.Locations'!D7","v":0},{"$f":"'1.Locations'!E7","v":0},{"$f":"'1.Locations'!D7","v":0},{"$f":"'1.Locations'!E7","v":0}]
["Customer 5","Customer 3",27,0,{"$f":"'1.Locations'!D7","v":0},{"$f":"'1.Locations'!E7","v":0},{"$f":"'1.Locations'!D7","v":0},{"$f":"'1.Locations'!E7","v":0},{"$f":"'1.Locations'!D7","v":0},{"$f":"'1.Locations'!E7","v":0}]
["Customer 5","Customer 4",25,0,{"$f":"'1.Locations'!D7","v":0},{"$f":"'1.Locations'!E7","v":0},{"$f":"'1.Locations'!D7","v":0},{"$f":"'1.Locations'!E7","v":0},{"$f":"'1.Locations'!D7","v":0},{"$f":"'1.Locations'!E7","v":0}]
["Customer 5","Customer 5",0,0,{"$f":"'1.Locations'!D7","v":0},{"$f":"'1.Locations'!E7","v":0},{"$f":"'1.Locations'!D7","v":0},{"$f":"'1.Locations'!E7","v":0},{"$f":"'1.Locations'!D7","v":0},{"$f":"'1.Locations'!E7","v":0}]

{"sheet":"3.Vehicles","index":6,"n_rows":2,"n_cols":13,"rows_kept":2,"cut":false,"hidden":false,"merged":[]}
["Starting depot","Vehicle type","Capacity","Fixed cost per trip","Cost per unit distance","Duration multiplier","Distance limit","Work start time","Driving time limit","Working time limit","Return depot","Destination ID","Number of vehicles"]
["Depot","T1",100,0,1,1,100000,"00:00:00",0.99930555555555556,0.99930555555555556,"Depot",{"$f":"IFERROR(MATCH(K2,'1.Locations'!$B$2:$B$2,0) - 1,\" \")","v":0},2]

{"sheet":"4.Solution","index":7,"n_rows":13,"n_cols":31,"rows_kept":13,"cut":false,"hidden":false,"merged":[]}
["Total net profit:",{"$f":"+G3+X3","v":-171}]
[]
["Vehicle:","V1",null,"Stops:",{"$f":"COUNTA(B6:B11)","v":4},"Net profit:",{"$f":"INDEX(I5:I11,E3 + 1)-(INDEX(D5:D11,E3+ 1) * '3.Vehicles'!$E$2)- IF(E3 > 1, '3.Vehicles'!$D$2, 0)","v":-95},null,null,null,null,null,null,null,null,null,null,"Vehicle:","V2",null,"Stops:",{"$f":"COUNTA(S6:S11)","v":3},"Net profit:",{"$f":"INDEX(Z5:Z11,V3 + 1)-(INDEX(U5:U11,V3+ 1) * '3.Vehicles'!$E$2)- IF(V3 > 1, '3.Vehicles'!$D$2, 0)","v":-76}]
["Stop count","Location Name","Location ID","Distance travelled","Driving time","Arrival time","Departure time","Working time","Profit collected","Pickup amount","Delivery amount","Cumulative pickup","Subtractive delivery","Load",null,null,null,"Stop count","Location Name","Location ID","Distance travelled","Driving time","Arrival time","Departure time","Working time","Profit collected","Pickup amount","Delivery amount","Cumulative pickup","Subtractive delivery","Load"]
[0,{"$f":"'1.Locations'!$B$2","v":"Depot"},{"$f":"IFERROR(MATCH(B5,'1.Locations'!$B$2:$B$7, 0) - 1,\" \")","v":0},0,0,null,{"$f":"'3.Vehicles'!$H$2","v":"00:00:00"},0,0,0,0,0,{"$f":"IFERROR(IF(ISNUMBER(C5),IF(B6 = B5, 0, IF(B6 = \"\", 0, M6 + K6)),\" \"),\" \")","v":99},{"$f":"IFERROR(IF(ISNUMBER(C5),L5 + M5,\" \"),\" \")","v":99},null,null,null,0,{"$f":"'1.Locations'!$B$2","v":"Depot"},{"$f":"IFERROR(MATCH(S5,'1.Locations'!$B$2:$B$7, 0) - 1,\" \")","v":0},0,0,null,{"$f":"'3.Vehicles'!$H$2","v":"00:00:00"},0,0,0,0,0,{"$f":"IFERROR(IF(ISNUMBER(T5),IF(S6 = S5, 0, IF(S6 = \"\", 0, AD6 + AB6)),\" \"),\" \")","v":60},{"$f":"IFERROR(IF(ISNUMBER(T5),AC5 + AD5,\" \"),\" \")","v":60}]
[1,"Customer 3",{"$f":"IFERROR(MATCH(B6,'1.Locations'!$B$2:$B$7, 0) - 1,\" \")","v":3},{"$f":"IFERROR(IF(ISNUMBER(C6),INDEX('2.Distances'!$C$2:$C$37,C5*6+C6 + 2) +D5,\" \"),\" \")","v":20},{"$f":"IFERROR(IF(ISNUMBER(C6),'3.Vehicles'!$F$2 * INDEX('2.Distances'!$D$2:$D$37,C5*6+C6 + 2) +E5,\" \"),\" \")","v":0},{"$f":"IFERROR(IF(ISNUMBER(C6),'3.Vehicles'!$F$2 * INDEX('2.Distances'!$D$2:$D$37,C5*6+C6 + 2) +G5,\" \"),\" \")","v":"00:00:00"},{"$f":"IFERROR(IF(AND(C5<>C6,ISNUMBER(F6)),INDEX('1.Locations'!$I$2:$I$7,C6 + 1) + MAX(F6,INDEX('1.Locations'!$F$2:$F$7,C6 + 1)),\" \"),\" \")","v":"00:00:00"},{"$f":"IFERROR(IF(AND(B6 = B5, B7 = \"\"), F6 - G5, G6 - G5),\" \")","v":0},{"$f":"IFERROR(IF(ISNUMBER(C6),INDEX('1.Locations'!$L$2:$L$7,C6 + 1) + I5,\" \"),\" \")","v":0},{"$f":"IFERROR(IF(ISNUMBER(C6),INDEX('1.Locations'!$J$2:$J$7,C6 + 1),\" \"),\" \")","v":0},{"$f":"IFERROR(IF(ISNUMBER(C6),INDEX('1.Locations'!$K$2:$K$7,C6 + 1),\" \"),\" \")","v":30},{"$f":"IFERROR(IF(ISNUMBER(C6),IF(B6 = B5, 0, J6 + L5),\" \"),\" \")","v":0},{"$f":"IFERROR(IF(ISNUMBER(C6),IF(B7 = B5, 0, IF(B7 = \"\", 0, M7 + K7)),\" \"),\" \")","v":69},{"$f":"IFERROR(IF(ISNUMBER(C6),L6 + M6,\" \"),\" \")","v":69},null,null,null,1,"Customer 4",{"$f":"IFERROR(MATCH(S6,'1.Locations'!$B$2:$B$7, 0) - 1,\" \")","v":4},{"$f":"IFERROR(IF(ISNUMBER(T6),INDEX('2.Distances'!$C$2:$C$37,T5*6+T6 + 2) +U5,\" \"),\" \")","v":25},{"$f":"IFERROR(IF(ISNUMBER(T6),'3.Vehicles'!$F$2 * INDEX('2.Distances'!$D$2:$D$37,T5*6+T6 + 2) +V5,\" \"),\" \")","v":0},{"$f":"IFERROR(IF(ISNUMBER(T6),'3.Vehicles'!$F$2 * INDEX('2.Distances'!$D$2:$D$37,T5*6+T6 + 2) +X5,\" \"),\" \")","v":"00:00:00"},{"$f":"IFERROR(IF(AND(T5<>T6,ISNUMBER(W6)),INDEX('1.Locations'!$I$2:$I$7,T6 + 1) + MAX(W6,INDEX('1.Locations'!$F$2:$F$7,T6 + 1)),\" \"),\" \")","v":"00:00:00"},{"$f":"IFERROR(IF(AND(S6 = S5, S7 = \"\"), W6 - X5, X6 - X5),\" \")","v":0},{"$f":"IFERROR(IF(ISNUMBER(T6),INDEX('1.Locations'!$L$2:$L$7,T6 + 1) + Z5,\" \"),\" \")","v":0},{"$f":"IFERROR(IF(ISNUMBER(T6),INDEX('1.Locations'!$J$2:$J$7,T6 + 1),\" \"),\" \")","v":0},{"$f":"IFERROR(IF(ISNUMBER(T6),INDEX('1.Locations'!$K$2:$K$7,T6 + 1),\" \"),\" \")","v":25},{"$f":"IFERROR(IF(ISNUMBER(T6),IF(S6 = S5, 0, AA6 + AC5),\" \"),\" \")","v":0},{"$f":"IFERROR(IF(ISNUMBER(T6),IF(S7 = S5, 0, IF(S7 = \"\", 0, AD7 + AB7)),\" \"),\" \")","v":35},{"$f":"IFERROR(IF(ISNUMBER(T6),AC6 + AD6,\" \"),\" \")","v":35}]
[2,"Customer 5",{"$f":"IFERROR(MATCH(B7,'1.Locations'!$B$2:$B$7, 0) - 1,\" \")","v":5},{"$f":"IFERROR(IF(ISNUMBER(C7),INDEX('2.Distances'!$C$2:$C$37,C6*6+C7 + 2) +D6,\" \"),\" \")","v":47},{"$f":"IFERROR(IF(ISNUMBER(C7),'3.Vehicles'!$F$2 * INDEX('2.Distances'!$D$2:$D$37,C6*6+C7 + 2) +E6,\" \"),\" \")","v":0},{"$f":"IFERROR(IF(ISNUMBER(C7),'3.Vehicles'!$F$2 * INDEX('2.Distances'!$D$2:$D$37,C6*6+C7 + 2) +G6,\" \"),\" \")","v":"00:00:00"},{"$f":"IFERROR(IF(AND(C5<>C7,ISNUMBER(F7)),INDEX('1.Locations'!$I$2:$I$7,C7 + 1) + MAX(F7,INDEX('1.Locations'!$F$2:$F$7,C7 + 1)),\" \"),\" \")","v":"00:00:00"},{"$f":"IFERROR(IF(AND(B7 = B5, B8 = \"\"), F7 - G5, G7 - G5),\" \")","v":0},{"$f":"IFERROR(IF(ISNUMBER(C7),INDEX('1.Locations'!$L$2:$L$7,C7 + 1) + I6,\" \"),\" \")","v":0},{"$f":"IFERROR(IF(ISNUMBER(C7),INDEX('1.Locations'!$J$2:$J$7,C7 + 1),\" \"),\" \")","v":0},{"$f":"IFERROR(IF(ISNUMBER(C7),INDEX('1.Locations'!$K$2:$K$7,C7 + 1),\" \"),\" \")","v":32},{"$f":"IFERROR(IF(ISNUMBER(C7),IF(B7 = B5, 0, J7 + L6),\" \"),\" \")","v":0},{"$f":"IFERROR(IF(ISNUMBER(C7),IF(B8 = B5, 0, IF(B8 = \"\", 0, M8 + K8)),\" \"),\" \")","v":37},{"$f":"IFERROR(IF(ISNUMBER(C7),L7 + M7,\" \"),\" \")","v":37},null,null,null,2,"Customer 2",{"$f":"IFERROR(MATCH(S7,'1.Locations'!$B$2:$B$7, 0) - 1,\" \")","v":2},{"$f":"IFERROR(IF(ISNUMBER(T7),INDEX('2.Distances'!$C$2:$C$37,T6*6+T7 + 2) +U6,\" \"),\" \")","v":45},{"$f":"IFERROR(IF(ISNUMBER(T7),'3.Vehicles'!$F$2 * INDEX('2.Distances'!$D$2:$D$37,T6*6+T7 + 2) +V6,\" \"),\" \")","v":0},{"$f":"IFERROR(IF(ISNUMBER(T7),'3.Vehicles'!$F$2 * INDEX('2.Distances'!$D$2:$D$37,T6*6+T7 + 2) +X6,\" \"),\" \")","v":"00:00:00"},{"$f":"IFERROR(IF(AND(T5<>T7,ISNUMBER(W7)),INDEX('1.Locations'!$I$2:$I$7,T7 + 1) + MAX(W7,INDEX('1.Locations'!$F$2:$F$7,T7 + 1)),\" \"),\" \")","v":"00:00:00"},{"$f":"IFERROR(IF(AND(S7 = S5, S8 = \"\"), W7 - X5, X7 - X5),\" \")","v":0},{"$f":"IFERROR(IF(ISNUMBER(T7),INDEX('1.Locations'!$L$2:$L$7,T7 + 1) + Z6,\" \"),\" \")","v":0},{"$f":"IFERROR(IF(ISNUMBER(T7),INDEX('1.Locations'!$J$2:$J$7,T7 + 1),\" \"),\" \")","v":0},{"$f":"IFERROR(IF(ISNUMBER(T7),INDEX('1.Locations'!$K$2:$K$7,T7 + 1),\" \"),\" \")","v":35},{"$f":"IFERROR(IF(ISNUMBER(T7),IF(S7 = S5, 0, AA7 + AC6),\" \"),\" \")","v":0},{"$f":"IFERROR(IF(ISNUMBER(T7),IF(S8 = S5, 0, IF(S8 = \"\", 0, AD8 + AB8)),\" \"),\" \")","v":0},{"$f":"IFERROR(IF(ISNUMBER(T7),AC7 + AD7,\" \"),\" \")","v":0}]
[3,"Customer 1",{"$f":"IFERROR(MATCH(B8,'1.Locations'!$B$2:$B$7, 0) - 1,\" \")","v":1},{"$f":"IFERROR(IF(ISNUMBER(C8),INDEX('2.Distances'!$C$2:$C$37,C7*6+C8 + 2) +D7,\" \"),\" \")","v":67},{"$f":"IFERROR(IF(ISNUMBER(C8),'3.Vehicles'!$F$2 * INDEX('2.Distances'!$D$2:$D$37,C7*6+C8 + 2) +E7,\" \"),\" \")","v":0},{"$f":"IFERROR(IF(ISNUMBER(C8),'3.Vehicles'!$F$2 * INDEX('2.Distances'!$D$2:$D$37,C7*6+C8 + 2) +G7,\" \"),\" \")","v":"00:00:00"},{"$f":"IFERROR(IF(AND(C5<>C8,ISNUMBER(F8)),INDEX('1.Locations'!$I$2:$I$7,C8 + 1) + MAX(F8,INDEX('1.Locations'!$F$2:$F$7,C8 + 1)),\" \"),\" \")","v":"00:00:00"},{"$f":"IFERROR(IF(AND(B8 = B5, B9 = \"\"), F8 - G5, G8 - G5),\" \")","v":0},{"$f":"IFERROR(IF(ISNUMBER(C8),INDEX('1.Locations'!$L$2:$L$7,C8 + 1) + I7,\" \"),\" \")","v":0},{"$f":"IFERROR(IF(ISNUMBER(C8),INDEX('1.Locations'!$J$2:$J$7,C8 + 1),\" \"),\" \")","v":0},{"$f":"IFERROR(IF(ISNUMBER(C8),INDEX('1.Locations'!$K$2:$K$7,C8 + 1),\" \"),\" \")","v":37},{"$f":"IFERROR(IF(ISNUMBER(C8),IF(B8 = B5, 0, J8 + L7),\" \"),\" \")","v":0},{"$f":"IFERROR(IF(ISNUMBER(C8),IF(B9 = B5, 0, IF(B9 = \"\", 0, M9 + K9)),\" \"),\" \")","v":0},{"$f":"IFERROR(IF(ISNUMBER(C8),L8 + M8,\" \"),\" \")","v":0},null,null,null,3,"Depot",{"$f":"IFERROR(MATCH(S8,'1.Locations'!$B$2:$B$7, 0) - 1,\" \")","v":0},{"$f":"IFERROR(IF(ISNUMBER(T8),INDEX('2.Distances'!$C$2:$C$37,T7*6+T8 + 2) +U7,\" \"),\" \")","v":76},{"$f":"IFERROR(IF(ISNUMBER(T8),'3.Vehicles'!$F$2 * INDEX('2.Distances'!$D$2:$D$37,T7*6+T8 + 2) +V7,\" \"),\" \")","v":0},{"$f":"IFERROR(IF(ISNUMBER(T8),'3.Vehicles'!$F$2 * INDEX('2.Distances'!$D$2:$D$37,T7*6+T8 + 2) +X7,\" \"),\" \")","v":"00:00:00"},{"$f":"IFERROR(IF(AND(T5<>T8,ISNUMBER(W8)),INDEX('1.Locations'!$I$2:$I$7,T8 + 1) + MAX(W8,INDEX('1.Locations'!$F$2:$F$7,T8 + 1)),\" \"),\" \")","v":" "},{"$f":"IFERROR(IF(AND(S8 = S5, S9 = \"\"), W8 - X5, X8 - X5),\" \")","v":0},{"$f":"IFERROR(IF(ISNUMBER(T8),INDEX('1.Locations'!$L$2:$L$7,T8 + 1) + Z7,\" \"),\" \")","v":0},{"$f":"IFERROR(IF(ISNUMBER(T8),INDEX('1.Locations'!$J$2:$J$7,T8 + 1),\" \"),\" \")","v":0},{"$f":"IFERROR(IF(ISNUMBER(T8),INDEX('1.Locations'!$K$2:$K$7,T8 + 1),\" \"),\" \")","v":0},{"$f":"IFERROR(IF(ISNUMBER(T8),IF(S8 = S5, 0, AA8 + AC7),\" \"),\" \")","v":0},{"$f":"IFERROR(IF(ISNUMBER(T8),IF(S9 = S5, 0, IF(S9 = \"\", 0, AD9 + AB9)),\" \"),\" \")","v":0},{"$f":"IFERROR(IF(ISNUMBER(T8),AC8 + AD8,\" \"),\" \")","v":0}]
[4,"Depot",{"$f":"IFERROR(MATCH(B9,'1.Locations'!$B$2:$B$7, 0) - 1,\" \")","v":0},{"$f":"IFERROR(IF(ISNUMBER(C9),INDEX('2.Distances'!$C$2:$C$37,C8*6+C9 + 2) +D8,\" \"),\" \")","v":95},{"$f":"IFERROR(IF(ISNUMBER(C9),'3.Vehicles'!$F$2 * INDEX('2.Distances'!$D$2:$D$37,C8*6+C9 + 2) +E8,\" \"),\" \")","v":0},{"$f":"IFERROR(IF(ISNUMBER(C9),'3.Vehicles'!$F$2 * INDEX('2.Distances'!$D$2:$D$37,C8*6+C9 + 2) +G8,\" \"),\" \")","v":"00:00:00"},{"$f":"IFERROR(IF(AND(C5<>C9,ISNUMBER(F9)),INDEX('1.Locations'!$I$2:$I$7,C9 + 1) + MAX(F9,INDEX('1.Locations'!$F$2:$F$7,C9 + 1)),\" \"),\" \")","v":" "},{"$f":"IFERROR(IF(AND(B9 = B5, B10 = \"\"), F9 - G5, G9 - G5),\" \")","v":0},{"$f":"IFERROR(IF(ISNUMBER(C9),INDEX('1.Locations'!$L$2:$L$7,C9 + 1) + I8,\" \"),\" \")","v":0},{"$f":"IFERROR(IF(ISNUMBER(C9),INDEX('1.Locations'!$J$2:$J$7,C9 + 1),\" \"),\" \")","v":0},{"$f":"IFERROR(IF(ISNUMBER(C9),INDEX('1.Locations'!$K$2:$K$7,C9 + 1),\" \"),\" \")","v":0},{"$f":"IFERROR(IF(ISNUMBER(C9),IF(B9 = B5, 0, J9 + L8),\" \"),\" \")","v":0},{"$f":"IFERROR(IF(ISNUMBER(C9),IF(B10 = B5, 0, IF(B10 = \"\", 0, M10 + K10)),\" \"),\" \")","v":0},{"$f":"IFERROR(IF(ISNUMBER(C9),L9 + M9,\" \"),\" \")","v":0},null,null,null,4,null,{"$f":"IFERROR(MATCH(S9,'1.Locations'!$B$2:$B$7, 0) - 1,\" \")","v":" "},{"$f":"IFERROR(IF(ISNUMBER(T9),INDEX('2.Distances'!$C$2:$C$37,T8*6+T9 + 2) +U8,\" \"),\" \")","v":" "},{"$f":"IFERROR(IF(ISNUMBER(T9),'3.Vehicles'!$F$2 * INDEX('2.Distances'!$D$2:$D$37,T8*6+T9 + 2) +V8,\" \"),\" \")","v":" "},{"$f":"IFERROR(IF(ISNUMBER(T9),'3.Vehicles'!$F$2 * INDEX('2.Distances'!$D$2:$D$37,T8*6+T9 + 2) +X8,\" \"),\" \")","v":" "},{"$f":"IFERROR(IF(AND(T5<>T9,ISNUMBER(W9)),INDEX('1.Locations'!$I$2:$I$7,T9 + 1) + MAX(W9,INDEX('1.Locations'!$F$2:$F$7,T9 + 1)),\" \"),\" \")","v":" "},{"$f":"IFERROR(IF(AND(S9 = S5, S10 = \"\"), W9 - X5, X9 - X5),\" \")","v":" "},{"$f":"IFERROR(IF(ISNUMBER(T9),INDEX('1.Locations'!$L$2:$L$7,T9 + 1) + Z8,\" \"),\" \")","v":" "},{"$f":"IFERROR(IF(ISNUMBER(T9),INDEX('1.Locations'!$J$2:$J$7,T9 + 1),\" \"),\" \")","v":" "},{"$f":"IFERROR(IF(ISNUMBER(T9),INDEX('1.Locations'!$K$2:$K$7,T9 + 1),\" \"),\" \")","v":" "},{"$f":"IFERROR(IF(ISNUMBER(T9),IF(S9 = S5, 0, AA9 + AC8),\" \"),\" \")","v":" "},{"$f":"IFERROR(IF(ISNUMBER(T9),IF(S10 = S5, 0, IF(S10 = \"\", 0, AD10 + AB10)),\" \"),\" \")","v":" "},{"$f":"IFERROR(IF(ISNUMBER(T9),AC9 + AD9,\" \"),\" \")","v":" "}]
[5,null,{"$f":"IFERROR(MATCH(B10,'1.Locations'!$B$2:$B$7, 0) - 1,\" \")","v":" "},{"$f":"IFERROR(IF(ISNUMBER(C10),INDEX('2.Distances'!$C$2:$C$37,C9*6+C10 + 2) +D9,\" \"),\" \")","v":" "},{"$f":"IFERROR(IF(ISNUMBER(C10),'3.Vehicles'!$F$2 * INDEX('2.Distances'!$D$2:$D$37,C9*6+C10 + 2) +E9,\" \"),\" \")","v":" "},{"$f":"IFERROR(IF(ISNUMBER(C10),'3.Vehicles'!$F$2 * INDEX('2.Distances'!$D$2:$D$37,C9*6+C10 + 2) +G9,\" \"),\" \")","v":" "},{"$f":"IFERROR(IF(AND(C5<>C10,ISNUMBER(F10)),INDEX('1.Locations'!$I$2:$I$7,C10 + 1) + MAX(F10,INDEX('1.Locations'!$F$2:$F$7,C10 + 1)),\" \"),\" \")","v":" "},{"$f":"IFERROR(IF(AND(B10 = B5, B11 = \"\"), F10 - G5, G10 - G5),\" \")","v":" "},{"$f":"IFERROR(IF(ISNUMBER(C10),INDEX('1.Locations'!$L$2:$L$7,C10 + 1) + I9,\" \"),\" \")","v":" "},{"$f":"IFERROR(IF(ISNUMBER(C10),INDEX('1.Locations'!$J$2:$J$7,C10 + 1),\" \"),\" \")","v":" "},{"$f":"IFERROR(IF(ISNUMBER(C10),INDEX('1.Locations'!$K$2:$K$7,C10 + 1),\" \"),\" \")","v":" "},{"$f":"IFERROR(IF(ISNUMBER(C10),IF(B10 = B5, 0, J10 + L9),\" \"),\" \")","v":" "},{"$f":"IFERROR(IF(ISNUMBER(C10),IF(B11 = B5, 0, IF(B11 = \"\", 0, M11 + K11)),\" \"),\" \")","v":" "},{"$f":"IFERROR(IF(ISNUMBER(C10),L10 + M10,\" \"),\" \")","v":" "},null,null,null,5,null,{"$f":"IFERROR(MATCH(S10,'1.Locations'!$B$2:$B$7, 0) - 1,\" \")","v":" "},{"$f":"IFERROR(IF(ISNUMBER(T10),INDEX('2.Distances'!$C$2:$C$37,T9*6+T10 + 2) +U9,\" \"),\" \")","v":" "},{"$f":"IFERROR(IF(ISNUMBER(T10),'3.Vehicles'!$F$2 * INDEX('2.Distances'!$D$2:$D$37,T9*6+T10 + 2) +V9,\" \"),\" \")","v":" "},{"$f":"IFERROR(IF(ISNUMBER(T10),'3.Vehicles'!$F$2 * INDEX('2.Distances'!$D$2:$D$37,T9*6+T10 + 2) +X9,\" \"),\" \")","v":" "},{"$f":"IFERROR(IF(AND(T5<>T10,ISNUMBER(W10)),INDEX('1.Locations'!$I$2:$I$7,T10 + 1) + MAX(W10,INDEX('1.Locations'!$F$2:$F$7,T10 + 1)),\" \"),\" \")","v":" "},{"$f":"IFERROR(IF(AND(S10 = S5, S11 = \"\"), W10 - X5, X10 - X5),\" \")","v":" "},{"$f":"IFERROR(IF(ISNUMBER(T10),INDEX('1.Locations'!$L$2:$L$7,T10 + 1) + Z9,\" \"),\" \")","v":" "},{"$f":"IFERROR(IF(ISNUMBER(T10),INDEX('1.Locations'!$J$2:$J$7,T10 + 1),\" \"),\" \")","v":" "},{"$f":"IFERROR(IF(ISNUMBER(T10),INDEX('1.Locations'!$K$2:$K$7,T10 + 1),\" \"),\" \")","v":" "},{"$f":"IFERROR(IF(ISNUMBER(T10),IF(S10 = S5, 0, AA10 + AC9),\" \"),\" \")","v":" "},{"$f":"IFERROR(IF(ISNUMBER(T10),IF(S11 = S5, 0, IF(S11 = \"\", 0, AD11 + AB11)),\" \"),\" \")","v":" "},{"$f":"IFERROR(IF(ISNUMBER(T10),AC10 + AD10,\" \"),\" \")","v":" "}]
[6,null,{"$f":"IFERROR(MATCH(B11,'1.Locations'!$B$2:$B$7, 0) - 1,\" \")","v":" "},{"$f":"IFERROR(IF(ISNUMBER(C11),INDEX('2.Distances'!$C$2:$C$37,C10*6+C11 + 2) +D10,\" \"),\" \")","v":" "},{"$f":"IFERROR(IF(ISNUMBER(C11),'3.Vehicles'!$F$2 * INDEX('2.Distances'!$D$2:$D$37,C10*6+C11 + 2) +E10,\" \"),\" \")","v":" "},{"$f":"IFERROR(IF(ISNUMBER(C11),'3.Vehicles'!$F$2 * INDEX('2.Distances'!$D$2:$D$37,C10*6+C11 + 2) +G10,\" \"),\" \")","v":" "},{"$f":"IFERROR(IF(AND(C5<>C11,ISNUMBER(F11)),INDEX('1.Locations'!$I$2:$I$7,C11 + 1) + MAX(F11,INDEX('1.Locations'!$F$2:$F$7,C11 + 1)),\" \"),\" \")","v":" "},{"$f":"IFERROR(IF(AND(B11 = B5, B12 = \"\"), F11 - G5, G11 - G5),\" \")","v":" "},{"$f":"IFERROR(IF(ISNUMBER(C11),INDEX('1.Locations'!$L$2:$L$7,C11 + 1) + I10,\" \"),\" \")","v":" "},{"$f":"IFERROR(IF(ISNUMBER(C11),INDEX('1.Locations'!$J$2:$J$7,C11 + 1),\" \"),\" \")","v":" "},{"$f":"IFERROR(IF(ISNUMBER(C11),INDEX('1.Locations'!$K$2:$K$7,C11 + 1),\" \"),\" \")","v":" "},{"$f":"IFERROR(IF(ISNUMBER(C11),IF(B11 = B5, 0, J11 + L10),\" \"),\" \")","v":" "},{"$f":"IFERROR(IF(ISNUMBER(C11),IF(B12 = B5, 0, IF(B12 = \"\", 0, M12 + K12)),\" \"),\" \")","v":" "},{"$f":"IFERROR(IF(ISNUMBER(C11),L11 + M11,\" \"),\" \")","v":" "},null,null,null,6,null,{"$f":"IFERROR(MATCH(S11,'1.Locations'!$B$2:$B$7, 0) - 1,\" \")","v":" "},{"$f":"IFERROR(IF(ISNUMBER(T11),INDEX('2.Distances'!$C$2:$C$37,T10*6+T11 + 2) +U10,\" \"),\" \")","v":" "},{"$f":"IFERROR(IF(ISNUMBER(T11),'3.Vehicles'!$F$2 * INDEX('2.Distances'!$D$2:$D$37,T10*6+T11 + 2) +V10,\" \"),\" \")","v":" "},{"$f":"IFERROR(IF(ISNUMBER(T11),'3.Vehicles'!$F$2 * INDEX('2.Distances'!$D$2:$D$37,T10*6+T11 + 2) +X10,\" \"),\" \")","v":" "},{"$f":"IFERROR(IF(AND(T5<>T11,ISNUMBER(W11)),INDEX('1.Locations'!$I$2:$I$7,T11 + 1) + MAX(W11,INDEX('1.Locations'!$F$2:$F$7,T11 + 1)),\" \"),\" \")","v":" "},{"$f":"IFERROR(IF(AND(S11 = S5, S12 = \"\"), W11 - X5, X11 - X5),\" \")","v":" "},{"$f":"IFERROR(IF(ISNUMBER(T11),INDEX('1.Locations'!$L$2:$L$7,T11 + 1) + Z10,\" \"),\" \")","v":" "},{"$f":"IFERROR(IF(ISNUMBER(T11),INDEX('1.Locations'!$J$2:$J$7,T11 + 1),\" \"),\" \")","v":" "},{"$f":"IFERROR(IF(ISNUMBER(T11),INDEX('1.Locations'!$K$2:$K$7,T11 + 1),\" \"),\" \")","v":" "},{"$f":"IFERROR(IF(ISNUMBER(T11),IF(S11 = S5, 0, AA11 + AC10),\" \"),\" \")","v":" "},{"$f":"IFERROR(IF(ISNUMBER(T11),IF(S12 = S5, 0, IF(S12 = \"\", 0, AD12 + AB12)),\" \"),\" \")","v":" "},{"$f":"IFERROR(IF(ISNUMBER(T11),AC11 + AD11,\" \"),\" \")","v":" "}]
[]
["Detected reasons of infeasibility"]